BIOGUIDE_ID,OFFICE,QUARTER,PROGRAM,CATEGORY,DATE,TRANSCODE,RECORDID,PAYEE,START DATE,END DATE,PURPOSE,AMOUNT,YEAR,RECIP (orig.)
,OFFICE OF THE SPEAKER,2016Q4,GENERAL EXPENDITURES,PERSONNEL COMPENSATION,"","","",ALTHOUSE JOSHUA S,10/1/16,12/31/16,CONSERVATIVE OUTREACH DIRECTOR,20000.01,2016,ALTHOUSE JOSHUA S
,OFFICE OF THE SPEAKER,2016Q4,GENERAL EXPENDITURES,PERSONNEL COMPENSATION,"","","",ANDRES DOUGLAS R,10/1/16,12/31/16,PRESS SECRETARY,27500.01,2016,ANDRES DOUGLAS R
,OFFICE OF THE SPEAKER,2016Q4,GENERAL EXPENDITURES,PERSONNEL COMPENSATION,"","","",ANDREWS THOMAS S,10/1/16,12/31/16,MEMBER SERVICES DIRECTOR,23750.01,2016,ANDREWS THOMAS S
,OFFICE OF THE SPEAKER,2016Q4,GENERAL EXPENDITURES,PERSONNEL COMPENSATION,"","","",ANTELL GEOFFREY,10/1/16,12/31/16,ASST TO THE SPEAKER FOR POLICY,41250,2016,ANTELL GEOFFREY
,OFFICE OF THE SPEAKER,2016Q4,GENERAL EXPENDITURES,PERSONNEL COMPENSATION,"","","",BENJAMIN WILLIAM C.,10/1/16,10/10/16,DIR OF INFORMATION TECHNOLOGY,2722.22,2016,BENJAMIN WILLIAM C.
,OFFICE OF THE SPEAKER,2016Q4,GENERAL EXPENDITURES,PERSONNEL COMPENSATION,"","","",BENJAMIN WILLIAM C.,10/11/16,12/31/16,SYSTEM ADMINISTRATOR,11777.78,2016,BENJAMIN WILLIAM C.
,OFFICE OF THE SPEAKER,2016Q4,GENERAL EXPENDITURES,PERSONNEL COMPENSATION,"","","",BLAKE KRISTENE,10/1/16,12/31/16,DIR OF ADMIN OPERATIONS,33750,2016,BLAKE KRISTENE
,OFFICE OF THE SPEAKER,2016Q4,GENERAL EXPENDITURES,PERSONNEL COMPENSATION,"","","",BLANKENSHIP APRIL L.,10/1/16,12/31/16,FINANCIAL ADMINISTRATOR,6000,2016,BLANKENSHIP APRIL L.
,OFFICE OF THE SPEAKER,2016Q4,GENERAL EXPENDITURES,PERSONNEL COMPENSATION,"","","",BOLDUC BRIAN J.,10/1/16,12/31/16,DIRECTOR OF SPEECHWRITING,27500.01,2016,BOLDUC BRIAN J.
,OFFICE OF THE SPEAKER,2016Q4,GENERAL EXPENDITURES,PERSONNEL COMPENSATION,"","","",BRADBURY ANNE B.,10/1/16,10/14/16,FLOOR DIRECTOR,6708.33,2016,BRADBURY ANNE B.
,OFFICE OF THE SPEAKER,2016Q4,GENERAL EXPENDITURES,PERSONNEL COMPENSATION,"","","",BRADBURY ANNE B.,10/1/16,10/14/16,FLOOR DIRECTOR (OTHER COMPENSATION),7187.5,2016,BRADBURY ANNE B.
,OFFICE OF THE SPEAKER,2016Q4,GENERAL EXPENDITURES,PERSONNEL COMPENSATION,"","","",BUCK BRENDAN K,10/1/16,12/31/16,CHIEF ADV ON COMMUNICATIONS,43125,2016,BUCK BRENDAN K
,OFFICE OF THE SPEAKER,2016Q4,GENERAL EXPENDITURES,PERSONNEL COMPENSATION,"","","",BURKS JONATHAN,10/1/16,12/31/16,ASST TO SPEAKER FOR POLICY,32828.76,2016,BURKS JONATHAN
,OFFICE OF THE SPEAKER,2016Q4,GENERAL EXPENDITURES,PERSONNEL COMPENSATION,"","","",CALLAS GEORGE A,10/1/16,12/31/16,CHIEF TAX COUNSEL,42674.01,2016,CALLAS GEORGE A
,OFFICE OF THE SPEAKER,2016Q4,GENERAL EXPENDITURES,PERSONNEL COMPENSATION,"","","",CASTINE PETER L,10/1/16,12/31/16,STAFF ASSISTANT,9624.99,2016,CASTINE PETER L
,OFFICE OF THE SPEAKER,2016Q4,GENERAL EXPENDITURES,PERSONNEL COMPENSATION,"","","",CASTINE PETER L,8/1/16,11/30/16,STAFF ASSISTANT (OVERTIME),979.31,2016,CASTINE PETER L
,OFFICE OF THE SPEAKER,2016Q4,GENERAL EXPENDITURES,PERSONNEL COMPENSATION,"","","",COYLE SARAH M,10/1/16,12/31/16,FLOOR ASSISTANT,12500.01,2016,COYLE SARAH M
,OFFICE OF THE SPEAKER,2016Q4,GENERAL EXPENDITURES,PERSONNEL COMPENSATION,"","","",CRAVEN KELLY F.,10/1/16,12/31/16,DIRECTOR OF HOUSE OPERATIONS,43125,2016,CRAVEN KELLY F.
,OFFICE OF THE SPEAKER,2016Q4,GENERAL EXPENDITURES,PERSONNEL COMPENSATION,"","","",DIXON KELLY A.,10/1/16,12/31/16,SHARED EMPLOYEE,24999.99,2016,DIXON KELLY A.
,OFFICE OF THE SPEAKER,2016Q4,GENERAL EXPENDITURES,PERSONNEL COMPENSATION,"","","",DOCKERY DERRICK D,10/1/16,12/31/16,INTERGOVERNMENTAL OUTREACH DIR,20000.01,2016,DOCKERY DERRICK D
,OFFICE OF THE SPEAKER,2016Q4,GENERAL EXPENDITURES,PERSONNEL COMPENSATION,"","","",EASBY-SMITH ANNE S.,10/1/16,12/31/16,SPECIAL EVENTS COORDINATOR,23750.01,2016,EASBY-SMITH ANNE S.
,OFFICE OF THE SPEAKER,2016Q4,GENERAL EXPENDITURES,PERSONNEL COMPENSATION,"","","",EDWARDS SPENCER M,10/1/16,12/31/16,DEPUTY PRESS SECRETARY,17499.99,2016,EDWARDS SPENCER M
,OFFICE OF THE SPEAKER,2016Q4,GENERAL EXPENDITURES,PERSONNEL COMPENSATION,"","","",EICHHORN JARED D.,10/1/16,12/31/16,CLOAKROOM DIRECTOR,24999.99,2016,EICHHORN JARED D.
,OFFICE OF THE SPEAKER,2016Q4,GENERAL EXPENDITURES,PERSONNEL COMPENSATION,"","","",EPLEY MARK D,10/1/16,12/31/16,GENERAL COUNSEL/OVERSIGHT,43125,2016,EPLEY MARK D
,OFFICE OF THE SPEAKER,2016Q4,GENERAL EXPENDITURES,PERSONNEL COMPENSATION,"","","",FOLTZ DEVON N,10/1/16,12/31/16,COUNSEL FOR FLOOR OPERATIONS,35000.01,2016,FOLTZ DEVON N
,OFFICE OF THE SPEAKER,2016Q4,GENERAL EXPENDITURES,PERSONNEL COMPENSATION,"","","",GEFFERT REBEKAH L,10/1/16,12/31/16,STAFF ASSISTANT,9999.99,2016,GEFFERT REBEKAH L
,OFFICE OF THE SPEAKER,2016Q4,GENERAL EXPENDITURES,PERSONNEL COMPENSATION,"","","",GEFFERT REBEKAH L,9/1/16,11/30/16,STAFF ASSISTANT (OVERTIME),649.04,2016,GEFFERT REBEKAH L
,OFFICE OF THE SPEAKER,2016Q4,GENERAL EXPENDITURES,PERSONNEL COMPENSATION,"","","",GILLESPIE JAMES M,10/1/16,12/31/16,CLERICAL TECHNICAN,11250,2016,GILLESPIE JAMES M
,OFFICE OF THE SPEAKER,2016Q4,GENERAL EXPENDITURES,PERSONNEL COMPENSATION,"","","",GILLESPIE JAMES M,9/1/16,10/31/16,CLERICAL TECHNICAN (OVERTIME),146.04,2016,GILLESPIE JAMES M
,OFFICE OF THE SPEAKER,2016Q4,GENERAL EXPENDITURES,PERSONNEL COMPENSATION,"","","",GOLDOUST CARAH S,10/1/16,12/31/16,SPECIAL EVENTS COORDINATOR,9999.99,2016,GOLDOUST CARAH S
,OFFICE OF THE SPEAKER,2016Q4,GENERAL EXPENDITURES,PERSONNEL COMPENSATION,"","","",GOLDOUST CARAH S,9/1/16,11/30/16,SPECIAL EVENTS COORDINATOR (OVERTIME),1052.87,2016,GOLDOUST CARAH S
,OFFICE OF THE SPEAKER,2016Q4,GENERAL EXPENDITURES,PERSONNEL COMPENSATION,"","","",HALPERN HUGH N.,10/17/16,12/31/16,FLOOR DIRECTOR - STATUTORY,35411.67,2016,HALPERN HUGH N.
,OFFICE OF THE SPEAKER,2016Q4,GENERAL EXPENDITURES,PERSONNEL COMPENSATION,"","","",HERRLE CYNTHIA A.,10/1/16,12/31/16,ASST TO THE SPEAKER FOR POLICY,42000,2016,HERRLE CYNTHIA A.
,OFFICE OF THE SPEAKER,2016Q4,GENERAL EXPENDITURES,PERSONNEL COMPENSATION,"","","",HIGGINS CASEY,10/1/16,12/31/16,ASSIST TO SPEAKER FOR POLICY,39603.75,2016,HIGGINS CASEY
,OFFICE OF THE SPEAKER,2016Q4,GENERAL EXPENDITURES,PERSONNEL COMPENSATION,"","","",HOFFMANN MATTHEW,10/1/16,12/31/16,ASSIST TO SPEAKER FOR POLICY,39603.75,2016,HOFFMANN MATTHEW
,OFFICE OF THE SPEAKER,2016Q4,GENERAL EXPENDITURES,PERSONNEL COMPENSATION,"","","",HOPPE JOHN D,10/1/16,12/31/16,CHIEF OF STAFF,43125,2016,HOPPE JOHN D
,OFFICE OF THE SPEAKER,2016Q4,GENERAL EXPENDITURES,PERSONNEL COMPENSATION,"","","",HUSTON JOHNATHON B,10/1/16,12/31/16,SHARED EMPLOYEE,17750,2016,HUSTON JOHNATHON B
,OFFICE OF THE SPEAKER,2016Q4,GENERAL EXPENDITURES,PERSONNEL COMPENSATION,"","","",JORDON BENJAMIN D,10/1/16,12/31/16,STAFF ASSISTANT,9999.99,2016,JORDON BENJAMIN D
,OFFICE OF THE SPEAKER,2016Q4,GENERAL EXPENDITURES,PERSONNEL COMPENSATION,"","","",JORDON BENJAMIN D,9/1/16,11/30/16,STAFF ASSISTANT (OVERTIME),475.96,2016,JORDON BENJAMIN D
,OFFICE OF THE SPEAKER,2016Q4,GENERAL EXPENDITURES,PERSONNEL COMPENSATION,"","","",KISH DANIEL V,10/1/16,12/31/16,ASSIST TO SPEAKER FOR POLICY,42000,2016,KISH DANIEL V
,OFFICE OF THE SPEAKER,2016Q4,GENERAL EXPENDITURES,PERSONNEL COMPENSATION,"","","",LEOPOLD PATRICK R,10/1/16,12/31/16,SHARED EMPLOYEE,24999.99,2016,LEOPOLD PATRICK R
,OFFICE OF THE SPEAKER,2016Q4,GENERAL EXPENDITURES,PERSONNEL COMPENSATION,"","","",MACDONALD BRIAN C.,10/1/16,12/31/16,SHARED EMPLOYEE,24999.99,2016,MACDONALD BRIAN C.
,OFFICE OF THE SPEAKER,2016Q4,GENERAL EXPENDITURES,PERSONNEL COMPENSATION,"","","",MATTHEWS TITUS V,10/1/16,12/31/16,STAFF ASSISTANT,9624.99,2016,MATTHEWS TITUS V
,OFFICE OF THE SPEAKER,2016Q4,GENERAL EXPENDITURES,PERSONNEL COMPENSATION,"","","",MATTHEWS TITUS V,9/1/16,10/31/16,STAFF ASSISTANT (OVERTIME),83.29,2016,MATTHEWS TITUS V
,OFFICE OF THE SPEAKER,2016Q4,GENERAL EXPENDITURES,PERSONNEL COMPENSATION,"","","",MCCALLIE CARLY L,10/1/16,12/31/16,ASSOCIATE COUNSEL,15000,2016,MCCALLIE CARLY L
,OFFICE OF THE SPEAKER,2016Q4,GENERAL EXPENDITURES,PERSONNEL COMPENSATION,"","","",MCCANN EDWARD D.,10/1/16,12/31/16,ASSIST TO SPEAKER FOR POLICY,39999.99,2016,MCCANN EDWARD D.
,OFFICE OF THE SPEAKER,2016Q4,GENERAL EXPENDITURES,PERSONNEL COMPENSATION,"","","",MEYER JOYCE Y.,10/1/16,12/31/16,DEPUTY CHIEF OF STAFF,43125,2016,MEYER JOYCE Y.
,OFFICE OF THE SPEAKER,2016Q4,GENERAL EXPENDITURES,PERSONNEL COMPENSATION,"","","",MILLER WILLIAM,10/1/16,12/31/16,SPECIAL ASSISTANT TO THE SPEAK,17499.99,2016,MILLER WILLIAM
,OFFICE OF THE SPEAKER,2016Q4,GENERAL EXPENDITURES,PERSONNEL COMPENSATION,"","","",MINKLER ANN W,10/1/16,11/20/16,FLOOR ASSISTANT,10416.67,2016,MINKLER ANN W
,OFFICE OF THE SPEAKER,2016Q4,GENERAL EXPENDITURES,PERSONNEL COMPENSATION,"","","",MINKLER ANN W,11/1/16,11/20/16,FLOOR ASSISTANT (OTHER COMPENSATION),6145.83,2016,MINKLER ANN W
,OFFICE OF THE SPEAKER,2016Q4,GENERAL EXPENDITURES,PERSONNEL COMPENSATION,"","","",MITCHELL MAUREEN E,10/1/16,12/31/16,DIRECTOR OF SCHEDULING,33750,2016,MITCHELL MAUREEN E
,OFFICE OF THE SPEAKER,2016Q4,GENERAL EXPENDITURES,PERSONNEL COMPENSATION,"","","",MUNDAY J M.,10/11/16,12/31/16,DIRECTOR OF INFORMATION TECHNO,28888.88,2016,MUNDAY J M.
,OFFICE OF THE SPEAKER,2016Q4,GENERAL EXPENDITURES,PERSONNEL COMPENSATION,"","","",O'TOOLE RYAN T,10/1/16,12/31/16,FLOOR ASSISTANT,11250,2016,O'TOOLE RYAN T
,OFFICE OF THE SPEAKER,2016Q4,GENERAL EXPENDITURES,PERSONNEL COMPENSATION,"","","",POINTER KATHERINE C,10/1/16,12/31/16,SENIOR STAFF ASSISTANT,13749.99,2016,POINTER KATHERINE C
,OFFICE OF THE SPEAKER,2016Q4,GENERAL EXPENDITURES,PERSONNEL COMPENSATION,"","","",POINTER KATHERINE C,9/1/16,11/30/16,SENIOR STAFF ASSISTANT (OVERTIME),793.26,2016,POINTER KATHERINE C
,OFFICE OF THE SPEAKER,2016Q4,GENERAL EXPENDITURES,PERSONNEL COMPENSATION,"","","",RENZ BRANDON,10/1/16,12/31/16,SHARED EMPLOYEE,24999.99,2016,RENZ BRANDON
,OFFICE OF THE SPEAKER,2016Q4,GENERAL EXPENDITURES,PERSONNEL COMPENSATION,"","","",RICCI MICHAEL,10/1/16,12/31/16,DIRECTOR OF COMMUNICATIONS,42000,2016,RICCI MICHAEL
,OFFICE OF THE SPEAKER,2016Q4,GENERAL EXPENDITURES,PERSONNEL COMPENSATION,"","","",SAGER MICHAEL J,10/1/16,10/31/16,SYSTEMS ADMINISTRATOR,7083.33,2016,SAGER MICHAEL J
,OFFICE OF THE SPEAKER,2016Q4,GENERAL EXPENDITURES,PERSONNEL COMPENSATION,"","","",SAGER MICHAEL J,10/1/16,10/31/16,SYSTEMS ADMINISTRATOR (OTHER COMPENSATION),3541.67,2016,SAGER MICHAEL J
,OFFICE OF THE SPEAKER,2016Q4,GENERAL EXPENDITURES,PERSONNEL COMPENSATION,"","","",SHAPIRO MICHAEL I.,10/1/16,12/31/16,COMMUNICATIONS ADVISOR,20000.01,2016,SHAPIRO MICHAEL I.
,OFFICE OF THE SPEAKER,2016Q4,GENERAL EXPENDITURES,PERSONNEL COMPENSATION,"","","",SLINGSBY JULIA K.,10/1/16,12/31/16,DEPUTY COMMUNICATIONS DIRECTOR,26250,2016,SLINGSBY JULIA K.
,OFFICE OF THE SPEAKER,2016Q4,GENERAL EXPENDITURES,PERSONNEL COMPENSATION,"","","",SMITH CALEB J,10/1/16,12/31/16,DIGITAL COMMUNICATIONS DIRECTO,32499.99,2016,SMITH CALEB J
,OFFICE OF THE SPEAKER,2016Q4,GENERAL EXPENDITURES,PERSONNEL COMPENSATION,"","","",SMYTHE AUGUSTINE,10/1/16,12/31/16,POLICY DIRECTOR,43125,2016,SMYTHE AUGUSTINE
,OFFICE OF THE SPEAKER,2016Q4,GENERAL EXPENDITURES,PERSONNEL COMPENSATION,"","","",SPETH ANDREW D.,11/1/16,12/31/16,SENIOR ADVISOR,12458.33,2016,SPETH ANDREW D.
,OFFICE OF THE SPEAKER,2016Q4,GENERAL EXPENDITURES,PERSONNEL COMPENSATION,"","","",STRONG ASHLEE A,10/1/16,12/31/16,PRESS SECRETARY,38750.01,2016,STRONG ASHLEE A
,OFFICE OF THE SPEAKER,2016Q4,GENERAL EXPENDITURES,PERSONNEL COMPENSATION,"","","",STRUNK LYDIA,10/1/16,12/31/16,DEPUTY FLOOR DIRECTOR,31250.01,2016,STRUNK LYDIA
,OFFICE OF THE SPEAKER,2016Q4,GENERAL EXPENDITURES,PERSONNEL COMPENSATION,"","","",SWINEHART SARAH V,10/1/16,12/31/16,DIRECTOR OF MEDIA AFFAIRS,27500.01,2016,SWINEHART SARAH V
,OFFICE OF THE SPEAKER,2016Q4,GENERAL EXPENDITURES,PERSONNEL COMPENSATION,"","","",VREEBURG JACOBUS A,10/1/16,12/31/16,SHARED EMPLOYEE,24085.17,2016,VREEBURG JACOBUS A
,OFFICE OF THE SPEAKER,2016Q4,GENERAL EXPENDITURES,PERSONNEL COMPENSATION,"","","",WICKISER VICTORIA H,10/1/16,12/31/16,DEPUTY DIRECTOR OF SCHEDULING,20000.01,2016,WICKISER VICTORIA H
,OFFICE OF THE SPEAKER,2016Q4,GENERAL EXPENDITURES,PERSONNEL COMPENSATION,"","","",ZULKOSKY ERIC T,10/1/16,12/31/16,SHARED EMPLOYEE,24999.99,2016,ZULKOSKY ERIC T
,OFFICE OF THE SPEAKER,2016Q4,GENERAL EXPENDITURES,TRAVEL,10/28/16,AP,E0454294,BURKS JONATHAN,8/30/16,9/19/16,TAXI/PARKING/TOLLS,52.64,2016,BURKS JONATHAN
,OFFICE OF THE SPEAKER,2016Q4,GENERAL EXPENDITURES,TRAVEL,10/28/16,AP,E0454299,SMYTHE AUGUSTINE,9/6/16,9/15/16,TAXI/PARKING/TOLLS,34.64,2016,SMYTHE AUGUSTINE
,OFFICE OF THE SPEAKER,2016Q4,GENERAL EXPENDITURES,TRAVEL,12/23/16,AP,E0470642,MCCANN EDWARD,11/2/16,11/2/16,COMMERCIAL TRANSPORTATION,204.2,2016,MCCANN EDWARD
,OFFICE OF THE SPEAKER,2016Q4,GENERAL EXPENDITURES,TRAVEL,12/29/16,AP,E0472242,SWINEHART SARAH V,9/27/16,9/29/16,TAXI/PARKING/TOLLS,14.75,2016,SWINEHART SARAH V
,OFFICE OF THE SPEAKER,2016Q4,GENERAL EXPENDITURES,RENT COMMUNICATION UTILITIES,10/21/16,AP,E0452731,OCCASIONS CATERERS INC,9/14/16,9/14/16,EQUIP RENTAL (EFF 1/3/03),1122.5,2016,OCCASIONS CATERERS INC
,OFFICE OF THE SPEAKER,2016Q4,GENERAL EXPENDITURES,RENT COMMUNICATION UTILITIES,11/16/16,AP,E0458262,GO BIG MEDIA INC,9/20/16,9/20/16,RECORDING (OUTSIDE),3750,2016,GO BIG MEDIA INC
,OFFICE OF THE SPEAKER,2016Q4,GENERAL EXPENDITURES,RENT COMMUNICATION UTILITIES,11/16/16,AP,E0458263,GO BIG MEDIA INC,6/22/16,6/22/16,RECORDING (OUTSIDE),3750,2016,GO BIG MEDIA INC
,OFFICE OF THE SPEAKER,2016Q4,GENERAL EXPENDITURES,PRINTING AND REPRODUCTION,10/28/16,GL,PIX0062968,"",10/1/16,10/31/16,PHOTOGRAPHIC (TRANSFER),29.6,2016,""
,OFFICE OF THE SPEAKER,2016Q4,GENERAL EXPENDITURES,PRINTING AND REPRODUCTION,11/22/16,GL,PIX0063559,"",11/1/16,11/30/16,PHOTOGRAPHIC (TRANSFER),186.5,2016,""
,OFFICE OF THE SPEAKER,2016Q4,GENERAL EXPENDITURES,PRINTING AND REPRODUCTION,12/28/16,GL,PIX0064465,"",12/1/16,12/31/16,PHOTOGRAPHIC (TRANSFER),180.6,2016,""
,OFFICE OF THE SPEAKER,2016Q4,GENERAL EXPENDITURES,OTHER SERVICES,12/17/16,AP,E0466199,ENGAGE CONCEPTS LLC,8/28/16,8/28/16,WEB DEV HST EMAIL & RLTD SERV,5047.81,2016,ENGAGE CONCEPTS LLC
,OFFICE OF THE SPEAKER,2016Q4,GENERAL EXPENDITURES,SUPPLIES AND MATERIALS,10/11/16,AP,E0449046,FIRST CHOICE COFFEE SERVICES,9/22/16,9/22/16,FOOD & BEVERAGE,498.16,2016,FIRST CHOICE COFFEE SERVICES
,OFFICE OF THE SPEAKER,2016Q4,GENERAL EXPENDITURES,SUPPLIES AND MATERIALS,10/12/16,AP,E0449045,VREEBURG JACOBUS A.,9/27/16,9/27/16,WATER,2.5,2016,VREEBURG JACOBUS A.
,OFFICE OF THE SPEAKER,2016Q4,GENERAL EXPENDITURES,SUPPLIES AND MATERIALS,10/12/16,AP,E0449045,VREEBURG JACOBUS A.,9/28/16,9/28/16,FOOD & BEVERAGE,194.94,2016,VREEBURG JACOBUS A.
,OFFICE OF THE SPEAKER,2016Q4,GENERAL EXPENDITURES,SUPPLIES AND MATERIALS,10/12/16,AP,E0449047,FIRST CHOICE COFFEE SERVICES,9/30/16,9/30/16,FOOD & BEVERAGE,1003.31,2016,FIRST CHOICE COFFEE SERVICES
,OFFICE OF THE SPEAKER,2016Q4,GENERAL EXPENDITURES,SUPPLIES AND MATERIALS,10/14/16,AP,E0449942,FIRST CHOICE COFFEE SERVICES,10/7/16,10/7/16,FOOD & BEVERAGE,117.39,2016,FIRST CHOICE COFFEE SERVICES
,OFFICE OF THE SPEAKER,2016Q4,GENERAL EXPENDITURES,SUPPLIES AND MATERIALS,10/21/16,AP,886235,CITI PCARD-BUCA DI BEPPO,8/29/16,9/28/16,FOOD & BEVERAGE,502.39,2016,CITI PCARD-BUCA DI BEPPO
,OFFICE OF THE SPEAKER,2016Q4,GENERAL EXPENDITURES,SUPPLIES AND MATERIALS,10/21/16,AP,886235,CITI PCARD-CAFE RIO FALLS CHURCH,8/29/16,9/28/16,FOOD & BEVERAGE,285.67,2016,CITI PCARD-CAFE RIO FALLS CHURCH
,OFFICE OF THE SPEAKER,2016Q4,GENERAL EXPENDITURES,SUPPLIES AND MATERIALS,10/21/16,AP,886235,CITI PCARD-CAP MARKET CAF,8/29/16,9/28/16,FOOD & BEVERAGE,2.95,2016,CITI PCARD-CAP MARKET CAF
,OFFICE OF THE SPEAKER,2016Q4,GENERAL EXPENDITURES,SUPPLIES AND MATERIALS,10/21/16,AP,886235,CITI PCARD-CHICK-FIL-A,8/29/16,9/28/16,FOOD & BEVERAGE,1504.75,2016,CITI PCARD-CHICK-FIL-A
,OFFICE OF THE SPEAKER,2016Q4,GENERAL EXPENDITURES,SUPPLIES AND MATERIALS,10/21/16,AP,886235,CITI PCARD-CORNER BAKERY,8/29/16,9/28/16,FOOD & BEVERAGE,1746.85,2016,CITI PCARD-CORNER BAKERY
,OFFICE OF THE SPEAKER,2016Q4,GENERAL EXPENDITURES,SUPPLIES AND MATERIALS,10/21/16,AP,886235,CITI PCARD-DT,8/29/16,9/28/16,FOOD & BEVERAGE,562.2,2016,CITI PCARD-DT
,OFFICE OF THE SPEAKER,2016Q4,GENERAL EXPENDITURES,SUPPLIES AND MATERIALS,10/21/16,AP,886235,CITI PCARD-PRET A MANGER,8/29/16,9/28/16,FOOD & BEVERAGE,64.89,2016,CITI PCARD-PRET A MANGER
,OFFICE OF THE SPEAKER,2016Q4,GENERAL EXPENDITURES,SUPPLIES AND MATERIALS,10/21/16,AP,E0452731,OCCASIONS CATERERS INC,9/14/16,9/14/16,FOOD & BEVERAGE,3542.5,2016,OCCASIONS CATERERS INC
,OFFICE OF THE SPEAKER,2016Q4,GENERAL EXPENDITURES,SUPPLIES AND MATERIALS,10/21/16,AP,E0452731,OCCASIONS CATERERS INC,9/14/16,9/14/16,HABITATION EXPENSE,175,2016,OCCASIONS CATERERS INC
,OFFICE OF THE SPEAKER,2016Q4,GENERAL EXPENDITURES,SUPPLIES AND MATERIALS,10/24/16,AP,886331,BOISE CASCADE COMPANY,9/9/16,9/9/16,OFFICE SUPPLIES (OUTSIDE),-25.67,2016,BOISE CASCADE COMPANY
,OFFICE OF THE SPEAKER,2016Q4,GENERAL EXPENDITURES,SUPPLIES AND MATERIALS,11/2/16,AP,E0454720,FIRST CHOICE COFFEE SERVICES,10/20/16,10/20/16,FOOD & BEVERAGE,488.73,2016,FIRST CHOICE COFFEE SERVICES
,OFFICE OF THE SPEAKER,2016Q4,GENERAL EXPENDITURES,SUPPLIES AND MATERIALS,11/2/16,AP,E0454721,COCA-COLA BOTTLING COMPANY CONSOLIDATED,10/25/16,10/25/16,FOOD & BEVERAGE,120,2016,COCA-COLA BOTTLING COMPANY CONSOLIDATED
,OFFICE OF THE SPEAKER,2016Q4,GENERAL EXPENDITURES,SUPPLIES AND MATERIALS,11/7/16,AP,E0456501,FIRST CHOICE COFFEE SERVICES,10/31/16,10/31/16,FOOD & BEVERAGE,331.28,2016,FIRST CHOICE COFFEE SERVICES
,OFFICE OF THE SPEAKER,2016Q4,GENERAL EXPENDITURES,SUPPLIES AND MATERIALS,11/7/16,AP,E0456503,COCA-COLA BOTTLING COMPANY CONSOLIDATED,11/1/16,11/1/16,FOOD & BEVERAGE,144,2016,COCA-COLA BOTTLING COMPANY CONSOLIDATED
,OFFICE OF THE SPEAKER,2016Q4,GENERAL EXPENDITURES,SUPPLIES AND MATERIALS,11/18/16,AP,891293,CITI PCARD-SAMS INTERNET,10/1/16,10/28/16,FOOD & BEVERAGE,175.2,2016,CITI PCARD-SAMS INTERNET
,OFFICE OF THE SPEAKER,2016Q4,GENERAL EXPENDITURES,SUPPLIES AND MATERIALS,11/23/16,AP,E0461670,FIRST CHOICE COFFEE SERVICES,11/3/16,11/3/16,FOOD & BEVERAGE,597.56,2016,FIRST CHOICE COFFEE SERVICES
,OFFICE OF THE SPEAKER,2016Q4,GENERAL EXPENDITURES,SUPPLIES AND MATERIALS,12/1/16,AP,E0464181,COCA-COLA BOTTLING COMPANY CONSOLIDATED,11/18/16,11/18/16,FOOD & BEVERAGE,120,2016,COCA-COLA BOTTLING COMPANY CONSOLIDATED
,OFFICE OF THE SPEAKER,2016Q4,GENERAL EXPENDITURES,SUPPLIES AND MATERIALS,12/1/16,AP,E0464182,FIRST CHOICE COFFEE SERVICES,11/16/16,11/16/16,FOOD & BEVERAGE,582.46,2016,FIRST CHOICE COFFEE SERVICES
,OFFICE OF THE SPEAKER,2016Q4,GENERAL EXPENDITURES,SUPPLIES AND MATERIALS,12/13/16,AP,E0467219,COCA-COLA BOTTLING COMPANY CONSOLIDATED,12/6/16,12/6/16,FOOD & BEVERAGE,156,2016,COCA-COLA BOTTLING COMPANY CONSOLIDATED
,OFFICE OF THE SPEAKER,2016Q4,GENERAL EXPENDITURES,SUPPLIES AND MATERIALS,12/13/16,AP,E0467221,FIRST CHOICE COFFEE SERVICES,12/1/16,12/1/16,FOOD & BEVERAGE,823.48,2016,FIRST CHOICE COFFEE SERVICES
,OFFICE OF THE SPEAKER,2016Q4,GENERAL EXPENDITURES,SUPPLIES AND MATERIALS,12/13/16,AP,E0467222,FIRST CHOICE COFFEE SERVICES,12/2/16,12/2/16,FOOD & BEVERAGE,137.6,2016,FIRST CHOICE COFFEE SERVICES
,OFFICE OF THE SPEAKER,2016Q4,GENERAL EXPENDITURES,SUPPLIES AND MATERIALS,12/14/16,AP,E0467223,FIRST CHOICE COFFEE SERVICES,11/18/16,11/18/16,FOOD & BEVERAGE,29.46,2016,FIRST CHOICE COFFEE SERVICES
,OFFICE OF THE SPEAKER,2016Q4,GENERAL EXPENDITURES,SUPPLIES AND MATERIALS,12/15/16,AP,E0468846,VREEBURG JACOBUS A.,11/30/16,11/30/16,WATER,6.67,2016,VREEBURG JACOBUS A.
,OFFICE OF THE SPEAKER,2016Q4,GENERAL EXPENDITURES,SUPPLIES AND MATERIALS,12/15/16,AP,E0468846,VREEBURG JACOBUS A.,12/1/16,12/1/16,FOOD & BEVERAGE,225.19,2016,VREEBURG JACOBUS A.
,OFFICE OF THE SPEAKER,2016Q4,GENERAL EXPENDITURES,SUPPLIES AND MATERIALS,12/15/16,AP,E0468847,ITSAVVY LLC,12/12/16,12/12/16,OFFICE SUPPLIES (OUTSIDE),236.88,2016,ITSAVVY LLC
,OFFICE OF THE SPEAKER,2016Q4,GENERAL EXPENDITURES,SUPPLIES AND MATERIALS,12/20/16,AP,896455,CITI PCARD-CORNER BAKERY,10/29/16,11/28/16,FOOD & BEVERAGE,1889.85,2016,CITI PCARD-CORNER BAKERY
,OFFICE OF THE SPEAKER,2016Q4,GENERAL EXPENDITURES,SUPPLIES AND MATERIALS,12/20/16,AP,896455,CITI PCARD-SAMS INTERNET,10/29/16,11/28/16,FOOD & BEVERAGE,356.2,2016,CITI PCARD-SAMS INTERNET
,OFFICE OF THE SPEAKER,2016Q4,GENERAL EXPENDITURES,SUPPLIES AND MATERIALS,12/20/16,AP,E0469897,FIRST CHOICE COFFEE SERVICES,12/9/16,12/9/16,FOOD & BEVERAGE,260.75,2016,FIRST CHOICE COFFEE SERVICES
,OFFICE OF THE SPEAKER,2016Q4,GENERAL EXPENDITURES,SUPPLIES AND MATERIALS,12/20/16,AP,E0469920,ITSAVVY LLC,12/12/16,12/12/16,OFFICE SUPPLIES (OUTSIDE),496.32,2016,ITSAVVY LLC
,OFFICE OF THE SPEAKER,2016Q4,GENERAL EXPENDITURES,SUPPLIES AND MATERIALS,12/23/16,AP,E0470641,FIRST CHOICE COFFEE SERVICES,12/15/16,12/15/16,FOOD & BEVERAGE,889.51,2016,FIRST CHOICE COFFEE SERVICES
,OFFICE OF THE SPEAKER,2016Q4,GENERAL EXPENDITURES,SUPPLIES AND MATERIALS,12/29/16,AP,E0470412,E&E PUBLISHING LLC,1/1/17,12/31/18,PUBLICATIONS/REFERENCE MAT'L,9800,2016,E&E PUBLISHING LLC
,OFFICE OF THE SPEAKER,2016Q4,GENERAL EXPENDITURES,SUPPLIES AND MATERIALS,12/29/16,AP,E0471086,POLITICO LLC,2/13/17,2/12/19,PUBLICATIONS/REFERENCE MAT'L,22390,2016,POLITICO LLC
,OFFICE OF THE SPEAKER,2016Q4,GENERAL EXPENDITURES,SUPPLIES AND MATERIALS,12/29/16,AP,E0472213,TOULIES EN FLEUR,11/30/16,11/30/16,HABITATION EXPENSE,885,2016,TOULIES EN FLEUR
,OFFICE OF THE SPEAKER,2016Q4,GENERAL EXPENDITURES,SUPPLIES AND MATERIALS,12/29/16,AP,E0472241,TOULIES EN FLEUR,12/6/16,12/6/16,HABITATION EXPENSE,345,2016,TOULIES EN FLEUR
,OFFICE OF THE MAJORITY LEADER,2016Q4,GENERAL EXPENDITURES,PERSONNEL COMPENSATION,"","","",BERRY TIMOTHY J,10/1/16,12/31/16,CHIEF OF STAFF,43125,2016,BERRY TIMOTHY J
,OFFICE OF THE MAJORITY LEADER,2016Q4,GENERAL EXPENDITURES,PERSONNEL COMPENSATION,"","","",BIEN CHRISTOPHER A,10/1/16,12/31/16,FLOOR ASSISTANT,11750,2016,BIEN CHRISTOPHER A
,OFFICE OF THE MAJORITY LEADER,2016Q4,GENERAL EXPENDITURES,PERSONNEL COMPENSATION,"","","",BUCHANAN NATALIE L,10/1/16,12/31/16,DIR OF MEMBER SERVICES,33500,2016,BUCHANAN NATALIE L
,OFFICE OF THE MAJORITY LEADER,2016Q4,GENERAL EXPENDITURES,PERSONNEL COMPENSATION,"","","",BURR DANIELLE M,10/1/16,12/15/16,DIRECTOR OF EXTERNAL AFFAIRS,31250,2016,BURR DANIELLE M
,OFFICE OF THE MAJORITY LEADER,2016Q4,GENERAL EXPENDITURES,PERSONNEL COMPENSATION,"","","",DIXON KELLY A.,10/1/16,12/31/16,DIR OF LEGISLATIVE OPERATIONS,7250,2016,DIXON KELLY A.
,OFFICE OF THE MAJORITY LEADER,2016Q4,GENERAL EXPENDITURES,PERSONNEL COMPENSATION,"","","",DRESSLER JEFFREY A,10/1/16,12/31/16,SENIOR POLICY ADVISOR,28250,2016,DRESSLER JEFFREY A
,OFFICE OF THE MAJORITY LEADER,2016Q4,GENERAL EXPENDITURES,PERSONNEL COMPENSATION,"","","",DUNHAM WILL,10/1/16,12/31/16,POLICY DIRECTOR,38000,2016,DUNHAM WILL
,OFFICE OF THE MAJORITY LEADER,2016Q4,GENERAL EXPENDITURES,PERSONNEL COMPENSATION,"","","",FLORIO JOHN A,10/1/16,12/31/16,SHARED EMPLOYEE,17000,2016,FLORIO JOHN A
,OFFICE OF THE MAJORITY LEADER,2016Q4,GENERAL EXPENDITURES,PERSONNEL COMPENSATION,"","","",GERZOF DEVIN A,10/1/16,12/31/16,STAFF ASSISTANT,9000,2016,GERZOF DEVIN A
,OFFICE OF THE MAJORITY LEADER,2016Q4,GENERAL EXPENDITURES,PERSONNEL COMPENSATION,"","","",GOURDIKIAN ALEXANDRA G,10/1/16,12/31/16,SCHEDULER,9500,2016,GOURDIKIAN ALEXANDRA G
,OFFICE OF THE MAJORITY LEADER,2016Q4,GENERAL EXPENDITURES,PERSONNEL COMPENSATION,"","","",HILL PRESTON W,10/1/16,12/31/16,SPECIAL ASSISTANT,11000,2016,HILL PRESTON W
,OFFICE OF THE MAJORITY LEADER,2016Q4,GENERAL EXPENDITURES,PERSONNEL COMPENSATION,"","","",HOWARD BENJAMIN R,10/1/16,12/31/16,DIRECTOR OF FLOOR OPERATIONS,28250,2016,HOWARD BENJAMIN R
,OFFICE OF THE MAJORITY LEADER,2016Q4,GENERAL EXPENDITURES,PERSONNEL COMPENSATION,"","","",KARR ELIZABETH B,10/1/16,12/31/16,DEPUTY CHIEF OF STAFF FOR POLI,42750,2016,KARR ELIZABETH B
,OFFICE OF THE MAJORITY LEADER,2016Q4,GENERAL EXPENDITURES,PERSONNEL COMPENSATION,"","","",KELLOGG MATTHEW B,10/1/16,12/31/16,SR POLICY ADVISOR & COUNSEL,29000,2016,KELLOGG MATTHEW B
,OFFICE OF THE MAJORITY LEADER,2016Q4,GENERAL EXPENDITURES,PERSONNEL COMPENSATION,"","","",LEGANSKI JOHN G,10/1/16,12/31/16,DEPUTY DIRECTOR OF FLOOR OPERA,16250,2016,LEGANSKI JOHN G
,OFFICE OF THE MAJORITY LEADER,2016Q4,GENERAL EXPENDITURES,PERSONNEL COMPENSATION,"","","",LIRA MATHEW L,10/1/16,12/31/16,SENIOR ADVISOR,27000,2016,LIRA MATHEW L
,OFFICE OF THE MAJORITY LEADER,2016Q4,GENERAL EXPENDITURES,PERSONNEL COMPENSATION,"","","",LONG MICHAEL P,10/1/16,12/31/16,COMMUNICATIONS DIRECTOR,28250,2016,LONG MICHAEL P
,OFFICE OF THE MAJORITY LEADER,2016Q4,GENERAL EXPENDITURES,PERSONNEL COMPENSATION,"","","",MAHAN ROGER A,10/1/16,12/31/16,SENIOR POLICY ADVISOR,34250,2016,MAHAN ROGER A
,OFFICE OF THE MAJORITY LEADER,2016Q4,GENERAL EXPENDITURES,PERSONNEL COMPENSATION,"","","",MEYER KATHERINE R,10/1/16,12/31/16,SENIOR POLICY ADVISOR,33500,2016,MEYER KATHERINE R
,OFFICE OF THE MAJORITY LEADER,2016Q4,GENERAL EXPENDITURES,PERSONNEL COMPENSATION,"","","",MIN JAMES B.,10/1/16,12/31/16,DEPUTY CHIEF OF STAFF/COUNSEL,23250,2016,MIN JAMES B.
,OFFICE OF THE MAJORITY LEADER,2016Q4,GENERAL EXPENDITURES,PERSONNEL COMPENSATION,"","","",PETERSON SAGE E,10/1/16,12/31/16,SENIOR STAFF ASSISTANT,10500,2016,PETERSON SAGE E
,OFFICE OF THE MAJORITY LEADER,2016Q4,GENERAL EXPENDITURES,PERSONNEL COMPENSATION,"","","",SPARKS MATTHEW E,10/1/16,12/31/16,PRESS SECRETARY,15500,2016,SPARKS MATTHEW E
,OFFICE OF THE MAJORITY LEADER,2016Q4,GENERAL EXPENDITURES,PERSONNEL COMPENSATION,"","","",STIPICEVIC KRISTIN,10/1/16,12/31/16,EXECUTIVE ASSISTANT,14750,2016,STIPICEVIC KRISTIN
,OFFICE OF THE MAJORITY LEADER,2016Q4,GENERAL EXPENDITURES,PERSONNEL COMPENSATION,"","","",TORRES ALEC C,10/1/16,12/31/16,COMM ADVISOR & SPEECHWRITER,15500,2016,TORRES ALEC C
,OFFICE OF THE MAJORITY LEADER,2016Q4,GENERAL EXPENDITURES,TRAVEL,10/20/16,AP,E0451682,PETERSON SAGE E.,10/13/16,10/13/16,TAXI/PARKING/TOLLS,33.17,2016,PETERSON SAGE E.
,OFFICE OF THE MAJORITY LEADER,2016Q4,GENERAL EXPENDITURES,TRAVEL,11/16/16,AP,E0459711,DRESSLER JEFFREY A.,10/14/16,10/14/16,TAXI/PARKING/TOLLS,20,2016,DRESSLER JEFFREY A.
,OFFICE OF THE MAJORITY LEADER,2016Q4,GENERAL EXPENDITURES,TRAVEL,12/15/16,AP,E0468638,PETERSON SAGE E.,12/2/16,12/2/16,TAXI/PARKING/TOLLS,16.86,2016,PETERSON SAGE E.
,OFFICE OF THE MAJORITY LEADER,2016Q4,GENERAL EXPENDITURES,RENT COMMUNICATION UTILITIES,11/18/16,AP,891293,CITI PCARD-USPS PO,9/29/16,9/30/16,POSTAGE / COURIER / BOX RENTAL,47,2016,CITI PCARD-USPS PO
,OFFICE OF THE MAJORITY LEADER,2016Q4,GENERAL EXPENDITURES,RENT COMMUNICATION UTILITIES,11/18/16,AP,891293,CITI PCARD-USPS PO,10/1/16,10/28/16,POSTAGE / COURIER / BOX RENTAL,47,2016,CITI PCARD-USPS PO
,OFFICE OF THE MAJORITY LEADER,2016Q4,GENERAL EXPENDITURES,RENT COMMUNICATION UTILITIES,12/20/16,AP,896455,CITI PCARD-USPS KIOSK,10/29/16,11/28/16,POSTAGE / COURIER / BOX RENTAL,11.94,2016,CITI PCARD-USPS KIOSK
,OFFICE OF THE MAJORITY LEADER,2016Q4,GENERAL EXPENDITURES,RENT COMMUNICATION UTILITIES,12/20/16,AP,896455,CITI PCARD-USPS PO,10/29/16,11/28/16,POSTAGE / COURIER / BOX RENTAL,1006.4,2016,CITI PCARD-USPS PO
,OFFICE OF THE MAJORITY LEADER,2016Q4,GENERAL EXPENDITURES,PRINTING AND REPRODUCTION,10/28/16,GL,PIX0062968,"",10/1/16,10/31/16,PHOTOGRAPHIC (TRANSFER),62.8,2016,""
,OFFICE OF THE MAJORITY LEADER,2016Q4,GENERAL EXPENDITURES,PRINTING AND REPRODUCTION,11/18/16,AP,891293,CITI PCARD-WWW.ISTOCK.COM,10/1/16,10/28/16,PRINTING & REPRODUCTION,220,2016,CITI PCARD-WWW.ISTOCK.COM
,OFFICE OF THE MAJORITY LEADER,2016Q4,GENERAL EXPENDITURES,SUPPLIES AND MATERIALS,10/19/16,AP,E0451673,MIN JAMES B.,9/22/16,9/22/16,HABITATION EXPENSE,208.65,2016,MIN JAMES B.
,OFFICE OF THE MAJORITY LEADER,2016Q4,GENERAL EXPENDITURES,SUPPLIES AND MATERIALS,10/19/16,AP,E0451674,READYREFRESH BY NESTLE,8/27/16,9/26/16,WATER,506.47,2016,READYREFRESH BY NESTLE
,OFFICE OF THE MAJORITY LEADER,2016Q4,GENERAL EXPENDITURES,SUPPLIES AND MATERIALS,10/21/16,AP,886235,CITI PCARD-CAPITOL HOST,8/29/16,9/28/16,FOOD & BEVERAGE,712.5,2016,CITI PCARD-CAPITOL HOST
,OFFICE OF THE MAJORITY LEADER,2016Q4,GENERAL EXPENDITURES,SUPPLIES AND MATERIALS,10/21/16,AP,886235,CITI PCARD-CAPTL VISITOR CTR,8/29/16,9/28/16,HABITATION EXPENSE,79.8,2016,CITI PCARD-CAPTL VISITOR CTR
,OFFICE OF THE MAJORITY LEADER,2016Q4,GENERAL EXPENDITURES,SUPPLIES AND MATERIALS,10/21/16,AP,886235,CITI PCARD-CORNER BAKERY,8/29/16,9/28/16,FOOD & BEVERAGE,1032,2016,CITI PCARD-CORNER BAKERY
,OFFICE OF THE MAJORITY LEADER,2016Q4,GENERAL EXPENDITURES,SUPPLIES AND MATERIALS,10/21/16,AP,886235,CITI PCARD-D J WALL-ST-JOURNAL,8/29/16,9/28/16,PUBLICATIONS/REFERENCE MAT'L,30.66,2016,CITI PCARD-D J WALL-ST-JOURNAL
,OFFICE OF THE MAJORITY LEADER,2016Q4,GENERAL EXPENDITURES,SUPPLIES AND MATERIALS,10/21/16,AP,886235,CITI PCARD-FIRST CHOICE COFFEE SE,8/29/16,9/28/16,FOOD & BEVERAGE,95.8,2016,CITI PCARD-FIRST CHOICE COFFEE SE
,OFFICE OF THE MAJORITY LEADER,2016Q4,GENERAL EXPENDITURES,SUPPLIES AND MATERIALS,10/21/16,AP,886235,CITI PCARD-FTP FINANCIAL TIMES,8/29/16,9/28/16,PUBLICATIONS/REFERENCE MAT'L,53,2016,CITI PCARD-FTP FINANCIAL TIMES
,OFFICE OF THE MAJORITY LEADER,2016Q4,GENERAL EXPENDITURES,SUPPLIES AND MATERIALS,10/21/16,AP,886235,CITI PCARD-HARRIS TEETER,8/29/16,9/28/16,FOOD & BEVERAGE,33.98,2016,CITI PCARD-HARRIS TEETER
,OFFICE OF THE MAJORITY LEADER,2016Q4,GENERAL EXPENDITURES,SUPPLIES AND MATERIALS,10/21/16,AP,886235,CITI PCARD-HARRISTEETER,8/29/16,9/28/16,FOOD & BEVERAGE,61.68,2016,CITI PCARD-HARRISTEETER
,OFFICE OF THE MAJORITY LEADER,2016Q4,GENERAL EXPENDITURES,SUPPLIES AND MATERIALS,10/21/16,AP,886235,CITI PCARD-NEW YORK TIMES DIGITAL,8/29/16,9/28/16,PUBLICATIONS/REFERENCE MAT'L,74.02,2016,CITI PCARD-NEW YORK TIMES DIGITAL
,OFFICE OF THE MAJORITY LEADER,2016Q4,GENERAL EXPENDITURES,SUPPLIES AND MATERIALS,10/21/16,AP,886235,CITI PCARD-THEINFORMATION.COM,8/29/16,9/28/16,PUBLICATIONS/REFERENCE MAT'L,39,2016,CITI PCARD-THEINFORMATION.COM
,OFFICE OF THE MAJORITY LEADER,2016Q4,GENERAL EXPENDITURES,SUPPLIES AND MATERIALS,10/25/16,AP,883688,DEER PARK,9/30/16,9/30/16,WATER,151.87,2016,DEER PARK
,OFFICE OF THE MAJORITY LEADER,2016Q4,GENERAL EXPENDITURES,SUPPLIES AND MATERIALS,11/9/16,AP,E0457797,READYREFRESH BY NESTLE,10/7/16,10/26/16,WATER,289.37,2016,READYREFRESH BY NESTLE
,OFFICE OF THE MAJORITY LEADER,2016Q4,GENERAL EXPENDITURES,SUPPLIES AND MATERIALS,11/18/16,AP,891293,CITI PCARD-D J WALL-ST-JOURNAL,10/1/16,10/28/16,PUBLICATIONS/REFERENCE MAT'L,30.66,2016,CITI PCARD-D J WALL-ST-JOURNAL
,OFFICE OF THE MAJORITY LEADER,2016Q4,GENERAL EXPENDITURES,SUPPLIES AND MATERIALS,11/18/16,AP,891293,CITI PCARD-FIRST CHOICE COFFEE SE,10/1/16,10/28/16,FOOD & BEVERAGE,103.7,2016,CITI PCARD-FIRST CHOICE COFFEE SE
,OFFICE OF THE MAJORITY LEADER,2016Q4,GENERAL EXPENDITURES,SUPPLIES AND MATERIALS,11/18/16,AP,891293,CITI PCARD-FTP FINANCIAL TIMES,9/29/16,9/30/16,PUBLICATIONS/REFERENCE MAT'L,53,2016,CITI PCARD-FTP FINANCIAL TIMES
,OFFICE OF THE MAJORITY LEADER,2016Q4,GENERAL EXPENDITURES,SUPPLIES AND MATERIALS,11/18/16,AP,891293,CITI PCARD-NEW YORK TIMES DIGITAL,10/1/16,10/28/16,PUBLICATIONS/REFERENCE MAT'L,37.01,2016,CITI PCARD-NEW YORK TIMES DIGITAL
,OFFICE OF THE MAJORITY LEADER,2016Q4,GENERAL EXPENDITURES,SUPPLIES AND MATERIALS,11/18/16,AP,891293,CITI PCARD-THEINFORMATION.COM,10/1/16,10/28/16,PUBLICATIONS/REFERENCE MAT'L,39,2016,CITI PCARD-THEINFORMATION.COM
,OFFICE OF THE MAJORITY LEADER,2016Q4,GENERAL EXPENDITURES,SUPPLIES AND MATERIALS,11/21/16,AP,891234,DEER PARK,10/31/16,10/31/16,WATER,145.35,2016,DEER PARK
,OFFICE OF THE MAJORITY LEADER,2016Q4,GENERAL EXPENDITURES,SUPPLIES AND MATERIALS,12/1/16,AP,E0464580,MIN JAMES B.,11/21/16,11/21/16,FOOD & BEVERAGE,500.68,2016,MIN JAMES B.
,OFFICE OF THE MAJORITY LEADER,2016Q4,GENERAL EXPENDITURES,SUPPLIES AND MATERIALS,12/15/16,AP,E0468625,READYREFRESH BY NESTLE,10/27/16,11/26/16,WATER,431.13,2016,READYREFRESH BY NESTLE
,OFFICE OF THE MAJORITY LEADER,2016Q4,GENERAL EXPENDITURES,SUPPLIES AND MATERIALS,12/20/16,AP,896430,DEER PARK,11/30/16,11/30/16,WATER,197.71,2016,DEER PARK
,OFFICE OF THE MAJORITY LEADER,2016Q4,GENERAL EXPENDITURES,SUPPLIES AND MATERIALS,12/20/16,AP,896455,CITI PCARD-D J WALL-ST-JOURNAL,10/29/16,11/28/16,PUBLICATIONS/REFERENCE MAT'L,30.66,2016,CITI PCARD-D J WALL-ST-JOURNAL
,OFFICE OF THE MAJORITY LEADER,2016Q4,GENERAL EXPENDITURES,SUPPLIES AND MATERIALS,12/20/16,AP,896455,CITI PCARD-FIRST CHOICE COFFEE SE,10/29/16,11/28/16,FOOD & BEVERAGE,488.58,2016,CITI PCARD-FIRST CHOICE COFFEE SE
,OFFICE OF THE MAJORITY LEADER,2016Q4,GENERAL EXPENDITURES,SUPPLIES AND MATERIALS,12/20/16,AP,896455,CITI PCARD-FTP FINANCIAL TIMES,10/29/16,11/28/16,PUBLICATIONS/REFERENCE MAT'L,53,2016,CITI PCARD-FTP FINANCIAL TIMES
,OFFICE OF THE MAJORITY LEADER,2016Q4,GENERAL EXPENDITURES,SUPPLIES AND MATERIALS,12/20/16,AP,896455,CITI PCARD-HARRIS TEETER,10/29/16,11/28/16,FOOD & BEVERAGE,73.64,2016,CITI PCARD-HARRIS TEETER
,OFFICE OF THE MAJORITY LEADER,2016Q4,GENERAL EXPENDITURES,SUPPLIES AND MATERIALS,12/20/16,AP,896455,CITI PCARD-NEW YORK TIMES DIGITAL,10/29/16,11/28/16,PUBLICATIONS/REFERENCE MAT'L,37.01,2016,CITI PCARD-NEW YORK TIMES DIGITAL
,OFFICE OF THE MAJORITY LEADER,2016Q4,GENERAL EXPENDITURES,SUPPLIES AND MATERIALS,12/20/16,AP,896455,CITI PCARD-SAFEWAY STORE,10/29/16,11/28/16,FOOD & BEVERAGE,44.78,2016,CITI PCARD-SAFEWAY STORE
,OFFICE OF THE MAJORITY LEADER,2016Q4,GENERAL EXPENDITURES,SUPPLIES AND MATERIALS,12/20/16,AP,896455,CITI PCARD-THEINFORMATION.COM,10/29/16,11/28/16,PUBLICATIONS/REFERENCE MAT'L,39,2016,CITI PCARD-THEINFORMATION.COM
,OFFICE OF THE MINORITY LEADER,2016Q4,GENERAL EXPENDITURES,PERSONNEL COMPENSATION,"","","",ADAMS CARRIE E,10/1/16,12/31/16,DIGITAL DIRECTOR,28999.99,2016,ADAMS CARRIE E
,OFFICE OF THE MINORITY LEADER,2016Q4,GENERAL EXPENDITURES,PERSONNEL COMPENSATION,"","","",ADRIANCE EDWIN A,10/1/16,10/7/16,DEPUTY PRESS SECRETARY,981.94,2016,ADRIANCE EDWIN A
,OFFICE OF THE MINORITY LEADER,2016Q4,GENERAL EXPENDITURES,PERSONNEL COMPENSATION,"","","",ADRIANCE EDWIN A,10/1/16,10/7/16,DEPUTY PRESS SECRETARY (OTHER COMPENSATION),3296.53,2016,ADRIANCE EDWIN A
,OFFICE OF THE MINORITY LEADER,2016Q4,GENERAL EXPENDITURES,PERSONNEL COMPENSATION,"","","",AGUILAR JORGE A,10/1/16,12/31/16,PRESS SEC/DIR HISPANIC MEDIA,22750,2016,AGUILAR JORGE A
,OFFICE OF THE MINORITY LEADER,2016Q4,GENERAL EXPENDITURES,PERSONNEL COMPENSATION,"","","",BARON ZACHARY L,10/1/16,12/31/16,SELECT PANEL SENIOR COUNSEL,9999.99,2016,BARON ZACHARY L
,OFFICE OF THE MINORITY LEADER,2016Q4,GENERAL EXPENDITURES,PERSONNEL COMPENSATION,"","","",BEHRINGER CAROLINE,10/1/16,12/31/16,DEPUTY COMMUNICATIONS DIRECTOR,35699.99,2016,BEHRINGER CAROLINE
,OFFICE OF THE MINORITY LEADER,2016Q4,GENERAL EXPENDITURES,PERSONNEL COMPENSATION,"","","",BERRET EMILY C,10/1/16,12/31/16,SPECIAL ASST TO THE LEADER,21499.99,2016,BERRET EMILY C
,OFFICE OF THE MINORITY LEADER,2016Q4,GENERAL EXPENDITURES,PERSONNEL COMPENSATION,"","","",BLOOM MICHAEL T.,10/1/16,12/31/16,SENIOR ADVISOR,32749.99,2016,BLOOM MICHAEL T.
,OFFICE OF THE MINORITY LEADER,2016Q4,GENERAL EXPENDITURES,PERSONNEL COMPENSATION,"","","",CAPRON MARGARET W.,10/1/16,12/31/16,SENIOR ADV POLICY & COMM,36074.24,2016,CAPRON MARGARET W.
,OFFICE OF THE MINORITY LEADER,2016Q4,GENERAL EXPENDITURES,PERSONNEL COMPENSATION,"","","",CAYEA DEVAN W,10/1/16,12/31/16,DEPUTY DIRECTOR OF ADVANCE,20250.01,2016,CAYEA DEVAN W
,OFFICE OF THE MINORITY LEADER,2016Q4,GENERAL EXPENDITURES,PERSONNEL COMPENSATION,"","","",CHERRY STEPHANIE,10/1/16,12/31/16,DIRECTOR OF MEDIA AFFAIRS,21962.26,2016,CHERRY STEPHANIE
,OFFICE OF THE MINORITY LEADER,2016Q4,GENERAL EXPENDITURES,PERSONNEL COMPENSATION,"","","",CONNELLY HENRY V,10/1/16,12/31/16,DIRECTOR OF SPEECHWRITING,25249.99,2016,CONNELLY HENRY V
,OFFICE OF THE MINORITY LEADER,2016Q4,GENERAL EXPENDITURES,PERSONNEL COMPENSATION,"","","",DEGRAFF KENNETH B.,10/1/16,12/31/16,SENIOR POLICY ADVISOR,32749.99,2016,DEGRAFF KENNETH B.
,OFFICE OF THE MINORITY LEADER,2016Q4,GENERAL EXPENDITURES,PERSONNEL COMPENSATION,"","","",DEVLIN PATRICK J.,10/1/16,12/31/16,COMMUNICATIONS DIRECTOR,34750.01,2016,DEVLIN PATRICK J.
,OFFICE OF THE MINORITY LEADER,2016Q4,GENERAL EXPENDITURES,PERSONNEL COMPENSATION,"","","",DEWHIRST DIANE,10/1/16,12/31/16,DEPUTY CHIEF OF STAFF,43125,2016,DEWHIRST DIANE
,OFFICE OF THE MINORITY LEADER,2016Q4,GENERAL EXPENDITURES,PERSONNEL COMPENSATION,"","","",EDMONSON ROBERT D,10/1/16,12/31/16,CHIEF OF STAFF,17499.99,2016,EDMONSON ROBERT D
,OFFICE OF THE MINORITY LEADER,2016Q4,GENERAL EXPENDITURES,PERSONNEL COMPENSATION,"","","",ELSHAMI NADEAM,10/1/16,12/31/16,CHIEF OF STAFF,43125,2016,ELSHAMI NADEAM
,OFFICE OF THE MINORITY LEADER,2016Q4,GENERAL EXPENDITURES,PERSONNEL COMPENSATION,"","","",FISCHER JR ROBERT V.,10/1/16,12/31/16,ASST FLOOR CHIEF,43125,2016,FISCHER JR ROBERT V.
,OFFICE OF THE MINORITY LEADER,2016Q4,GENERAL EXPENDITURES,PERSONNEL COMPENSATION,"","","",GREENER APRIL L.,10/1/16,12/31/16,RESEARCH DIRECTOR,30250,2016,GREENER APRIL L.
,OFFICE OF THE MINORITY LEADER,2016Q4,GENERAL EXPENDITURES,PERSONNEL COMPENSATION,"","","",GRIFFIN SAHARRA E,10/1/16,12/31/16,ASST TO THE EXECUTIVE OFFICE,12250,2016,GRIFFIN SAHARRA E
,OFFICE OF THE MINORITY LEADER,2016Q4,GENERAL EXPENDITURES,PERSONNEL COMPENSATION,"","","",GRIFFIN SAHARRA E,9/1/16,11/30/16,ASST TO THE EXECUTIVE OFFICE (OVERTIME),2939.03,2016,GRIFFIN SAHARRA E
,OFFICE OF THE MINORITY LEADER,2016Q4,GENERAL EXPENDITURES,PERSONNEL COMPENSATION,"","","",GRIFFIN TAYLOR T,10/1/16,10/10/16,PRESS ASSISTANT,972.22,2016,GRIFFIN TAYLOR T
,OFFICE OF THE MINORITY LEADER,2016Q4,GENERAL EXPENDITURES,PERSONNEL COMPENSATION,"","","",GRIFFIN TAYLOR T,10/11/16,12/31/16,DEPUTY PRESS SECRETARY,15222.22,2016,GRIFFIN TAYLOR T
,OFFICE OF THE MINORITY LEADER,2016Q4,GENERAL EXPENDITURES,PERSONNEL COMPENSATION,"","","",GRIFFIN TAYLOR T,9/1/16,9/30/16,PRESS ASSISTANT (OVERTIME),984.36,2016,GRIFFIN TAYLOR T
,OFFICE OF THE MINORITY LEADER,2016Q4,GENERAL EXPENDITURES,PERSONNEL COMPENSATION,"","","",GRIFFIN TAYLOR T,10/1/16,10/30/16,DEPUTY PRESS SECRETARY (OVERTIME),218.51,2016,GRIFFIN TAYLOR T
,OFFICE OF THE MINORITY LEADER,2016Q4,GENERAL EXPENDITURES,PERSONNEL COMPENSATION,"","","",HAMMILL ANDREW T.,10/1/16,12/31/16,DEPUTY CHIEF OF STAFF,43125,2016,HAMMILL ANDREW T.
,OFFICE OF THE MINORITY LEADER,2016Q4,GENERAL EXPENDITURES,PERSONNEL COMPENSATION,"","","",HAYNES JR WILFRED J.,10/1/16,12/31/16,IT DIRECTOR,28530.49,2016,HAYNES JR WILFRED J.
,OFFICE OF THE MINORITY LEADER,2016Q4,GENERAL EXPENDITURES,PERSONNEL COMPENSATION,"","","",HOLMES NATHANIEL J,10/1/16,12/31/16,DEPUTY DIRECTOR OF SCHEDULING,18124.99,2016,HOLMES NATHANIEL J
,OFFICE OF THE MINORITY LEADER,2016Q4,GENERAL EXPENDITURES,PERSONNEL COMPENSATION,"","","",KAPLAN EMMA L,10/1/16,12/31/16,MBR SERV ADVISER/SPECIAL ASST,19624.99,2016,KAPLAN EMMA L
,OFFICE OF THE MINORITY LEADER,2016Q4,GENERAL EXPENDITURES,PERSONNEL COMPENSATION,"","","",KEATING ROSE M,10/1/16,12/31/16,ASST FLOOR MANAGER,34750.01,2016,KEATING ROSE M
,OFFICE OF THE MINORITY LEADER,2016Q4,GENERAL EXPENDITURES,PERSONNEL COMPENSATION,"","","",KEITA KAMILAH Z,10/1/16,12/31/16,DEPUTY INFOMATION TECH. DIRECT,26283.01,2016,KEITA KAMILAH Z
,OFFICE OF THE MINORITY LEADER,2016Q4,GENERAL EXPENDITURES,PERSONNEL COMPENSATION,"","","",KUNDANIS GEORGE,10/1/16,12/31/16,DEPUTY CHIEF OF STAFF,43125,2016,KUNDANIS GEORGE
,OFFICE OF THE MINORITY LEADER,2016Q4,GENERAL EXPENDITURES,PERSONNEL COMPENSATION,"","","",LEE SERYEUNG,10/1/16,10/10/16,PRESS ASSISTANT,833.34,2016,LEE SERYEUNG
,OFFICE OF THE MINORITY LEADER,2016Q4,GENERAL EXPENDITURES,PERSONNEL COMPENSATION,"","","",LEE SERYEUNG,10/11/16,12/31/16,SENIOR PRESS ASSISTANT,11777.78,2016,LEE SERYEUNG
,OFFICE OF THE MINORITY LEADER,2016Q4,GENERAL EXPENDITURES,PERSONNEL COMPENSATION,"","","",LEE SERYEUNG,9/1/16,9/30/16,PRESS ASSISTANT (OVERTIME),914.05,2016,LEE SERYEUNG
,OFFICE OF THE MINORITY LEADER,2016Q4,GENERAL EXPENDITURES,PERSONNEL COMPENSATION,"","","",LEE SERYEUNG,10/1/16,11/30/16,SENIOR PRESS ASSISTANT (OVERTIME),1217.83,2016,LEE SERYEUNG
,OFFICE OF THE MINORITY LEADER,2016Q4,GENERAL EXPENDITURES,PERSONNEL COMPENSATION,"","","",LIZARRAGA JAIME E.,10/1/16,12/31/16,SR ADV & DIR OF MEMBER SVC,39112.92,2016,LIZARRAGA JAIME E.
,OFFICE OF THE MINORITY LEADER,2016Q4,GENERAL EXPENDITURES,PERSONNEL COMPENSATION,"","","",LONG MICHAEL G,10/1/16,12/31/16,SENIOR ADVISOR,32749.99,2016,LONG MICHAEL G
,OFFICE OF THE MINORITY LEADER,2016Q4,GENERAL EXPENDITURES,PERSONNEL COMPENSATION,"","","",MANGRUM PEARL J.,10/1/16,12/31/16,FINANCIAL ADMINISTRATOR,21125.01,2016,MANGRUM PEARL J.
,OFFICE OF THE MINORITY LEADER,2016Q4,GENERAL EXPENDITURES,PERSONNEL COMPENSATION,"","","",MASON TAMIKA K,10/1/16,12/31/16,SR STAFF ASST SYS ADMIN,16500.01,2016,MASON TAMIKA K
,OFFICE OF THE MINORITY LEADER,2016Q4,GENERAL EXPENDITURES,PERSONNEL COMPENSATION,"","","",MELTZER RICHARD,10/1/16,12/31/16,POLICY DIRECTOR,43125,2016,MELTZER RICHARD
,OFFICE OF THE MINORITY LEADER,2016Q4,GENERAL EXPENDITURES,PERSONNEL COMPENSATION,"","","",MONGE KATHERINE S,10/1/16,12/31/16,SENIOR POLICY ADVISOR,39034,2016,MONGE KATHERINE S
,OFFICE OF THE MINORITY LEADER,2016Q4,GENERAL EXPENDITURES,PERSONNEL COMPENSATION,"","","",PALMER ASHLI S,10/1/16,12/31/16,POLICY DIRECTOR,35699.99,2016,PALMER ASHLI S
,OFFICE OF THE MINORITY LEADER,2016Q4,GENERAL EXPENDITURES,PERSONNEL COMPENSATION,"","","",PARKER WYNDEE R.,10/1/16,12/31/16,SENIOR POLICY ADVISOR,43125,2016,PARKER WYNDEE R.
,OFFICE OF THE MINORITY LEADER,2016Q4,GENERAL EXPENDITURES,PERSONNEL COMPENSATION,"","","",PFEIFFER AMY M,10/1/16,12/31/16,SENIOR ADVISOR,28999.99,2016,PFEIFFER AMY M
,OFFICE OF THE MINORITY LEADER,2016Q4,GENERAL EXPENDITURES,PERSONNEL COMPENSATION,"","","",POWELL LATRICE S,10/1/16,12/31/16,ASSISTANT CLOAKROOM MANAGER,31500.01,2016,POWELL LATRICE S
,OFFICE OF THE MINORITY LEADER,2016Q4,GENERAL EXPENDITURES,PERSONNEL COMPENSATION,"","","",PRICE REVA B.,10/1/16,12/31/16,OUTREACH DIRECTOR & ADVISOR,35316.26,2016,PRICE REVA B.
,OFFICE OF THE MINORITY LEADER,2016Q4,GENERAL EXPENDITURES,PERSONNEL COMPENSATION,"","","",PRIMUS WENDELL E.,10/1/16,12/31/16,SENIOR POLICY ADVISOR,43125,2016,PRIMUS WENDELL E.
,OFFICE OF THE MINORITY LEADER,2016Q4,GENERAL EXPENDITURES,PERSONNEL COMPENSATION,"","","",RICCIO ANDREA M,10/1/16,12/31/16,DEP DIR DEM POL & COMM CMTE,16361.12,2016,RICCIO ANDREA M
,OFFICE OF THE MINORITY LEADER,2016Q4,GENERAL EXPENDITURES,PERSONNEL COMPENSATION,"","","",RICCIO ANDREA M,12/1/16,12/31/16,DEP DIR DEM POL & COMM CMTE (OTHER COMPENSATION),7388.89,2016,RICCIO ANDREA M
,OFFICE OF THE MINORITY LEADER,2016Q4,GENERAL EXPENDITURES,PERSONNEL COMPENSATION,"","","",ROBINSON MALAIKA,10/1/16,12/31/16,DEP DIR OF SPEECHWRITING,20250.01,2016,ROBINSON MALAIKA
,OFFICE OF THE MINORITY LEADER,2016Q4,GENERAL EXPENDITURES,PERSONNEL COMPENSATION,"","","",ROCHELLE COURTNEY E,10/1/16,12/31/16,DISTRICT SCHEDULER/EXEC ASSIST,5000.01,2016,ROCHELLE COURTNEY E
,OFFICE OF THE MINORITY LEADER,2016Q4,GENERAL EXPENDITURES,PERSONNEL COMPENSATION,"","","",SLATER SAMANTHA A,10/1/16,12/31/16,EXEC DIR DEM POLICY COMM CMTE,32249.99,2016,SLATER SAMANTHA A
,OFFICE OF THE MINORITY LEADER,2016Q4,GENERAL EXPENDITURES,PERSONNEL COMPENSATION,"","","",SMITH KELSEY L,10/1/16,12/31/16,DIR. OF SCHEDULING & ADVANCE,26500,2016,SMITH KELSEY L
,OFFICE OF THE MINORITY LEADER,2016Q4,GENERAL EXPENDITURES,PERSONNEL COMPENSATION,"","","",STERN KEITH L.,10/1/16,12/31/16,DIRECTOR OF FLOOR OPERATIONS,40699.99,2016,STERN KEITH L.
,OFFICE OF THE MINORITY LEADER,2016Q4,GENERAL EXPENDITURES,PERSONNEL COMPENSATION,"","","",SURGEON BINA G,10/1/16,12/31/16,SPECIAL ASST TO THE LEADER,31500.01,2016,SURGEON BINA G
,OFFICE OF THE MINORITY LEADER,2016Q4,GENERAL EXPENDITURES,PERSONNEL COMPENSATION,"","","",TECKLENBURG MICHAEL H.,10/1/16,12/31/16,COUNSEL,35699.99,2016,TECKLENBURG MICHAEL H.
,OFFICE OF THE MINORITY LEADER,2016Q4,GENERAL EXPENDITURES,PERSONNEL COMPENSATION,"","","",WALTERS SARAH S,10/1/16,12/31/16,DIGITAL ASSISTANT,11500,2016,WALTERS SARAH S
,OFFICE OF THE MINORITY LEADER,2016Q4,GENERAL EXPENDITURES,PERSONNEL COMPENSATION,"","","",WALTERS SARAH S,9/1/16,11/30/16,DIGITAL ASSISTANT (OVERTIME),692.3,2016,WALTERS SARAH S
,OFFICE OF THE MINORITY LEADER,2016Q4,GENERAL EXPENDITURES,PERSONNEL COMPENSATION,"","","",WATKINS YELBERTON R.,10/1/16,12/31/16,CHIEF OF STAFF,41250,2016,WATKINS YELBERTON R.
,OFFICE OF THE MINORITY LEADER,2016Q4,GENERAL EXPENDITURES,PERSONNEL COMPENSATION,"","","",WEST JULIUS L,10/1/16,12/31/16,ADVISER MEMBER SERVICES,22000,2016,WEST JULIUS L
,OFFICE OF THE MINORITY LEADER,2016Q4,GENERAL EXPENDITURES,PERSONNEL COMPENSATION,"","","",WOLTERS KATE,10/1/16,12/31/16,DIRECTOR OF PROTOCOL,37964.5,2016,WOLTERS KATE
,OFFICE OF THE MINORITY LEADER,2016Q4,GENERAL EXPENDITURES,TRAVEL,10/3/16,AP,E0446381,KAPLAN EMMA L.,9/15/16,9/15/16,TAXI/PARKING/TOLLS,7.14,2016,KAPLAN EMMA L.
,OFFICE OF THE MINORITY LEADER,2016Q4,GENERAL EXPENDITURES,TRAVEL,10/3/16,AP,E0446381,KAPLAN EMMA L.,9/20/16,9/20/16,TAXI/PARKING/TOLLS,6.93,2016,KAPLAN EMMA L.
,OFFICE OF THE MINORITY LEADER,2016Q4,GENERAL EXPENDITURES,TRAVEL,10/3/16,AP,E0446381,KAPLAN EMMA L.,9/21/16,9/21/16,TAXI/PARKING/TOLLS,8.32,2016,KAPLAN EMMA L.
,OFFICE OF THE MINORITY LEADER,2016Q4,GENERAL EXPENDITURES,TRAVEL,10/3/16,AP,E0446382,BERRET EMILY C.,9/24/16,9/24/16,TAXI/PARKING/TOLLS,30.83,2016,BERRET EMILY C.
,OFFICE OF THE MINORITY LEADER,2016Q4,GENERAL EXPENDITURES,TRAVEL,10/19/16,AP,E0451476,ROCHELLE COURTNEY,9/19/16,9/19/16,TAXI/PARKING/TOLLS,37.95,2016,ROCHELLE COURTNEY
,OFFICE OF THE MINORITY LEADER,2016Q4,GENERAL EXPENDITURES,TRAVEL,10/19/16,AP,E0451479,BERRET EMILY C.,9/29/16,10/8/16,TAXI/PARKING/TOLLS,66.39,2016,BERRET EMILY C.
,OFFICE OF THE MINORITY LEADER,2016Q4,GENERAL EXPENDITURES,TRAVEL,10/19/16,AP,E0451480,CITIBANK GOV CARD SERVICE,9/19/16,9/19/16,COMMERCIAL TRANSPORTATION,486.08,2016,CITIBANK GOV CARD SERVICE
,OFFICE OF THE MINORITY LEADER,2016Q4,GENERAL EXPENDITURES,TRAVEL,10/19/16,AP,E0451480,CITIBANK GOV CARD SERVICE,9/19/16,9/19/16,MEALS,34.25,2016,CITIBANK GOV CARD SERVICE
,OFFICE OF THE MINORITY LEADER,2016Q4,GENERAL EXPENDITURES,TRAVEL,10/19/16,AP,E0451481,CITIBANK GOV CARD SERVICE,9/15/16,9/15/16,COMMERCIAL TRANSPORTATION,346,2016,CITIBANK GOV CARD SERVICE
,OFFICE OF THE MINORITY LEADER,2016Q4,GENERAL EXPENDITURES,TRAVEL,10/19/16,AP,E0451481,CITIBANK GOV CARD SERVICE,9/16/16,9/16/16,COMMERCIAL TRANSPORTATION,76,2016,CITIBANK GOV CARD SERVICE
,OFFICE OF THE MINORITY LEADER,2016Q4,GENERAL EXPENDITURES,TRAVEL,10/19/16,AP,E0451481,CITIBANK GOV CARD SERVICE,9/15/16,9/16/16,LODGING,323.65,2016,CITIBANK GOV CARD SERVICE
,OFFICE OF THE MINORITY LEADER,2016Q4,GENERAL EXPENDITURES,TRAVEL,10/19/16,AP,E0451484,CITIBANK GOV CARD SERVICE,9/15/16,9/16/16,COMMERCIAL TRANSPORTATION,122.2,2016,CITIBANK GOV CARD SERVICE
,OFFICE OF THE MINORITY LEADER,2016Q4,GENERAL EXPENDITURES,TRAVEL,10/19/16,AP,E0451484,CITIBANK GOV CARD SERVICE,9/15/16,9/16/16,LODGING,452.19,2016,CITIBANK GOV CARD SERVICE
,OFFICE OF THE MINORITY LEADER,2016Q4,GENERAL EXPENDITURES,TRAVEL,10/19/16,AP,E0451484,CITIBANK GOV CARD SERVICE,9/15/16,9/15/16,MEALS,12.47,2016,CITIBANK GOV CARD SERVICE
,OFFICE OF THE MINORITY LEADER,2016Q4,GENERAL EXPENDITURES,TRAVEL,10/19/16,AP,E0451484,CITIBANK GOV CARD SERVICE,9/16/16,9/16/16,MEALS,51.83,2016,CITIBANK GOV CARD SERVICE
,OFFICE OF THE MINORITY LEADER,2016Q4,GENERAL EXPENDITURES,TRAVEL,10/19/16,AP,E0451484,CITIBANK GOV CARD SERVICE,8/10/16,8/11/16,TAXI/PARKING/TOLLS,34.67,2016,CITIBANK GOV CARD SERVICE
,OFFICE OF THE MINORITY LEADER,2016Q4,GENERAL EXPENDITURES,TRAVEL,10/19/16,AP,E0451484,CITIBANK GOV CARD SERVICE,9/15/16,9/15/16,TAXI/PARKING/TOLLS,59.34,2016,CITIBANK GOV CARD SERVICE
,OFFICE OF THE MINORITY LEADER,2016Q4,GENERAL EXPENDITURES,TRAVEL,10/19/16,AP,E0451484,CITIBANK GOV CARD SERVICE,9/16/16,9/16/16,TAXI/PARKING/TOLLS,57.6,2016,CITIBANK GOV CARD SERVICE
,OFFICE OF THE MINORITY LEADER,2016Q4,GENERAL EXPENDITURES,TRAVEL,10/19/16,AP,E0451484,CITIBANK GOV CARD SERVICE,9/16/16,9/20/16,TAXI/PARKING/TOLLS,8.28,2016,CITIBANK GOV CARD SERVICE
,OFFICE OF THE MINORITY LEADER,2016Q4,GENERAL EXPENDITURES,TRAVEL,10/19/16,AP,E0451485,CITIBANK GOV CARD SERVICE,9/13/16,9/13/16,COMMERCIAL TRANSPORTATION,61.1,2016,CITIBANK GOV CARD SERVICE
,OFFICE OF THE MINORITY LEADER,2016Q4,GENERAL EXPENDITURES,TRAVEL,10/19/16,AP,E0451485,CITIBANK GOV CARD SERVICE,9/15/16,9/15/16,COMMERCIAL TRANSPORTATION,61.1,2016,CITIBANK GOV CARD SERVICE
,OFFICE OF THE MINORITY LEADER,2016Q4,GENERAL EXPENDITURES,TRAVEL,10/19/16,AP,E0451486,CITIBANK GOV CARD SERVICE,9/24/16,9/24/16,COMMERCIAL TRANSPORTATION,152.2,2016,CITIBANK GOV CARD SERVICE
,OFFICE OF THE MINORITY LEADER,2016Q4,GENERAL EXPENDITURES,TRAVEL,10/19/16,AP,E0451501,CITIBANK GOV CARD SERVICE,9/23/16,9/23/16,COMMERCIAL TRANSPORTATION,61.1,2016,CITIBANK GOV CARD SERVICE
,OFFICE OF THE MINORITY LEADER,2016Q4,GENERAL EXPENDITURES,TRAVEL,10/19/16,AP,E0451501,CITIBANK GOV CARD SERVICE,9/24/16,9/24/16,COMMERCIAL TRANSPORTATION,91.1,2016,CITIBANK GOV CARD SERVICE
,OFFICE OF THE MINORITY LEADER,2016Q4,GENERAL EXPENDITURES,TRAVEL,10/19/16,AP,E0451501,CITIBANK GOV CARD SERVICE,9/23/16,9/24/16,LODGING,335.13,2016,CITIBANK GOV CARD SERVICE
,OFFICE OF THE MINORITY LEADER,2016Q4,GENERAL EXPENDITURES,TRAVEL,10/19/16,AP,E0451501,CITIBANK GOV CARD SERVICE,9/23/16,9/23/16,MEALS,20.73,2016,CITIBANK GOV CARD SERVICE
,OFFICE OF THE MINORITY LEADER,2016Q4,GENERAL EXPENDITURES,TRAVEL,10/19/16,AP,E0451501,CITIBANK GOV CARD SERVICE,9/24/16,9/24/16,MEALS,29.74,2016,CITIBANK GOV CARD SERVICE
,OFFICE OF THE MINORITY LEADER,2016Q4,GENERAL EXPENDITURES,TRAVEL,10/19/16,AP,E0451501,CITIBANK GOV CARD SERVICE,9/23/16,9/23/16,TAXI/PARKING/TOLLS,83.3,2016,CITIBANK GOV CARD SERVICE
,OFFICE OF THE MINORITY LEADER,2016Q4,GENERAL EXPENDITURES,TRAVEL,10/24/16,AP,886332,CAYEA DEVAN W.,9/15/16,9/15/16,TAXI/PARKING/TOLLS,17.07,2016,CAYEA DEVAN W.
,OFFICE OF THE MINORITY LEADER,2016Q4,GENERAL EXPENDITURES,TRAVEL,10/24/16,AP,E0453641,BEHRINGER CAROLINE,10/6/16,10/10/16,TAXI/PARKING/TOLLS,65.41,2016,BEHRINGER CAROLINE
,OFFICE OF THE MINORITY LEADER,2016Q4,GENERAL EXPENDITURES,TRAVEL,10/24/16,AP,E0453642,CITIBANK GOV CARD SERVICE,9/13/16,9/25/16,COMMERCIAL TRANSPORTATION,424.4,2016,CITIBANK GOV CARD SERVICE
,OFFICE OF THE MINORITY LEADER,2016Q4,GENERAL EXPENDITURES,TRAVEL,10/24/16,AP,E0453642,CITIBANK GOV CARD SERVICE,9/4/16,9/24/16,LODGING,1264.24,2016,CITIBANK GOV CARD SERVICE
,OFFICE OF THE MINORITY LEADER,2016Q4,GENERAL EXPENDITURES,TRAVEL,10/24/16,AP,E0453642,CITIBANK GOV CARD SERVICE,9/13/16,9/26/16,MEALS,100.91,2016,CITIBANK GOV CARD SERVICE
,OFFICE OF THE MINORITY LEADER,2016Q4,GENERAL EXPENDITURES,TRAVEL,10/24/16,AP,E0453642,CITIBANK GOV CARD SERVICE,9/13/16,9/25/16,TAXI/PARKING/TOLLS,337.57,2016,CITIBANK GOV CARD SERVICE
,OFFICE OF THE MINORITY LEADER,2016Q4,GENERAL EXPENDITURES,TRAVEL,10/26/16,AP,E0454554,CITIBANK GOV CARD SERVICE,9/11/16,9/11/16,COMMERCIAL TRANSPORTATION,61.1,2016,CITIBANK GOV CARD SERVICE
,OFFICE OF THE MINORITY LEADER,2016Q4,GENERAL EXPENDITURES,TRAVEL,10/26/16,AP,E0454554,CITIBANK GOV CARD SERVICE,9/24/16,9/24/16,COMMERCIAL TRANSPORTATION,152.2,2016,CITIBANK GOV CARD SERVICE
,OFFICE OF THE MINORITY LEADER,2016Q4,GENERAL EXPENDITURES,TRAVEL,11/2/16,AP,E0455242,SURGEON BINA G,10/11/16,10/11/16,MEALS,25.2,2016,SURGEON BINA G
,OFFICE OF THE MINORITY LEADER,2016Q4,GENERAL EXPENDITURES,TRAVEL,11/2/16,AP,E0455242,SURGEON BINA G,10/1/16,10/12/16,TAXI/PARKING/TOLLS,90.42,2016,SURGEON BINA G
,OFFICE OF THE MINORITY LEADER,2016Q4,GENERAL EXPENDITURES,TRAVEL,11/2/16,AP,E0455243,PRICE REVA B.,10/19/16,10/20/16,COMMERCIAL TRANSPORTATION,140.2,2016,PRICE REVA B.
,OFFICE OF THE MINORITY LEADER,2016Q4,GENERAL EXPENDITURES,TRAVEL,11/2/16,AP,E0455243,PRICE REVA B.,10/19/16,10/20/16,LODGING,587.57,2016,PRICE REVA B.
,OFFICE OF THE MINORITY LEADER,2016Q4,GENERAL EXPENDITURES,TRAVEL,11/2/16,AP,E0455243,PRICE REVA B.,10/19/16,10/20/16,TAXI/PARKING/TOLLS,90,2016,PRICE REVA B.
,OFFICE OF THE MINORITY LEADER,2016Q4,GENERAL EXPENDITURES,TRAVEL,11/2/16,AP,E0455244,KAPLAN EMMA L.,9/27/16,9/27/16,TAXI/PARKING/TOLLS,27.71,2016,KAPLAN EMMA L.
,OFFICE OF THE MINORITY LEADER,2016Q4,GENERAL EXPENDITURES,TRAVEL,11/2/16,AP,E0455244,KAPLAN EMMA L.,9/28/16,9/28/16,TAXI/PARKING/TOLLS,8.57,2016,KAPLAN EMMA L.
,OFFICE OF THE MINORITY LEADER,2016Q4,GENERAL EXPENDITURES,TRAVEL,11/2/16,AP,E0455246,DEGRAFF KENNETH B.,10/11/16,10/11/16,MEALS,52.02,2016,DEGRAFF KENNETH B.
,OFFICE OF THE MINORITY LEADER,2016Q4,GENERAL EXPENDITURES,TRAVEL,11/2/16,AP,E0455246,DEGRAFF KENNETH B.,10/11/16,10/12/16,TAXI/PARKING/TOLLS,104.48,2016,DEGRAFF KENNETH B.
,OFFICE OF THE MINORITY LEADER,2016Q4,GENERAL EXPENDITURES,TRAVEL,11/2/16,AP,E0455248,BERRET EMILY C.,10/8/16,10/18/16,MEALS,71.21,2016,BERRET EMILY C.
,OFFICE OF THE MINORITY LEADER,2016Q4,GENERAL EXPENDITURES,TRAVEL,11/2/16,AP,E0455248,BERRET EMILY C.,10/16/16,10/18/16,TAXI/PARKING/TOLLS,15.43,2016,BERRET EMILY C.
,OFFICE OF THE MINORITY LEADER,2016Q4,GENERAL EXPENDITURES,TRAVEL,11/2/16,AP,E0455248,BERRET EMILY C.,10/18/16,10/18/16,TAXI/PARKING/TOLLS,6.41,2016,BERRET EMILY C.
,OFFICE OF THE MINORITY LEADER,2016Q4,GENERAL EXPENDITURES,TRAVEL,11/10/16,AP,E0457934,HAMMILL ANDREW T.,11/1/16,11/2/16,COMMERCIAL TRANSPORTATION,340,2016,HAMMILL ANDREW T.
,OFFICE OF THE MINORITY LEADER,2016Q4,GENERAL EXPENDITURES,TRAVEL,11/10/16,AP,E0457934,HAMMILL ANDREW T.,11/1/16,11/2/16,LODGING,587.57,2016,HAMMILL ANDREW T.
,OFFICE OF THE MINORITY LEADER,2016Q4,GENERAL EXPENDITURES,TRAVEL,11/10/16,AP,E0457934,HAMMILL ANDREW T.,11/1/16,11/2/16,MEALS,151.43,2016,HAMMILL ANDREW T.
,OFFICE OF THE MINORITY LEADER,2016Q4,GENERAL EXPENDITURES,TRAVEL,11/10/16,AP,E0457934,HAMMILL ANDREW T.,11/1/16,11/2/16,TAXI/PARKING/TOLLS,66.48,2016,HAMMILL ANDREW T.
,OFFICE OF THE MINORITY LEADER,2016Q4,GENERAL EXPENDITURES,TRAVEL,11/10/16,AP,E0457953,SMITH KELSEY L.,10/12/16,10/12/16,COMMERCIAL TRANSPORTATION,25,2016,SMITH KELSEY L.
,OFFICE OF THE MINORITY LEADER,2016Q4,GENERAL EXPENDITURES,TRAVEL,11/10/16,AP,E0457953,SMITH KELSEY L.,9/23/16,9/23/16,TAXI/PARKING/TOLLS,20.7,2016,SMITH KELSEY L.
,OFFICE OF THE MINORITY LEADER,2016Q4,GENERAL EXPENDITURES,TRAVEL,11/10/16,AP,E0457955,CITIBANK GOV CARD SERVICE,10/20/16,10/21/16,COMMERCIAL TRANSPORTATION,565.3,2016,CITIBANK GOV CARD SERVICE
,OFFICE OF THE MINORITY LEADER,2016Q4,GENERAL EXPENDITURES,TRAVEL,11/10/16,AP,E0457955,CITIBANK GOV CARD SERVICE,10/20/16,10/21/16,MEALS,40.73,2016,CITIBANK GOV CARD SERVICE
,OFFICE OF THE MINORITY LEADER,2016Q4,GENERAL EXPENDITURES,TRAVEL,11/10/16,AP,E0457956,CITIBANK GOV CARD SERVICE,10/6/16,11/1/16,COMMERCIAL TRANSPORTATION,1335.4,2016,CITIBANK GOV CARD SERVICE
,OFFICE OF THE MINORITY LEADER,2016Q4,GENERAL EXPENDITURES,TRAVEL,11/10/16,AP,E0457956,CITIBANK GOV CARD SERVICE,10/7/16,10/17/16,MEALS,56.88,2016,CITIBANK GOV CARD SERVICE
,OFFICE OF THE MINORITY LEADER,2016Q4,GENERAL EXPENDITURES,TRAVEL,11/10/16,AP,E0457956,CITIBANK GOV CARD SERVICE,10/7/16,10/17/16,TAXI/PARKING/TOLLS,162.58,2016,CITIBANK GOV CARD SERVICE
,OFFICE OF THE MINORITY LEADER,2016Q4,GENERAL EXPENDITURES,TRAVEL,11/10/16,AP,E0457958,CITIBANK GOV CARD SERVICE,10/7/16,10/20/16,COMMERCIAL TRANSPORTATION,1415.5,2016,CITIBANK GOV CARD SERVICE
,OFFICE OF THE MINORITY LEADER,2016Q4,GENERAL EXPENDITURES,TRAVEL,11/10/16,AP,E0457958,CITIBANK GOV CARD SERVICE,10/7/16,10/21/16,LODGING,1921.64,2016,CITIBANK GOV CARD SERVICE
,OFFICE OF THE MINORITY LEADER,2016Q4,GENERAL EXPENDITURES,TRAVEL,11/10/16,AP,E0457958,CITIBANK GOV CARD SERVICE,10/7/16,10/21/16,MEALS,278.88,2016,CITIBANK GOV CARD SERVICE
,OFFICE OF THE MINORITY LEADER,2016Q4,GENERAL EXPENDITURES,TRAVEL,11/10/16,AP,E0457958,CITIBANK GOV CARD SERVICE,10/7/16,10/20/16,TAXI/PARKING/TOLLS,129.84,2016,CITIBANK GOV CARD SERVICE
,OFFICE OF THE MINORITY LEADER,2016Q4,GENERAL EXPENDITURES,TRAVEL,11/16/16,AP,E0457959,CITIBANK GOV CARD SERVICE,10/6/16,10/19/16,COMMERCIAL TRANSPORTATION,1134.3,2016,CITIBANK GOV CARD SERVICE
,OFFICE OF THE MINORITY LEADER,2016Q4,GENERAL EXPENDITURES,TRAVEL,11/16/16,AP,E0457959,CITIBANK GOV CARD SERVICE,10/7/16,10/20/16,LODGING,3882.8,2016,CITIBANK GOV CARD SERVICE
,OFFICE OF THE MINORITY LEADER,2016Q4,GENERAL EXPENDITURES,TRAVEL,11/16/16,AP,E0457959,CITIBANK GOV CARD SERVICE,10/7/16,10/16/16,MEALS,116.19,2016,CITIBANK GOV CARD SERVICE
,OFFICE OF THE MINORITY LEADER,2016Q4,GENERAL EXPENDITURES,TRAVEL,11/16/16,AP,E0457959,CITIBANK GOV CARD SERVICE,10/6/16,10/6/16,TAXI/PARKING/TOLLS,60.5,2016,CITIBANK GOV CARD SERVICE
,OFFICE OF THE MINORITY LEADER,2016Q4,GENERAL EXPENDITURES,TRAVEL,11/16/16,AP,E0460192,CITIBANK GOV CARD SERVICE,9/23/16,10/29/16,COMMERCIAL TRANSPORTATION,1690,2016,CITIBANK GOV CARD SERVICE
,OFFICE OF THE MINORITY LEADER,2016Q4,GENERAL EXPENDITURES,TRAVEL,11/16/16,AP,E0460192,CITIBANK GOV CARD SERVICE,10/11/16,10/21/16,LODGING,613.72,2016,CITIBANK GOV CARD SERVICE
,OFFICE OF THE MINORITY LEADER,2016Q4,GENERAL EXPENDITURES,TRAVEL,11/16/16,AP,E0460192,CITIBANK GOV CARD SERVICE,10/10/16,10/21/16,MEALS,52.14,2016,CITIBANK GOV CARD SERVICE
,OFFICE OF THE MINORITY LEADER,2016Q4,GENERAL EXPENDITURES,TRAVEL,11/16/16,AP,E0460192,CITIBANK GOV CARD SERVICE,10/10/16,10/21/16,TAXI/PARKING/TOLLS,219.6,2016,CITIBANK GOV CARD SERVICE
,OFFICE OF THE MINORITY LEADER,2016Q4,GENERAL EXPENDITURES,TRAVEL,11/22/16,AP,E0461138,CITIBANK GOV CARD SERVICE,9/15/16,10/19/16,COMMERCIAL TRANSPORTATION,979.8,2016,CITIBANK GOV CARD SERVICE
,OFFICE OF THE MINORITY LEADER,2016Q4,GENERAL EXPENDITURES,TRAVEL,11/22/16,AP,E0461138,CITIBANK GOV CARD SERVICE,10/10/16,10/12/16,LODGING,481.35,2016,CITIBANK GOV CARD SERVICE
,OFFICE OF THE MINORITY LEADER,2016Q4,GENERAL EXPENDITURES,TRAVEL,11/22/16,AP,E0461138,CITIBANK GOV CARD SERVICE,10/10/16,10/12/16,MEALS,76.85,2016,CITIBANK GOV CARD SERVICE
,OFFICE OF THE MINORITY LEADER,2016Q4,GENERAL EXPENDITURES,TRAVEL,12/7/16,AP,892096,AGUILAR JORGE A.,11/3/16,11/4/16,LODGING,404.24,2016,AGUILAR JORGE A.
,OFFICE OF THE MINORITY LEADER,2016Q4,GENERAL EXPENDITURES,TRAVEL,12/7/16,AP,892096,AGUILAR JORGE A.,11/3/16,11/3/16,MEALS,27.94,2016,AGUILAR JORGE A.
,OFFICE OF THE MINORITY LEADER,2016Q4,GENERAL EXPENDITURES,TRAVEL,12/14/16,AP,E0467858,CITIBANK GOV CARD SERVICE,11/1/16,11/3/16,CAR RENTAL,109.32,2016,CITIBANK GOV CARD SERVICE
,OFFICE OF THE MINORITY LEADER,2016Q4,GENERAL EXPENDITURES,TRAVEL,12/14/16,AP,E0467858,CITIBANK GOV CARD SERVICE,11/1/16,11/3/16,TAXI/PARKING/TOLLS,16.55,2016,CITIBANK GOV CARD SERVICE
,OFFICE OF THE MINORITY LEADER,2016Q4,GENERAL EXPENDITURES,TRAVEL,12/14/16,AP,E0467861,CITIBANK GOV CARD SERVICE,10/31/16,10/31/16,COMMERCIAL TRANSPORTATION,71,2016,CITIBANK GOV CARD SERVICE
,OFFICE OF THE MINORITY LEADER,2016Q4,GENERAL EXPENDITURES,TRAVEL,12/14/16,AP,E0467861,CITIBANK GOV CARD SERVICE,11/1/16,11/2/16,LODGING,856.57,2016,CITIBANK GOV CARD SERVICE
,OFFICE OF THE MINORITY LEADER,2016Q4,GENERAL EXPENDITURES,TRAVEL,12/14/16,AP,E0467861,CITIBANK GOV CARD SERVICE,10/31/16,10/31/16,MEALS,51.39,2016,CITIBANK GOV CARD SERVICE
,OFFICE OF THE MINORITY LEADER,2016Q4,GENERAL EXPENDITURES,TRAVEL,12/14/16,AP,E0467861,CITIBANK GOV CARD SERVICE,11/1/16,11/1/16,MEALS,93.84,2016,CITIBANK GOV CARD SERVICE
,OFFICE OF THE MINORITY LEADER,2016Q4,GENERAL EXPENDITURES,TRAVEL,12/14/16,AP,E0467861,CITIBANK GOV CARD SERVICE,11/2/16,11/2/16,MEALS,36.89,2016,CITIBANK GOV CARD SERVICE
,OFFICE OF THE MINORITY LEADER,2016Q4,GENERAL EXPENDITURES,TRAVEL,12/14/16,AP,E0467873,KAPLAN EMMA L.,11/16/16,12/1/16,TAXI/PARKING/TOLLS,34.85,2016,KAPLAN EMMA L.
,OFFICE OF THE MINORITY LEADER,2016Q4,GENERAL EXPENDITURES,TRAVEL,12/14/16,AP,E0467950,AGUILAR JORGE A.,10/13/16,10/13/16,MEALS,19.01,2016,AGUILAR JORGE A.
,OFFICE OF THE MINORITY LEADER,2016Q4,GENERAL EXPENDITURES,TRAVEL,12/14/16,AP,E0467950,AGUILAR JORGE A.,10/11/16,10/29/16,TAXI/PARKING/TOLLS,265.58,2016,AGUILAR JORGE A.
,OFFICE OF THE MINORITY LEADER,2016Q4,GENERAL EXPENDITURES,TRAVEL,12/15/16,AP,E0467947,AGUILAR JORGE A.,9/5/16,9/5/16,COMMERCIAL TRANSPORTATION,83.5,2016,AGUILAR JORGE A.
,OFFICE OF THE MINORITY LEADER,2016Q4,GENERAL EXPENDITURES,TRAVEL,12/15/16,AP,E0467947,AGUILAR JORGE A.,9/5/16,9/23/16,MEALS,36.07,2016,AGUILAR JORGE A.
,OFFICE OF THE MINORITY LEADER,2016Q4,GENERAL EXPENDITURES,TRAVEL,12/15/16,AP,E0467947,AGUILAR JORGE A.,9/3/16,9/4/16,TAXI/PARKING/TOLLS,17.29,2016,AGUILAR JORGE A.
,OFFICE OF THE MINORITY LEADER,2016Q4,GENERAL EXPENDITURES,TRAVEL,12/16/16,AR,AC-12517,CITIBANK,10/20/16,10/21/16,COMMERCIAL TRANSPORTATION,-220.1,2016,CITIBANK
,OFFICE OF THE MINORITY LEADER,2016Q4,GENERAL EXPENDITURES,TRAVEL,12/29/16,AP,E0472740,BLOOM MICHAEL,11/29/16,12/6/16,TAXI/PARKING/TOLLS,29.16,2016,BLOOM MICHAEL
,OFFICE OF THE MINORITY LEADER,2016Q4,GENERAL EXPENDITURES,TRAVEL,12/29/16,AP,E0472839,LIZARRAGA JAIME E.,12/6/16,12/8/16,TAXI/PARKING/TOLLS,68,2016,LIZARRAGA JAIME E.
,OFFICE OF THE MINORITY LEADER,2016Q4,GENERAL EXPENDITURES,TRAVEL,12/29/16,AP,E0472840,MONGE KATHERINE S.,12/14/16,12/14/16,TAXI/PARKING/TOLLS,12,2016,MONGE KATHERINE S.
,OFFICE OF THE MINORITY LEADER,2016Q4,GENERAL EXPENDITURES,TRAVEL,12/29/16,AP,E0472841,KAPLAN EMMA L.,12/6/16,12/7/16,TAXI/PARKING/TOLLS,24.8,2016,KAPLAN EMMA L.
,OFFICE OF THE MINORITY LEADER,2016Q4,GENERAL EXPENDITURES,TRAVEL,12/29/16,AP,E0472845,CAPRON MARGARET W.,12/14/16,12/14/16,TAXI/PARKING/TOLLS,25.68,2016,CAPRON MARGARET W.
,OFFICE OF THE MINORITY LEADER,2016Q4,GENERAL EXPENDITURES,TRAVEL,12/29/16,AP,E0473263,PRIMUS WENDELL E.,2/14/16,2/16/16,LODGING,581.78,2016,PRIMUS WENDELL E.
,OFFICE OF THE MINORITY LEADER,2016Q4,GENERAL EXPENDITURES,TRAVEL,12/29/16,AP,E0473263,PRIMUS WENDELL E.,2/20/16,2/20/16,MEALS,97.83,2016,PRIMUS WENDELL E.
,OFFICE OF THE MINORITY LEADER,2016Q4,GENERAL EXPENDITURES,TRAVEL,12/29/16,AP,E0473263,PRIMUS WENDELL E.,9/16/16,9/16/16,TAXI/PARKING/TOLLS,15,2016,PRIMUS WENDELL E.
,OFFICE OF THE MINORITY LEADER,2016Q4,GENERAL EXPENDITURES,RENT COMMUNICATION UTILITIES,10/19/16,AP,E0451468,FEDEX,9/20/16,9/20/16,POSTAGE / COURIER / BOX RENTAL,46.21,2016,FEDEX
,OFFICE OF THE MINORITY LEADER,2016Q4,GENERAL EXPENDITURES,RENT COMMUNICATION UTILITIES,10/21/16,AP,886235,CITI PCARD-TIV TIVO SERVICE,8/29/16,9/28/16,RECORDING (OUTSIDE),48.42,2016,CITI PCARD-TIV TIVO SERVICE
,OFFICE OF THE MINORITY LEADER,2016Q4,GENERAL EXPENDITURES,RENT COMMUNICATION UTILITIES,10/24/16,AP,E0453640,FEDEX,9/27/16,9/30/16,POSTAGE / COURIER / BOX RENTAL,122.05,2016,FEDEX
,OFFICE OF THE MINORITY LEADER,2016Q4,GENERAL EXPENDITURES,RENT COMMUNICATION UTILITIES,11/2/16,AP,E0455243,PRICE REVA B.,10/20/16,10/20/16,POSTAGE / COURIER / BOX RENTAL,15,2016,PRICE REVA B.
,OFFICE OF THE MINORITY LEADER,2016Q4,GENERAL EXPENDITURES,RENT COMMUNICATION UTILITIES,11/10/16,AP,E0457951,FEDEX,10/18/16,10/18/16,POSTAGE / COURIER / BOX RENTAL,5.99,2016,FEDEX
,OFFICE OF THE MINORITY LEADER,2016Q4,GENERAL EXPENDITURES,RENT COMMUNICATION UTILITIES,11/18/16,AP,891293,CITI PCARD-TIV TIVO SERVICE,10/1/16,10/28/16,RECORDING (OUTSIDE),48.42,2016,CITI PCARD-TIV TIVO SERVICE
,OFFICE OF THE MINORITY LEADER,2016Q4,GENERAL EXPENDITURES,RENT COMMUNICATION UTILITIES,11/22/16,AP,E0461138,CITIBANK GOV CARD SERVICE,10/12/16,10/12/16,POSTAGE / COURIER / BOX RENTAL,51.83,2016,CITIBANK GOV CARD SERVICE
,OFFICE OF THE MINORITY LEADER,2016Q4,GENERAL EXPENDITURES,RENT COMMUNICATION UTILITIES,12/6/16,AP,E0465492,FEDEX,11/3/16,11/3/16,POSTAGE / COURIER / BOX RENTAL,61.75,2016,FEDEX
,OFFICE OF THE MINORITY LEADER,2016Q4,GENERAL EXPENDITURES,RENT COMMUNICATION UTILITIES,12/7/16,AP,892092,FEDEX,10/18/16,10/28/16,POSTAGE / COURIER / BOX RENTAL,19.08,2016,FEDEX
,OFFICE OF THE MINORITY LEADER,2016Q4,GENERAL EXPENDITURES,RENT COMMUNICATION UTILITIES,12/14/16,AP,E0467815,FEDEX,11/18/16,11/18/16,POSTAGE / COURIER / BOX RENTAL,153.86,2016,FEDEX
,OFFICE OF THE MINORITY LEADER,2016Q4,GENERAL EXPENDITURES,RENT COMMUNICATION UTILITIES,12/16/16,AR,AC-12518,FEDERAL EXPRESS CORP,9/27/16,9/30/16,POSTAGE / COURIER / BOX RENTAL,-100.04,2016,FEDERAL EXPRESS CORP
,OFFICE OF THE MINORITY LEADER,2016Q4,GENERAL EXPENDITURES,RENT COMMUNICATION UTILITIES,12/20/16,AP,896455,CITI PCARD-TIV TIVO SERVICE,10/29/16,11/28/16,RECORDING (OUTSIDE),37.9,2016,CITI PCARD-TIV TIVO SERVICE
,OFFICE OF THE MINORITY LEADER,2016Q4,GENERAL EXPENDITURES,PRINTING AND REPRODUCTION,10/6/16,AP,E0446383,SURGEON BINA G,9/13/16,9/13/16,PRINTING & REPRODUCTION,23.32,2016,SURGEON BINA G
,OFFICE OF THE MINORITY LEADER,2016Q4,GENERAL EXPENDITURES,PRINTING AND REPRODUCTION,10/6/16,AP,E0446383,SURGEON BINA G,9/14/16,9/14/16,PRINTING & REPRODUCTION,25.49,2016,SURGEON BINA G
,OFFICE OF THE MINORITY LEADER,2016Q4,GENERAL EXPENDITURES,PRINTING AND REPRODUCTION,10/19/16,AP,E0451479,BERRET EMILY C.,10/7/16,10/7/16,PRINTING & REPRODUCTION,117.16,2016,BERRET EMILY C.
,OFFICE OF THE MINORITY LEADER,2016Q4,GENERAL EXPENDITURES,PRINTING AND REPRODUCTION,10/21/16,AP,886235,CITI PCARD-FACEBK,8/29/16,9/28/16,ADVERTISEMENTS,500.09,2016,CITI PCARD-FACEBK
,OFFICE OF THE MINORITY LEADER,2016Q4,GENERAL EXPENDITURES,PRINTING AND REPRODUCTION,10/28/16,GL,PIX0062968,"",10/1/16,10/31/16,PHOTOGRAPHIC (TRANSFER),29.6,2016,""
,OFFICE OF THE MINORITY LEADER,2016Q4,GENERAL EXPENDITURES,PRINTING AND REPRODUCTION,11/2/16,AP,E0455242,SURGEON BINA G,10/12/16,10/12/16,PRINTING & REPRODUCTION,63.67,2016,SURGEON BINA G
,OFFICE OF THE MINORITY LEADER,2016Q4,GENERAL EXPENDITURES,PRINTING AND REPRODUCTION,11/2/16,AP,E0455248,BERRET EMILY C.,10/16/16,10/18/16,PRINTING & REPRODUCTION,151.32,2016,BERRET EMILY C.
,OFFICE OF THE MINORITY LEADER,2016Q4,GENERAL EXPENDITURES,PRINTING AND REPRODUCTION,11/10/16,AP,E0457953,SMITH KELSEY L.,10/19/16,10/20/16,PRINTING & REPRODUCTION,254.38,2016,SMITH KELSEY L.
,OFFICE OF THE MINORITY LEADER,2016Q4,GENERAL EXPENDITURES,PRINTING AND REPRODUCTION,11/18/16,AP,891293,CITI PCARD-FACEBK,9/29/16,9/30/16,ADVERTISEMENTS,309.71,2016,CITI PCARD-FACEBK
,OFFICE OF THE MINORITY LEADER,2016Q4,GENERAL EXPENDITURES,PRINTING AND REPRODUCTION,11/18/16,AP,891293,CITI PCARD-FACEBK,10/1/16,10/28/16,ADVERTISEMENTS,1000.09,2016,CITI PCARD-FACEBK
,OFFICE OF THE MINORITY LEADER,2016Q4,GENERAL EXPENDITURES,PRINTING AND REPRODUCTION,11/22/16,GL,PIX0063559,"",11/1/16,11/30/16,PHOTOGRAPHIC (TRANSFER),148,2016,""
,OFFICE OF THE MINORITY LEADER,2016Q4,GENERAL EXPENDITURES,PRINTING AND REPRODUCTION,12/20/16,AP,896455,CITI PCARD-FACEBK,10/29/16,11/28/16,ADVERTISEMENTS,622.69,2016,CITI PCARD-FACEBK
,OFFICE OF THE MINORITY LEADER,2016Q4,GENERAL EXPENDITURES,PRINTING AND REPRODUCTION,12/23/16,AP,E0465487,SURGEON BINA G,11/2/16,11/2/16,PRINTING & REPRODUCTION,75.39,2016,SURGEON BINA G
,OFFICE OF THE MINORITY LEADER,2016Q4,GENERAL EXPENDITURES,PRINTING AND REPRODUCTION,12/28/16,GL,PIX0064465,"",12/1/16,12/31/16,PHOTOGRAPHIC (TRANSFER),210.5,2016,""
,OFFICE OF THE MINORITY LEADER,2016Q4,GENERAL EXPENDITURES,OTHER SERVICES,10/4/16,AP,E0446486,BERNARD RAIMO,9/1/16,9/30/16,CONSULTANT CONTRACT SERVICE,7628,2016,BERNARD RAIMO
,OFFICE OF THE MINORITY LEADER,2016Q4,GENERAL EXPENDITURES,OTHER SERVICES,10/19/16,AP,E0451461,NEAL R GROSS & COMPANY INC,9/27/16,9/27/16,STENOGRAPHIC REPORTING,1500,2016,NEAL R GROSS & COMPANY INC
,OFFICE OF THE MINORITY LEADER,2016Q4,GENERAL EXPENDITURES,OTHER SERVICES,11/8/16,AP,E0456154,BERNARD RAIMO,10/1/16,10/31/16,CONSULTANT CONTRACT SERVICE,7628,2016,BERNARD RAIMO
,OFFICE OF THE MINORITY LEADER,2016Q4,GENERAL EXPENDITURES,OTHER SERVICES,12/7/16,AP,E0465655,BERNARD RAIMO,11/1/16,11/30/16,CONSULTANT CONTRACT SERVICE,7628,2016,BERNARD RAIMO
,OFFICE OF THE MINORITY LEADER,2016Q4,GENERAL EXPENDITURES,SUPPLIES AND MATERIALS,10/3/16,AP,E0446380,CAPITOL HOST,9/15/16,9/15/16,FOOD & BEVERAGE,264.65,2016,CAPITOL HOST
,OFFICE OF THE MINORITY LEADER,2016Q4,GENERAL EXPENDITURES,SUPPLIES AND MATERIALS,10/19/16,AP,E0451470,CAPITOL HOST,9/28/16,9/28/16,FOOD & BEVERAGE,36.63,2016,CAPITOL HOST
,OFFICE OF THE MINORITY LEADER,2016Q4,GENERAL EXPENDITURES,SUPPLIES AND MATERIALS,10/19/16,AP,E0451472,TOULIES EN FLEUR,9/6/16,9/26/16,HABITATION EXPENSE,1000,2016,TOULIES EN FLEUR
,OFFICE OF THE MINORITY LEADER,2016Q4,GENERAL EXPENDITURES,SUPPLIES AND MATERIALS,10/19/16,AP,E0451507,CAPITOL HOST,9/21/16,9/21/16,FOOD & BEVERAGE,36.63,2016,CAPITOL HOST
,OFFICE OF THE MINORITY LEADER,2016Q4,GENERAL EXPENDITURES,SUPPLIES AND MATERIALS,10/21/16,AP,886235,CITI PCARD-AMAZON MKTPLACE PMTS,8/29/16,9/28/16,FOOD & BEVERAGE,226.3,2016,CITI PCARD-AMAZON MKTPLACE PMTS
,OFFICE OF THE MINORITY LEADER,2016Q4,GENERAL EXPENDITURES,SUPPLIES AND MATERIALS,10/21/16,AP,886235,CITI PCARD-DD/BR,8/29/16,9/28/16,FOOD & BEVERAGE,45.04,2016,CITI PCARD-DD/BR
,OFFICE OF THE MINORITY LEADER,2016Q4,GENERAL EXPENDITURES,SUPPLIES AND MATERIALS,10/21/16,AP,886235,CITI PCARD-DROPBOX,8/29/16,9/28/16,PUBLICATIONS/REFERENCE MAT'L,750,2016,CITI PCARD-DROPBOX
,OFFICE OF THE MINORITY LEADER,2016Q4,GENERAL EXPENDITURES,SUPPLIES AND MATERIALS,10/21/16,AP,886235,CITI PCARD-FIREHOOK - CAPITOL HIL,8/29/16,9/28/16,FOOD & BEVERAGE,59.88,2016,CITI PCARD-FIREHOOK - CAPITOL HIL
,OFFICE OF THE MINORITY LEADER,2016Q4,GENERAL EXPENDITURES,SUPPLIES AND MATERIALS,10/21/16,AP,886235,CITI PCARD-PRET A MANGER,8/29/16,9/28/16,FOOD & BEVERAGE,188.88,2016,CITI PCARD-PRET A MANGER
,OFFICE OF THE MINORITY LEADER,2016Q4,GENERAL EXPENDITURES,SUPPLIES AND MATERIALS,10/21/16,AP,886235,CITI PCARD-SAFEWAY STORE,8/29/16,9/28/16,FOOD & BEVERAGE,26.06,2016,CITI PCARD-SAFEWAY STORE
,OFFICE OF THE MINORITY LEADER,2016Q4,GENERAL EXPENDITURES,SUPPLIES AND MATERIALS,10/21/16,AP,886235,CITI PCARD-TARGET,8/29/16,9/28/16,FOOD & BEVERAGE,508.11,2016,CITI PCARD-TARGET
,OFFICE OF THE MINORITY LEADER,2016Q4,GENERAL EXPENDITURES,SUPPLIES AND MATERIALS,10/21/16,AP,886235,CITI PCARD-USHR LONGWORTH FOOD CT,8/29/16,9/28/16,FOOD & BEVERAGE,18.3,2016,CITI PCARD-USHR LONGWORTH FOOD CT
,OFFICE OF THE MINORITY LEADER,2016Q4,GENERAL EXPENDITURES,SUPPLIES AND MATERIALS,10/21/16,AP,E0451473,GRIFFIN SAHARRA E.,8/16/16,9/26/16,FOOD & BEVERAGE,61.73,2016,GRIFFIN SAHARRA E.
,OFFICE OF THE MINORITY LEADER,2016Q4,GENERAL EXPENDITURES,SUPPLIES AND MATERIALS,10/24/16,AP,E0453641,BEHRINGER CAROLINE,10/6/16,10/6/16,PUBLICATIONS/REFERENCE MAT'L,5.98,2016,BEHRINGER CAROLINE
,OFFICE OF THE MINORITY LEADER,2016Q4,GENERAL EXPENDITURES,SUPPLIES AND MATERIALS,10/24/16,AP,E0453872,OCCASIONS CATERERS INC,9/14/16,9/14/16,FOOD & BEVERAGE,4840,2016,OCCASIONS CATERERS INC
,OFFICE OF THE MINORITY LEADER,2016Q4,GENERAL EXPENDITURES,SUPPLIES AND MATERIALS,11/10/16,AP,E0457952,GRIFFIN SAHARRA E.,6/21/16,6/21/16,FOOD & BEVERAGE,50.26,2016,GRIFFIN SAHARRA E.
,OFFICE OF THE MINORITY LEADER,2016Q4,GENERAL EXPENDITURES,SUPPLIES AND MATERIALS,11/10/16,AP,E0457952,GRIFFIN SAHARRA E.,7/8/16,7/8/16,FOOD & BEVERAGE,31.59,2016,GRIFFIN SAHARRA E.
,OFFICE OF THE MINORITY LEADER,2016Q4,GENERAL EXPENDITURES,SUPPLIES AND MATERIALS,11/10/16,AP,E0457952,GRIFFIN SAHARRA E.,9/7/16,9/7/16,FOOD & BEVERAGE,11.98,2016,GRIFFIN SAHARRA E.
,OFFICE OF THE MINORITY LEADER,2016Q4,GENERAL EXPENDITURES,SUPPLIES AND MATERIALS,11/10/16,AP,E0457955,CITIBANK GOV CARD SERVICE,10/20/16,10/20/16,PUBLICATIONS/REFERENCE MAT'L,7.63,2016,CITIBANK GOV CARD SERVICE
,OFFICE OF THE MINORITY LEADER,2016Q4,GENERAL EXPENDITURES,SUPPLIES AND MATERIALS,11/10/16,AP,E0457956,CITIBANK GOV CARD SERVICE,10/7/16,10/17/16,PUBLICATIONS/REFERENCE MAT'L,6.76,2016,CITIBANK GOV CARD SERVICE
,OFFICE OF THE MINORITY LEADER,2016Q4,GENERAL EXPENDITURES,SUPPLIES AND MATERIALS,11/18/16,AP,891293,CITI PCARD-CAP MARKET CAF,9/29/16,9/30/16,FOOD & BEVERAGE,12.15,2016,CITI PCARD-CAP MARKET CAF
,OFFICE OF THE MINORITY LEADER,2016Q4,GENERAL EXPENDITURES,SUPPLIES AND MATERIALS,11/18/16,AP,891293,CITI PCARD-CARMINE'S- DC,9/29/16,9/30/16,FOOD & BEVERAGE,452.59,2016,CITI PCARD-CARMINE'S- DC
,OFFICE OF THE MINORITY LEADER,2016Q4,GENERAL EXPENDITURES,SUPPLIES AND MATERIALS,11/18/16,AP,891293,CITI PCARD-FIREHOOK,9/29/16,9/30/16,FOOD & BEVERAGE,16.47,2016,CITI PCARD-FIREHOOK
,OFFICE OF THE MINORITY LEADER,2016Q4,GENERAL EXPENDITURES,SUPPLIES AND MATERIALS,11/18/16,AP,891293,CITI PCARD-SAFEWAY STORE,9/29/16,9/30/16,FOOD & BEVERAGE,34.69,2016,CITI PCARD-SAFEWAY STORE
,OFFICE OF THE MINORITY LEADER,2016Q4,GENERAL EXPENDITURES,SUPPLIES AND MATERIALS,11/18/16,AP,891293,CITI PCARD-SAFEWAY STORE,10/1/16,10/28/16,FOOD & BEVERAGE,252.98,2016,CITI PCARD-SAFEWAY STORE
,OFFICE OF THE MINORITY LEADER,2016Q4,GENERAL EXPENDITURES,SUPPLIES AND MATERIALS,11/18/16,AP,891293,CITI PCARD-TRADER JOE'S,10/1/16,10/28/16,HABITATION EXPENSE,35.89,2016,CITI PCARD-TRADER JOE'S
,OFFICE OF THE MINORITY LEADER,2016Q4,GENERAL EXPENDITURES,SUPPLIES AND MATERIALS,12/6/16,AP,E0465489,CAPITOL HOST,11/15/16,11/15/16,FOOD & BEVERAGE,36.63,2016,CAPITOL HOST
,OFFICE OF THE MINORITY LEADER,2016Q4,GENERAL EXPENDITURES,SUPPLIES AND MATERIALS,12/7/16,AP,892094,CRYSTAL SPRINGS,11/1/16,11/30/16,FOOD & BEVERAGE,171.44,2016,CRYSTAL SPRINGS
,OFFICE OF THE MINORITY LEADER,2016Q4,GENERAL EXPENDITURES,SUPPLIES AND MATERIALS,12/14/16,AP,E0467841,NATIONAL NEWS AGENCY INC,1/1/17,12/31/17,PUBLICATIONS/REFERENCE MAT'L,2418,2016,NATIONAL NEWS AGENCY INC
,OFFICE OF THE MINORITY LEADER,2016Q4,GENERAL EXPENDITURES,SUPPLIES AND MATERIALS,12/14/16,AP,E0467842,CAPITOL HOST,11/16/16,11/16/16,FOOD & BEVERAGE,36.63,2016,CAPITOL HOST
,OFFICE OF THE MINORITY LEADER,2016Q4,GENERAL EXPENDITURES,SUPPLIES AND MATERIALS,12/14/16,AP,E0467871,SOUTHWEST DISTRIBUTION INC,1/1/17,3/31/17,PUBLICATIONS/REFERENCE MAT'L,3775.2,2016,SOUTHWEST DISTRIBUTION INC
,OFFICE OF THE MINORITY LEADER,2016Q4,GENERAL EXPENDITURES,SUPPLIES AND MATERIALS,12/15/16,AP,E0467947,AGUILAR JORGE A.,9/14/16,9/24/16,PUBLICATIONS/REFERENCE MAT'L,9,2016,AGUILAR JORGE A.
,OFFICE OF THE MINORITY LEADER,2016Q4,GENERAL EXPENDITURES,SUPPLIES AND MATERIALS,12/19/16,AP,E0468853,LEXISNEXIS,1/1/17,1/2/18,PUBLICATIONS/REFERENCE MAT'L,21444,2016,LEXISNEXIS
,OFFICE OF THE MINORITY LEADER,2016Q4,GENERAL EXPENDITURES,SUPPLIES AND MATERIALS,12/20/16,AP,896455,CITI PCARD-CAP MARKET CAF,10/29/16,11/28/16,FOOD & BEVERAGE,24,2016,CITI PCARD-CAP MARKET CAF
,OFFICE OF THE MINORITY LEADER,2016Q4,GENERAL EXPENDITURES,SUPPLIES AND MATERIALS,12/20/16,AP,896455,CITI PCARD-CVS/PHARMACY,10/29/16,11/28/16,FOOD & BEVERAGE,33.53,2016,CITI PCARD-CVS/PHARMACY
,OFFICE OF THE MINORITY LEADER,2016Q4,GENERAL EXPENDITURES,SUPPLIES AND MATERIALS,12/20/16,AP,896455,CITI PCARD-DD/BR,10/29/16,11/28/16,FOOD & BEVERAGE,52.79,2016,CITI PCARD-DD/BR
,OFFICE OF THE MINORITY LEADER,2016Q4,GENERAL EXPENDITURES,SUPPLIES AND MATERIALS,12/20/16,AP,896455,CITI PCARD-FIREHOOK,10/29/16,11/28/16,FOOD & BEVERAGE,83.93,2016,CITI PCARD-FIREHOOK
,OFFICE OF THE MINORITY LEADER,2016Q4,GENERAL EXPENDITURES,SUPPLIES AND MATERIALS,12/20/16,AP,896455,CITI PCARD-HARRIS TEETER,10/29/16,11/28/16,FOOD & BEVERAGE,47.44,2016,CITI PCARD-HARRIS TEETER
,OFFICE OF THE MINORITY LEADER,2016Q4,GENERAL EXPENDITURES,SUPPLIES AND MATERIALS,12/20/16,AP,896455,CITI PCARD-PRET A MANGER,10/29/16,11/28/16,FOOD & BEVERAGE,247.76,2016,CITI PCARD-PRET A MANGER
,OFFICE OF THE MINORITY LEADER,2016Q4,GENERAL EXPENDITURES,SUPPLIES AND MATERIALS,12/20/16,AP,896455,CITI PCARD-SAFEWAY STORE,10/29/16,11/28/16,FOOD & BEVERAGE,618.45,2016,CITI PCARD-SAFEWAY STORE
,OFFICE OF THE MINORITY LEADER,2016Q4,GENERAL EXPENDITURES,SUPPLIES AND MATERIALS,12/20/16,AP,896455,CITI PCARD-TARGET,10/29/16,11/28/16,FOOD & BEVERAGE,287.23,2016,CITI PCARD-TARGET
,OFFICE OF THE MINORITY LEADER,2016Q4,GENERAL EXPENDITURES,SUPPLIES AND MATERIALS,12/20/16,AP,896455,CITI PCARD-WE THE PIZZA,10/29/16,11/28/16,FOOD & BEVERAGE,135.7,2016,CITI PCARD-WE THE PIZZA
,OFFICE OF THE MINORITY LEADER,2016Q4,GENERAL EXPENDITURES,SUPPLIES AND MATERIALS,12/20/16,AP,896455,CITI PCARD-WHOLEFDS PST,10/29/16,11/28/16,FOOD & BEVERAGE,87.88,2016,CITI PCARD-WHOLEFDS PST
,OFFICE OF THE MINORITY LEADER,2016Q4,GENERAL EXPENDITURES,SUPPLIES AND MATERIALS,12/29/16,AP,E0471601,POLITICO LLC,12/17/16,12/16/18,PUBLICATIONS/REFERENCE MAT'L,17700,2016,POLITICO LLC
,OFFICE OF THE MINORITY LEADER,2016Q4,GENERAL EXPENDITURES,SUPPLIES AND MATERIALS,12/29/16,AP,E0472732,CAPITOL HOST,12/5/16,12/5/16,FOOD & BEVERAGE,73.25,2016,CAPITOL HOST
,OFFICE OF THE MINORITY LEADER,2016Q4,GENERAL EXPENDITURES,SUPPLIES AND MATERIALS,12/29/16,AP,E0472734,CAPITOL HOST,12/2/16,12/2/16,FOOD & BEVERAGE,73.25,2016,CAPITOL HOST
,OFFICE OF THE MINORITY LEADER,2016Q4,GENERAL EXPENDITURES,SUPPLIES AND MATERIALS,12/29/16,AP,E0472736,CAPITOL HOST,12/7/16,12/7/16,FOOD & BEVERAGE,36.63,2016,CAPITOL HOST
,OFFICE OF THE MINORITY LEADER,2016Q4,GENERAL EXPENDITURES,SUPPLIES AND MATERIALS,12/29/16,AP,E0472738,CRYSTAL SPRINGS,12/13/16,12/13/16,FOOD & BEVERAGE,155.75,2016,CRYSTAL SPRINGS
,OFFICE OF THE MINORITY LEADER,2016Q4,GENERAL EXPENDITURES,SUPPLIES AND MATERIALS,12/29/16,AP,E0472739,TVEYES INC,1/1/17,12/31/18,PUBLICATIONS/REFERENCE MAT'L,2400,2016,TVEYES INC
,OFFICE OF THE MINORITY LEADER,2016Q4,GENERAL EXPENDITURES,TRAVEL,10/19/16,AP,E0451516,CAYEA DEVAN W.,9/15/15,9/15/15,TAXI/PARKING/TOLLS,17.07,2016,CAYEA DEVAN W.
,OFFICE OF THE MINORITY LEADER,2016Q4,GENERAL EXPENDITURES,TRAVEL,10/24/16,AP,886332,CAYEA DEVAN W.,9/15/15,9/15/15,TAXI/PARKING/TOLLS,-17.07,2016,CAYEA DEVAN W.
,OFFICE OF THE MAJORITY WHIP,2016Q4,GENERAL EXPENDITURES,PERSONNEL COMPENSATION,"","","",ACORNLEY MARK A.,10/1/16,12/31/16,FINANCIAL ADMINISTRATOR,3750,2016,ACORNLEY MARK A.
,OFFICE OF THE MAJORITY WHIP,2016Q4,GENERAL EXPENDITURES,PERSONNEL COMPENSATION,"","","",BECKER MEGAN E,10/1/16,12/31/16,SCHEDULE COORDINATOR,13250,2016,BECKER MEGAN E
,OFFICE OF THE MAJORITY WHIP,2016Q4,GENERAL EXPENDITURES,PERSONNEL COMPENSATION,"","","",BOND CHRISTOPHER J,10/1/16,12/31/16,COMMUNICATIONS DIRECTOR,37485.17,2016,BOND CHRISTOPHER J
,OFFICE OF THE MAJORITY WHIP,2016Q4,GENERAL EXPENDITURES,PERSONNEL COMPENSATION,"","","",BRAVO MATTHEW,10/1/16,12/31/16,DEPUTY DIRECTOR OF FLOOR OPERA,38068.5,2016,BRAVO MATTHEW
,OFFICE OF THE MAJORITY WHIP,2016Q4,GENERAL EXPENDITURES,PERSONNEL COMPENSATION,"","","",CAVAZOS ANDREW J,10/1/16,12/31/16,ASST TO THE CHIEF OF STAFF,11750.01,2016,CAVAZOS ANDREW J
,OFFICE OF THE MAJORITY WHIP,2016Q4,GENERAL EXPENDITURES,PERSONNEL COMPENSATION,"","","",DEASE ALEXANDRA E,10/1/16,12/31/16,STAFF ASSISTANT,12000.01,2016,DEASE ALEXANDRA E
,OFFICE OF THE MAJORITY WHIP,2016Q4,GENERAL EXPENDITURES,PERSONNEL COMPENSATION,"","","",GOSNELL ELLEN C,10/1/16,12/31/16,STAFF ASSISTANT,12000.01,2016,GOSNELL ELLEN C
,OFFICE OF THE MAJORITY WHIP,2016Q4,GENERAL EXPENDITURES,PERSONNEL COMPENSATION,"","","",HAMILTON PARKER,10/1/16,12/31/16,COS TO THE CHIEF DEP WHIP,30000,2016,HAMILTON PARKER
,OFFICE OF THE MAJORITY WHIP,2016Q4,GENERAL EXPENDITURES,PERSONNEL COMPENSATION,"","","",HODGSON CHRISTOPHER M,10/1/16,12/31/16,DEPUTY FLOOR DIRECTOR,18125.01,2016,HODGSON CHRISTOPHER M
,OFFICE OF THE MAJORITY WHIP,2016Q4,GENERAL EXPENDITURES,PERSONNEL COMPENSATION,"","","",HORTON BRETT H.,10/1/16,12/31/16,CHIEF OF STAFF,42825,2016,HORTON BRETT H.
,OFFICE OF THE MAJORITY WHIP,2016Q4,GENERAL EXPENDITURES,PERSONNEL COMPENSATION,"","","",HUDAK KELLEY K,10/1/16,12/31/16,BUSINESS COALITIONS COORD,21499.99,2016,HUDAK KELLEY K
,OFFICE OF THE MAJORITY WHIP,2016Q4,GENERAL EXPENDITURES,PERSONNEL COMPENSATION,"","","",HUGHES WILLIAM J,10/1/16,12/31/16,POLICY DIRECTOR,42674.01,2016,HUGHES WILLIAM J
,OFFICE OF THE MAJORITY WHIP,2016Q4,GENERAL EXPENDITURES,PERSONNEL COMPENSATION,"","","",JEWELL MATTHEW L,10/1/16,12/31/16,STAFF ASSISTANT,11999.99,2016,JEWELL MATTHEW L
,OFFICE OF THE MAJORITY WHIP,2016Q4,GENERAL EXPENDITURES,PERSONNEL COMPENSATION,"","","",NALLS DENNIS A,9/25/16,12/31/16,INTERN,4766.67,2016,NALLS DENNIS A
,OFFICE OF THE MAJORITY WHIP,2016Q4,GENERAL EXPENDITURES,PERSONNEL COMPENSATION,"","","",NAPIER BENJAMIN W,10/1/16,12/31/16,FLOOR ASSISTANT,19000,2016,NAPIER BENJAMIN W
,OFFICE OF THE MAJORITY WHIP,2016Q4,GENERAL EXPENDITURES,PERSONNEL COMPENSATION,"","","",PLANNING DAVID M,10/1/16,12/31/16,SPECIAL ASST TO CHIEF DEP WHIP,7500,2016,PLANNING DAVID M
,OFFICE OF THE MAJORITY WHIP,2016Q4,GENERAL EXPENDITURES,PERSONNEL COMPENSATION,"","","",REISER MARTIN G,10/1/16,12/31/16,LEGISLATIVE COUNSEL,39318.5,2016,REISER MARTIN G
,OFFICE OF THE MAJORITY WHIP,2016Q4,GENERAL EXPENDITURES,PERSONNEL COMPENSATION,"","","",REISING JOHN B,10/1/16,12/31/16,DIRECTOR OF OPERATIONS,35526.83,2016,REISING JOHN B
,OFFICE OF THE MAJORITY WHIP,2016Q4,GENERAL EXPENDITURES,PERSONNEL COMPENSATION,"","","",SADLOSKY DANIEL J,10/1/16,12/31/16,POLICY ASSISTANT,19000,2016,SADLOSKY DANIEL J
,OFFICE OF THE MAJORITY WHIP,2016Q4,GENERAL EXPENDITURES,PERSONNEL COMPENSATION,"","","",TATUM THOMAS J,10/1/16,12/31/16,DEPUTY COMMUNICATIONS DIRECTOR,16500,2016,TATUM THOMAS J
,OFFICE OF THE MAJORITY WHIP,2016Q4,GENERAL EXPENDITURES,PERSONNEL COMPENSATION,"","","",TRUEMAN LAURA,10/1/16,12/31/16,SR. POL ADV & CONSER COAL CORD,30000,2016,TRUEMAN LAURA
,OFFICE OF THE MAJORITY WHIP,2016Q4,GENERAL EXPENDITURES,PERSONNEL COMPENSATION,"","","",WOODARD JOHN S,12/1/16,12/31/16,STAFF ASSISTANT,2500,2016,WOODARD JOHN S
,OFFICE OF THE MAJORITY WHIP,2016Q4,GENERAL EXPENDITURES,PERSONNEL COMPENSATION,"","","",ZULKOSKY ERIC T,10/1/16,12/31/16,DIR OF MEMBER SVS & POLICY ADV,13901.84,2016,ZULKOSKY ERIC T
,OFFICE OF THE MAJORITY WHIP,2016Q4,GENERAL EXPENDITURES,TRAVEL,10/3/16,AP,E0446325,HORTON BRETT H.,8/10/16,8/10/16,COMMERCIAL TRANSPORTATION,60,2016,HORTON BRETT H.
,OFFICE OF THE MAJORITY WHIP,2016Q4,GENERAL EXPENDITURES,TRAVEL,10/3/16,AP,E0446325,HORTON BRETT H.,8/27/16,8/28/16,LODGING,247.62,2016,HORTON BRETT H.
,OFFICE OF THE MAJORITY WHIP,2016Q4,GENERAL EXPENDITURES,TRAVEL,10/3/16,AP,E0446325,HORTON BRETT H.,8/29/16,8/30/16,MEALS,114.18,2016,HORTON BRETT H.
,OFFICE OF THE MAJORITY WHIP,2016Q4,GENERAL EXPENDITURES,TRAVEL,10/3/16,AP,E0446325,HORTON BRETT H.,8/12/16,8/31/16,GASOLINE,162.86,2016,HORTON BRETT H.
,OFFICE OF THE MAJORITY WHIP,2016Q4,GENERAL EXPENDITURES,TRAVEL,10/3/16,AP,E0446325,HORTON BRETT H.,8/9/16,9/12/16,TAXI/PARKING/TOLLS,304.06,2016,HORTON BRETT H.
,OFFICE OF THE MAJORITY WHIP,2016Q4,GENERAL EXPENDITURES,TRAVEL,12/29/16,AP,E0473072,GOSNELL ELLEN C.,9/6/16,9/20/16,PRIVATE AUTO MILEAGE,49.68,2016,GOSNELL ELLEN C.
,OFFICE OF THE MAJORITY WHIP,2016Q4,GENERAL EXPENDITURES,TRAVEL,12/29/16,AP,E0473072,GOSNELL ELLEN C.,9/21/16,9/28/16,PRIVATE AUTO MILEAGE,29.7,2016,GOSNELL ELLEN C.
,OFFICE OF THE MAJORITY WHIP,2016Q4,GENERAL EXPENDITURES,TRAVEL,12/29/16,AP,E0473072,GOSNELL ELLEN C.,10/18/16,10/24/16,PRIVATE AUTO MILEAGE,10.26,2016,GOSNELL ELLEN C.
,OFFICE OF THE MAJORITY WHIP,2016Q4,GENERAL EXPENDITURES,TRAVEL,12/29/16,AP,E0473072,GOSNELL ELLEN C.,11/10/16,11/15/16,PRIVATE AUTO MILEAGE,49.68,2016,GOSNELL ELLEN C.
,OFFICE OF THE MAJORITY WHIP,2016Q4,GENERAL EXPENDITURES,SUPPLIES AND MATERIALS,10/21/16,AP,886235,CITI PCARD-APL ITUNES.COM/BILL,8/29/16,9/28/16,PUBLICATIONS/REFERENCE MAT'L,0.99,2016,CITI PCARD-APL ITUNES.COM/BILL
,OFFICE OF THE MAJORITY WHIP,2016Q4,GENERAL EXPENDITURES,SUPPLIES AND MATERIALS,10/21/16,AP,886235,CITI PCARD-GAINAPP.COM,8/29/16,9/28/16,SOFTWARE LESS THAN $500,80,2016,CITI PCARD-GAINAPP.COM
,OFFICE OF THE MAJORITY WHIP,2016Q4,GENERAL EXPENDITURES,SUPPLIES AND MATERIALS,10/24/16,AP,E0453277,QUENCH,10/1/16,10/31/16,WATER,46.53,2016,QUENCH
,OFFICE OF THE MAJORITY WHIP,2016Q4,GENERAL EXPENDITURES,SUPPLIES AND MATERIALS,11/18/16,AP,891293,CITI PCARD-ADOBE PS CREATIVE CLD,10/1/16,10/28/16,SOFTWARE LESS THAN $500,253.67,2016,CITI PCARD-ADOBE PS CREATIVE CLD
,OFFICE OF THE MAJORITY WHIP,2016Q4,GENERAL EXPENDITURES,SUPPLIES AND MATERIALS,11/18/16,AP,891293,CITI PCARD-APL ITUNES.COM/BILL,10/1/16,10/28/16,PUBLICATIONS/REFERENCE MAT'L,0.99,2016,CITI PCARD-APL ITUNES.COM/BILL
,OFFICE OF THE MAJORITY WHIP,2016Q4,GENERAL EXPENDITURES,SUPPLIES AND MATERIALS,11/18/16,AP,891293,CITI PCARD-FS WALLS.IO,10/1/16,10/28/16,SOFTWARE LESS THAN $500,100,2016,CITI PCARD-FS WALLS.IO
,OFFICE OF THE MAJORITY WHIP,2016Q4,GENERAL EXPENDITURES,SUPPLIES AND MATERIALS,11/18/16,AP,891293,CITI PCARD-GAINAPP.COM,9/29/16,9/30/16,SOFTWARE LESS THAN $500,80,2016,CITI PCARD-GAINAPP.COM
,OFFICE OF THE MAJORITY WHIP,2016Q4,GENERAL EXPENDITURES,SUPPLIES AND MATERIALS,11/18/16,AP,E0460483,QUENCH,11/1/16,11/30/16,WATER,46.53,2016,QUENCH
,OFFICE OF THE MAJORITY WHIP,2016Q4,GENERAL EXPENDITURES,SUPPLIES AND MATERIALS,12/5/16,AP,E0465110,QUENCH,12/1/16,12/31/16,WATER,46.53,2016,QUENCH
,OFFICE OF THE MAJORITY WHIP,2016Q4,GENERAL EXPENDITURES,SUPPLIES AND MATERIALS,12/19/16,AP,E0469181,CQ ROLL CALL INC,1/1/17,12/31/17,PUBLICATIONS/REFERENCE MAT'L,9998,2016,CQ ROLL CALL INC
,OFFICE OF THE MAJORITY WHIP,2016Q4,GENERAL EXPENDITURES,SUPPLIES AND MATERIALS,12/19/16,AP,E0469192,POLITICO LLC,12/31/16,12/30/17,PUBLICATIONS/REFERENCE MAT'L,15695,2016,POLITICO LLC
,OFFICE OF THE MINORITY WHIP,2016Q4,GENERAL EXPENDITURES,PERSONNEL COMPENSATION,"","","",ABOUCHAR KEITH S.,10/1/16,12/31/16,SENIOR POLICY ADVISOR,35000.01,2016,ABOUCHAR KEITH S.
,OFFICE OF THE MINORITY WHIP,2016Q4,GENERAL EXPENDITURES,PERSONNEL COMPENSATION,"","","",AVILES DANIELLE R,10/1/16,12/31/16,DEPUTY FLOOR DIRECTOR,18750,2016,AVILES DANIELLE R
,OFFICE OF THE MINORITY WHIP,2016Q4,GENERAL EXPENDITURES,PERSONNEL COMPENSATION,"","","",AVILES DANIELLE R,12/1/16,12/31/16,DEPUTY FLOOR DIRECTOR (OTHER COMPENSATION),3000,2016,AVILES DANIELLE R
,OFFICE OF THE MINORITY WHIP,2016Q4,GENERAL EXPENDITURES,PERSONNEL COMPENSATION,"","","",COLLINS MICHAEL E.,10/1/16,12/31/16,CHIEF DEPUTY WHIP,10625.01,2016,COLLINS MICHAEL E.
,OFFICE OF THE MINORITY WHIP,2016Q4,GENERAL EXPENDITURES,PERSONNEL COMPENSATION,"","","",CORTINA JOSEPH B,10/1/16,12/31/16,SPECIAL ASSISTANT,5558.33,2016,CORTINA JOSEPH B
,OFFICE OF THE MINORITY WHIP,2016Q4,GENERAL EXPENDITURES,PERSONNEL COMPENSATION,"","","",CORTINA JOSEPH B,9/1/16,11/30/16,SPECIAL ASSISTANT (OVERTIME),1610.32,2016,CORTINA JOSEPH B
,OFFICE OF THE MINORITY WHIP,2016Q4,GENERAL EXPENDITURES,PERSONNEL COMPENSATION,"","","",CORTINA JOSEPH B,12/1/16,12/31/16,SPECIAL ASSISTANT (OTHER COMPENSATION),2000,2016,CORTINA JOSEPH B
,OFFICE OF THE MINORITY WHIP,2016Q4,GENERAL EXPENDITURES,PERSONNEL COMPENSATION,"","","",COVEY-BRANDT ALEXIS,10/1/16,12/31/16,CHIEF OF STAFF,43125,2016,COVEY-BRANDT ALEXIS
,OFFICE OF THE MINORITY WHIP,2016Q4,GENERAL EXPENDITURES,PERSONNEL COMPENSATION,"","","",DAVIS ANNALIESE E,10/1/16,12/1/16,PRESS AND RESEARCH ASSISTANT,8546.77,2016,DAVIS ANNALIESE E
,OFFICE OF THE MINORITY WHIP,2016Q4,GENERAL EXPENDITURES,PERSONNEL COMPENSATION,"","","",DWYER STEPHEN,10/1/16,12/31/16,DIGITAL DIR & POLICY ADV,17250,2016,DWYER STEPHEN
,OFFICE OF THE MINORITY WHIP,2016Q4,GENERAL EXPENDITURES,PERSONNEL COMPENSATION,"","","",FRY COURTNEY,10/1/16,12/31/16,DEP OUTREACH DIR & MEM SER ADV,28749.99,2016,FRY COURTNEY
,OFFICE OF THE MINORITY WHIP,2016Q4,GENERAL EXPENDITURES,PERSONNEL COMPENSATION,"","","",FRY COURTNEY,11/1/16,11/1/16,DEP OUTREACH DIR & MEM SER ADV (OTHER COMPENSATION),9000,2016,FRY COURTNEY
,OFFICE OF THE MINORITY WHIP,2016Q4,GENERAL EXPENDITURES,PERSONNEL COMPENSATION,"","","",GOFF SHUWANZA R,10/1/16,12/31/16,FLOOR DIRECTOR,28749.99,2016,GOFF SHUWANZA R
,OFFICE OF THE MINORITY WHIP,2016Q4,GENERAL EXPENDITURES,PERSONNEL COMPENSATION,"","","",GOFF SHUWANZA R,12/1/16,12/31/16,FLOOR DIRECTOR (OTHER COMPENSATION),6000,2016,GOFF SHUWANZA R
,OFFICE OF THE MINORITY WHIP,2016Q4,GENERAL EXPENDITURES,PERSONNEL COMPENSATION,"","","",GRANT KATHRYN L,10/1/16,12/31/16,COMM DIR AND SR ADVISOR,33750,2016,GRANT KATHRYN L
,OFFICE OF THE MINORITY WHIP,2016Q4,GENERAL EXPENDITURES,PERSONNEL COMPENSATION,"","","",GRANT KATHRYN L,12/1/16,12/31/16,COMM DIR AND SR ADVISOR (OTHER COMPENSATION),6000,2016,GRANT KATHRYN L
,OFFICE OF THE MINORITY WHIP,2016Q4,GENERAL EXPENDITURES,PERSONNEL COMPENSATION,"","","",LEUSCHEN JAMES P.,10/1/16,12/31/16,SENIOR POLICY ADVISOR,35000.01,2016,LEUSCHEN JAMES P.
,OFFICE OF THE MINORITY WHIP,2016Q4,GENERAL EXPENDITURES,PERSONNEL COMPENSATION,"","","",MACDONALD CHARLENE,10/1/16,12/31/16,SENIOR POLICY ADVISOR,30000,2016,MACDONALD CHARLENE
,OFFICE OF THE MINORITY WHIP,2016Q4,GENERAL EXPENDITURES,PERSONNEL COMPENSATION,"","","",MAHR THOMAS,10/1/16,12/31/16,POLICY DIRECTOR,39999.99,2016,MAHR THOMAS
,OFFICE OF THE MINORITY WHIP,2016Q4,GENERAL EXPENDITURES,PERSONNEL COMPENSATION,"","","",MITTLER MICHELLE,10/1/16,10/14/16,DIR OF SCHEDLNG & SPEC EVENTS,3111.11,2016,MITTLER MICHELLE
,OFFICE OF THE MINORITY WHIP,2016Q4,GENERAL EXPENDITURES,PERSONNEL COMPENSATION,"","","",NELSON CAITLIN M,10/1/16,12/31/16,STAFF ASSISTANT,6249.99,2016,NELSON CAITLIN M
,OFFICE OF THE MINORITY WHIP,2016Q4,GENERAL EXPENDITURES,PERSONNEL COMPENSATION,"","","",NELSON CAITLIN M,9/1/16,11/30/16,STAFF ASSISTANT (OVERTIME),2812.47,2016,NELSON CAITLIN M
,OFFICE OF THE MINORITY WHIP,2016Q4,GENERAL EXPENDITURES,PERSONNEL COMPENSATION,"","","",NELSON CAITLIN M,12/1/16,12/31/16,STAFF ASSISTANT (OTHER COMPENSATION),2000,2016,NELSON CAITLIN M
,OFFICE OF THE MINORITY WHIP,2016Q4,GENERAL EXPENDITURES,PERSONNEL COMPENSATION,"","","",OPARIL MARIA A,10/1/16,12/31/16,STAFF ASSISTANT,6249.99,2016,OPARIL MARIA A
,OFFICE OF THE MINORITY WHIP,2016Q4,GENERAL EXPENDITURES,PERSONNEL COMPENSATION,"","","",OPARIL MARIA A,9/1/16,11/30/16,STAFF ASSISTANT (OVERTIME),2560.06,2016,OPARIL MARIA A
,OFFICE OF THE MINORITY WHIP,2016Q4,GENERAL EXPENDITURES,PERSONNEL COMPENSATION,"","","",OPARIL MARIA A,12/1/16,12/31/16,STAFF ASSISTANT (OTHER COMPENSATION),2000,2016,OPARIL MARIA A
,OFFICE OF THE MINORITY WHIP,2016Q4,GENERAL EXPENDITURES,PERSONNEL COMPENSATION,"","","",REPKO MARY F,10/1/16,12/31/16,SENIOR POLICY ADVISOR,35000.01,2016,REPKO MARY F
,OFFICE OF THE MINORITY WHIP,2016Q4,GENERAL EXPENDITURES,PERSONNEL COMPENSATION,"","","",ROMICK BRIAN,10/1/16,12/31/16,DEPUTY CHIEF OF STAFF,42500.01,2016,ROMICK BRIAN
,OFFICE OF THE MINORITY WHIP,2016Q4,GENERAL EXPENDITURES,PERSONNEL COMPENSATION,"","","",ROWE DEBORAH M,10/1/16,12/31/16,EXECUTIVE ASSISTANT/OFC MGR,16609.66,2016,ROWE DEBORAH M
,OFFICE OF THE MINORITY WHIP,2016Q4,GENERAL EXPENDITURES,PERSONNEL COMPENSATION,"","","",ROWE DEBORAH M,11/1/16,12/31/16,EXECUTIVE ASSISTANT/OFC MGR (OTHER COMPENSATION),7000,2016,ROWE DEBORAH M
,OFFICE OF THE MINORITY WHIP,2016Q4,GENERAL EXPENDITURES,PERSONNEL COMPENSATION,"","","",SAEZ MARIEL S,10/1/16,12/31/16,PRESS SECRETARY,19749.99,2016,SAEZ MARIEL S
,OFFICE OF THE MINORITY WHIP,2016Q4,GENERAL EXPENDITURES,PERSONNEL COMPENSATION,"","","",SALAZAR RAYMOND J.,10/1/16,12/31/16,FLOOR ASSISTANT,13749.99,2016,SALAZAR RAYMOND J.
,OFFICE OF THE MINORITY WHIP,2016Q4,GENERAL EXPENDITURES,PERSONNEL COMPENSATION,"","","",SALAZAR RAYMOND J.,12/1/16,12/31/16,FLOOR ASSISTANT (OTHER COMPENSATION),3000,2016,SALAZAR RAYMOND J.
,OFFICE OF THE MINORITY WHIP,2016Q4,GENERAL EXPENDITURES,PERSONNEL COMPENSATION,"","","",SILVERBERG DANIEL I,10/1/16,12/31/16,SENIOR POLICY ADVISOR,17750.01,2016,SILVERBERG DANIEL I
,OFFICE OF THE MINORITY WHIP,2016Q4,GENERAL EXPENDITURES,PERSONNEL COMPENSATION,"","","",URRABAZO CLAUDIA,10/1/16,12/31/16,DEP. DIR OF MBR SER & OUTR ADV,23000.01,2016,URRABAZO CLAUDIA
,OFFICE OF THE MINORITY WHIP,2016Q4,GENERAL EXPENDITURES,PERSONNEL COMPENSATION,"","","",WEISSMANN ADAM,10/1/16,12/31/16,SPEECHWRITER,18750,2016,WEISSMANN ADAM
,OFFICE OF THE MINORITY WHIP,2016Q4,GENERAL EXPENDITURES,TRAVEL,10/21/16,AP,E0452774,AVILES DANIELLE R,7/5/16,7/5/16,TAXI/PARKING/TOLLS,10,2016,AVILES DANIELLE R
,OFFICE OF THE MINORITY WHIP,2016Q4,GENERAL EXPENDITURES,TRAVEL,10/21/16,AP,E0452774,AVILES DANIELLE R,9/12/16,9/22/16,TAXI/PARKING/TOLLS,75.45,2016,AVILES DANIELLE R
,OFFICE OF THE MINORITY WHIP,2016Q4,GENERAL EXPENDITURES,TRAVEL,10/21/16,AP,E0452776,NELSON CAITLIN M.,7/5/16,7/13/16,TAXI/PARKING/TOLLS,91.74,2016,NELSON CAITLIN M.
,OFFICE OF THE MINORITY WHIP,2016Q4,GENERAL EXPENDITURES,TRAVEL,10/21/16,AP,E0452776,NELSON CAITLIN M.,9/21/16,9/22/16,TAXI/PARKING/TOLLS,28.66,2016,NELSON CAITLIN M.
,OFFICE OF THE MINORITY WHIP,2016Q4,GENERAL EXPENDITURES,TRAVEL,10/21/16,AP,E0452779,DAVIS ANNALIESE E.,10/1/16,10/1/16,CAR RENTAL,72.6,2016,DAVIS ANNALIESE E.
,OFFICE OF THE MINORITY WHIP,2016Q4,GENERAL EXPENDITURES,TRAVEL,10/24/16,AP,E0453293,OPARIL MARIA A.,7/4/16,7/7/16,TAXI/PARKING/TOLLS,74.23,2016,OPARIL MARIA A.
,OFFICE OF THE MINORITY WHIP,2016Q4,GENERAL EXPENDITURES,TRAVEL,11/18/16,AP,E0460072,GOFF SHUWANZA R,9/15/16,9/15/16,TAXI/PARKING/TOLLS,16.13,2016,GOFF SHUWANZA R
,OFFICE OF THE MINORITY WHIP,2016Q4,GENERAL EXPENDITURES,RENT COMMUNICATION UTILITIES,10/21/16,AP,886235,CITI PCARD-SWA INFLIGHT WIFI,8/29/16,9/28/16,UTILITIES,8,2016,CITI PCARD-SWA INFLIGHT WIFI
,OFFICE OF THE MINORITY WHIP,2016Q4,GENERAL EXPENDITURES,RENT COMMUNICATION UTILITIES,10/21/16,AP,886235,CITI PCARD-SXM SIRIUSXM.COM/ACCT,8/29/16,9/28/16,UTILITIES,240.41,2016,CITI PCARD-SXM SIRIUSXM.COM/ACCT
,OFFICE OF THE MINORITY WHIP,2016Q4,GENERAL EXPENDITURES,PRINTING AND REPRODUCTION,11/18/16,AP,891293,CITI PCARD-CANVA FOR WORK MONTHLY,10/1/16,10/28/16,PRINTING & REPRODUCTION,12.95,2016,CITI PCARD-CANVA FOR WORK MONTHLY
,OFFICE OF THE MINORITY WHIP,2016Q4,GENERAL EXPENDITURES,PRINTING AND REPRODUCTION,12/20/16,AP,896455,CITI PCARD-CANVA FOR WORK MONTHLY,10/29/16,11/28/16,PRINTING & REPRODUCTION,12.95,2016,CITI PCARD-CANVA FOR WORK MONTHLY
,DEMOCRATIC CAUCUS,2016Q4,GENERAL EXPENDITURES,PERSONNEL COMPENSATION,"","","",ALVI HINA R,10/1/16,12/31/16,SHARED EMPLOYEE,7500,2016,ALVI HINA R
,DEMOCRATIC CAUCUS,2016Q4,GENERAL EXPENDITURES,PERSONNEL COMPENSATION,"","","",ARMENDARIZ JR ANTONIO,10/1/16,12/31/16,PRESS SECRETARY,15298,2016,ARMENDARIZ JR ANTONIO
,DEMOCRATIC CAUCUS,2016Q4,GENERAL EXPENDITURES,PERSONNEL COMPENSATION,"","","",BACKEMEYER COURTNEY G,10/1/16,12/31/16,COMMUNICTNS DIR TO VICE CHRMN,8000.01,2016,BACKEMEYER COURTNEY G
,DEMOCRATIC CAUCUS,2016Q4,GENERAL EXPENDITURES,PERSONNEL COMPENSATION,"","","",CARRILLO MANUEL J,10/1/16,12/31/16,OPERATIONS AND EVENTS COOR,25038,2016,CARRILLO MANUEL J
,DEMOCRATIC CAUCUS,2016Q4,GENERAL EXPENDITURES,PERSONNEL COMPENSATION,"","","",CASEY KEVIN,10/1/16,12/31/16,POLICY DIRECTOR / VICE CHAIR,20250,2016,CASEY KEVIN
,DEMOCRATIC CAUCUS,2016Q4,GENERAL EXPENDITURES,PERSONNEL COMPENSATION,"","","",DELANEY ERIC L.,10/1/16,12/31/16,SR. ADVISOR FOR MBR SERV,23636.5,2016,DELANEY ERIC L.
,DEMOCRATIC CAUCUS,2016Q4,GENERAL EXPENDITURES,PERSONNEL COMPENSATION,"","","",DELANEY ERIC L.,12/1/16,12/31/16,SR. ADVISOR FOR MBR SERV (OTHER COMPENSATION),5136.5,2016,DELANEY ERIC L.
,DEMOCRATIC CAUCUS,2016Q4,GENERAL EXPENDITURES,PERSONNEL COMPENSATION,"","","",GOLDFARB SARAH L,10/1/16,11/30/16,COMMUNICATIONS DIRECTOR,15085,2016,GOLDFARB SARAH L
,DEMOCRATIC CAUCUS,2016Q4,GENERAL EXPENDITURES,PERSONNEL COMPENSATION,"","","",HORTA CHRISTOFER,10/1/16,12/31/16,STAFF ASSISTANT,12583.99,2016,HORTA CHRISTOFER
,DEMOCRATIC CAUCUS,2016Q4,GENERAL EXPENDITURES,PERSONNEL COMPENSATION,"","","",HORTA CHRISTOFER,9/1/16,11/30/16,STAFF ASSISTANT (OVERTIME),1438.67,2016,HORTA CHRISTOFER
,DEMOCRATIC CAUCUS,2016Q4,GENERAL EXPENDITURES,PERSONNEL COMPENSATION,"","","",KEATING KATHERINE E.,10/1/16,12/31/16,SHARED EMPLOYEE,18999.99,2016,KEATING KATHERINE E.
,DEMOCRATIC CAUCUS,2016Q4,GENERAL EXPENDITURES,PERSONNEL COMPENSATION,"","","",MARTINEZ ANTHONY M,10/1/16,12/31/16,DIGITAL STRATEGIST,12799.77,2016,MARTINEZ ANTHONY M
,DEMOCRATIC CAUCUS,2016Q4,GENERAL EXPENDITURES,PERSONNEL COMPENSATION,"","","",MARTINEZ GRISELLA M,10/1/16,12/31/16,POLICY DIRECTOR,26578.5,2016,MARTINEZ GRISELLA M
,DEMOCRATIC CAUCUS,2016Q4,GENERAL EXPENDITURES,PERSONNEL COMPENSATION,"","","",MARTINEZ GRISELLA M,12/1/16,12/31/16,POLICY DIRECTOR (OTHER COMPENSATION),6328.5,2016,MARTINEZ GRISELLA M
,DEMOCRATIC CAUCUS,2016Q4,GENERAL EXPENDITURES,PERSONNEL COMPENSATION,"","","",MCCLUSKIE SEAN E,10/1/16,12/31/16,CHIEF OF STAFF,21000,2016,MCCLUSKIE SEAN E
,DEMOCRATIC CAUCUS,2016Q4,GENERAL EXPENDITURES,PERSONNEL COMPENSATION,"","","",NADA BASMAH Y,10/1/16,12/31/16,PRESS ASSISTANT,12298,2016,NADA BASMAH Y
,DEMOCRATIC CAUCUS,2016Q4,GENERAL EXPENDITURES,PERSONNEL COMPENSATION,"","","",NORIEGA EMILY J,10/1/16,10/31/16,ADV FOR MEMBER SERVICES,995,2016,NORIEGA EMILY J
,DEMOCRATIC CAUCUS,2016Q4,GENERAL EXPENDITURES,PERSONNEL COMPENSATION,"","","",NSIAH JOSEPH K,10/1/16,12/31/16,POLICY ADVISOR,23958.01,2016,NSIAH JOSEPH K
,DEMOCRATIC CAUCUS,2016Q4,GENERAL EXPENDITURES,PERSONNEL COMPENSATION,"","","",PEREZ-SANCHEZ NOEL,10/1/16,12/31/16,ADVISOR FOR MBR. SERVICES,22174,2016,PEREZ-SANCHEZ NOEL
,DEMOCRATIC CAUCUS,2016Q4,GENERAL EXPENDITURES,PERSONNEL COMPENSATION,"","","",PEREZ-SANCHEZ NOEL,12/1/16,12/31/16,ADVISOR FOR MBR. SERVICES (OTHER COMPENSATION),4424,2016,PEREZ-SANCHEZ NOEL
,DEMOCRATIC CAUCUS,2016Q4,GENERAL EXPENDITURES,PERSONNEL COMPENSATION,"","","",RODRIGUEZ-CIAMPOLI FABIOLA,10/1/16,12/31/16,EXECUTIVE DIRECTOR,40833.33,2016,RODRIGUEZ-CIAMPOLI FABIOLA
,DEMOCRATIC CAUCUS,2016Q4,GENERAL EXPENDITURES,PERSONNEL COMPENSATION,"","","",RODRIGUEZ-CIAMPOLI FABIOLA,8/1/16,8/30/16,EXECUTIVE DIRECTOR (OTHER COMPENSATION),9194.68,2016,RODRIGUEZ-CIAMPOLI FABIOLA
,DEMOCRATIC CAUCUS,2016Q4,GENERAL EXPENDITURES,PERSONNEL COMPENSATION,"","","",SACHSE ANDREW M,10/1/16,12/31/16,STAFF ASSISTANT,13750.01,2016,SACHSE ANDREW M
,DEMOCRATIC CAUCUS,2016Q4,GENERAL EXPENDITURES,PERSONNEL COMPENSATION,"","","",SALAZAR MIGUEL R,10/1/16,12/31/16,PRESS SECRETARY,17321.99,2016,SALAZAR MIGUEL R
,DEMOCRATIC CAUCUS,2016Q4,GENERAL EXPENDITURES,PERSONNEL COMPENSATION,"","","",SHARMA MOH R,10/1/16,12/31/16,SENIOR POLICY ADVISOR,26035.99,2016,SHARMA MOH R
,DEMOCRATIC CAUCUS,2016Q4,GENERAL EXPENDITURES,PERSONNEL COMPENSATION,"","","",SHEFFEY TRE'SHONDA S,10/1/16,12/31/16,STAFF ASSISTANT,9189.05,2016,SHEFFEY TRE'SHONDA S
,DEMOCRATIC CAUCUS,2016Q4,GENERAL EXPENDITURES,PERSONNEL COMPENSATION,"","","",SHEFFEY TRE'SHONDA S,9/1/16,11/30/16,STAFF ASSISTANT (OVERTIME),1192.31,2016,SHEFFEY TRE'SHONDA S
,DEMOCRATIC CAUCUS,2016Q4,GENERAL EXPENDITURES,PERSONNEL COMPENSATION,"","","",WOODRUM JEREMY S,10/1/16,12/31/16,LEGISLATIVE DIR. VICE CHAIR,10749.99,2016,WOODRUM JEREMY S
,DEMOCRATIC CAUCUS,2016Q4,GENERAL EXPENDITURES,TRAVEL,10/17/16,AP,E0450669,SALAZAR MIGUEL R.,9/14/16,9/14/16,TAXI/PARKING/TOLLS,7.6,2016,SALAZAR MIGUEL R.
,DEMOCRATIC CAUCUS,2016Q4,GENERAL EXPENDITURES,TRAVEL,10/17/16,AP,E0450669,SALAZAR MIGUEL R.,9/15/16,9/15/16,TAXI/PARKING/TOLLS,6.41,2016,SALAZAR MIGUEL R.
,DEMOCRATIC CAUCUS,2016Q4,GENERAL EXPENDITURES,TRAVEL,11/14/16,AP,E0458745,SALAZAR MIGUEL R.,10/21/16,10/21/16,TAXI/PARKING/TOLLS,7.66,2016,SALAZAR MIGUEL R.
,DEMOCRATIC CAUCUS,2016Q4,GENERAL EXPENDITURES,TRAVEL,12/15/16,AP,E0468590,CARRILLO MANUEL J.,11/16/16,11/16/16,TAXI/PARKING/TOLLS,7.77,2016,CARRILLO MANUEL J.
,DEMOCRATIC CAUCUS,2016Q4,GENERAL EXPENDITURES,TRAVEL,12/15/16,AP,E0468590,CARRILLO MANUEL J.,11/29/16,11/29/16,TAXI/PARKING/TOLLS,7.89,2016,CARRILLO MANUEL J.
,DEMOCRATIC CAUCUS,2016Q4,GENERAL EXPENDITURES,TRAVEL,12/15/16,AP,E0468590,CARRILLO MANUEL J.,12/5/16,12/5/16,TAXI/PARKING/TOLLS,52.32,2016,CARRILLO MANUEL J.
,DEMOCRATIC CAUCUS,2016Q4,GENERAL EXPENDITURES,PRINTING AND REPRODUCTION,11/18/16,AP,891293,CITI PCARD-WWW.ISTOCK.COM,10/1/16,10/28/16,PRINTING & REPRODUCTION,52.66,2016,CITI PCARD-WWW.ISTOCK.COM
,DEMOCRATIC CAUCUS,2016Q4,GENERAL EXPENDITURES,PRINTING AND REPRODUCTION,12/28/16,GL,PIX0064465,"",12/1/16,12/31/16,PHOTOGRAPHIC (TRANSFER),126.5,2016,""
,DEMOCRATIC CAUCUS,2016Q4,GENERAL EXPENDITURES,OTHER SERVICES,10/21/16,AP,886235,CITI PCARD-CLASSICLEANERS,8/29/16,9/28/16,LAUNDRY SERVICES,230.5,2016,CITI PCARD-CLASSICLEANERS
,DEMOCRATIC CAUCUS,2016Q4,GENERAL EXPENDITURES,SUPPLIES AND MATERIALS,10/20/16,AP,886225,CATERING BY AVALON INC,9/7/16,9/7/16,FOOD & BEVERAGE,2455,2016,CATERING BY AVALON INC
,DEMOCRATIC CAUCUS,2016Q4,GENERAL EXPENDITURES,SUPPLIES AND MATERIALS,10/21/16,AP,886235,CITI PCARD-BETHESDA BAGELS,8/29/16,9/28/16,FOOD & BEVERAGE,3705.24,2016,CITI PCARD-BETHESDA BAGELS
,DEMOCRATIC CAUCUS,2016Q4,GENERAL EXPENDITURES,SUPPLIES AND MATERIALS,10/21/16,AP,886235,CITI PCARD-CAPITOL HOST,8/29/16,9/28/16,FOOD & BEVERAGE,250,2016,CITI PCARD-CAPITOL HOST
,DEMOCRATIC CAUCUS,2016Q4,GENERAL EXPENDITURES,SUPPLIES AND MATERIALS,10/21/16,AP,886235,CITI PCARD-HARRIS TEETER,8/29/16,9/28/16,FOOD & BEVERAGE,1085.98,2016,CITI PCARD-HARRIS TEETER
,DEMOCRATIC CAUCUS,2016Q4,GENERAL EXPENDITURES,SUPPLIES AND MATERIALS,10/21/16,AP,886235,CITI PCARD-SAFEWAY STORE,8/29/16,9/28/16,FOOD & BEVERAGE,52.18,2016,CITI PCARD-SAFEWAY STORE
,DEMOCRATIC CAUCUS,2016Q4,GENERAL EXPENDITURES,SUPPLIES AND MATERIALS,10/25/16,AP,883688,DEER PARK,9/30/16,9/30/16,WATER,29.99,2016,DEER PARK
,DEMOCRATIC CAUCUS,2016Q4,GENERAL EXPENDITURES,SUPPLIES AND MATERIALS,11/18/16,AP,891293,CITI PCARD-AMAZON MKTPLACE PMTS,10/1/16,10/28/16,FOOD & BEVERAGE,123.32,2016,CITI PCARD-AMAZON MKTPLACE PMTS
,DEMOCRATIC CAUCUS,2016Q4,GENERAL EXPENDITURES,SUPPLIES AND MATERIALS,11/18/16,AP,891293,CITI PCARD-AUDIOBLOCKS.COM,10/1/16,10/28/16,PUBLICATIONS/REFERENCE MAT'L,99,2016,CITI PCARD-AUDIOBLOCKS.COM
,DEMOCRATIC CAUCUS,2016Q4,GENERAL EXPENDITURES,SUPPLIES AND MATERIALS,11/18/16,AP,891293,CITI PCARD-CONGRESS CATERING LLC,9/29/16,9/30/16,FOOD & BEVERAGE,210,2016,CITI PCARD-CONGRESS CATERING LLC
,DEMOCRATIC CAUCUS,2016Q4,GENERAL EXPENDITURES,SUPPLIES AND MATERIALS,11/18/16,AP,891293,CITI PCARD-CONGRESS CATERING LLC,10/1/16,10/28/16,FOOD & BEVERAGE,446,2016,CITI PCARD-CONGRESS CATERING LLC
,DEMOCRATIC CAUCUS,2016Q4,GENERAL EXPENDITURES,SUPPLIES AND MATERIALS,11/18/16,AP,891293,CITI PCARD-HARRIS TEETER,10/1/16,10/28/16,FOOD & BEVERAGE,185.82,2016,CITI PCARD-HARRIS TEETER
,DEMOCRATIC CAUCUS,2016Q4,GENERAL EXPENDITURES,SUPPLIES AND MATERIALS,11/18/16,AP,891293,CITI PCARD-MAILCHIMP,10/1/16,10/28/16,PUBLICATIONS/REFERENCE MAT'L,50,2016,CITI PCARD-MAILCHIMP
,DEMOCRATIC CAUCUS,2016Q4,GENERAL EXPENDITURES,SUPPLIES AND MATERIALS,11/18/16,AP,891293,CITI PCARD-SAINT GERMAIN CATERING,9/29/16,9/30/16,FOOD & BEVERAGE,332.1,2016,CITI PCARD-SAINT GERMAIN CATERING
,DEMOCRATIC CAUCUS,2016Q4,GENERAL EXPENDITURES,SUPPLIES AND MATERIALS,11/21/16,AP,891234,DEER PARK,10/31/16,10/31/16,WATER,29.99,2016,DEER PARK
,DEMOCRATIC CAUCUS,2016Q4,GENERAL EXPENDITURES,SUPPLIES AND MATERIALS,12/15/16,AP,E0468598,CARRILLO MANUEL J.,12/9/16,12/9/16,FOOD & BEVERAGE,5.5,2016,CARRILLO MANUEL J.
,DEMOCRATIC CAUCUS,2016Q4,GENERAL EXPENDITURES,SUPPLIES AND MATERIALS,12/20/16,AP,896430,DEER PARK,11/30/16,11/30/16,WATER,29.99,2016,DEER PARK
,DEMOCRATIC CAUCUS,2016Q4,GENERAL EXPENDITURES,SUPPLIES AND MATERIALS,12/20/16,AP,896455,CITI PCARD-AMAZON MKTPLACE PMTS,10/29/16,11/28/16,FOOD & BEVERAGE,107.1,2016,CITI PCARD-AMAZON MKTPLACE PMTS
,DEMOCRATIC CAUCUS,2016Q4,GENERAL EXPENDITURES,SUPPLIES AND MATERIALS,12/20/16,AP,896455,CITI PCARD-BETHESDA BAGELS,10/29/16,11/28/16,FOOD & BEVERAGE,2875,2016,CITI PCARD-BETHESDA BAGELS
,DEMOCRATIC CAUCUS,2016Q4,GENERAL EXPENDITURES,SUPPLIES AND MATERIALS,12/20/16,AP,896455,CITI PCARD-D J WALL-ST-JOURNAL,10/29/16,11/28/16,PUBLICATIONS/REFERENCE MAT'L,418.64,2016,CITI PCARD-D J WALL-ST-JOURNAL
,DEMOCRATIC CAUCUS,2016Q4,GENERAL EXPENDITURES,SUPPLIES AND MATERIALS,12/20/16,AP,896455,CITI PCARD-HARRIS TEETER,10/29/16,11/28/16,FOOD & BEVERAGE,721.05,2016,CITI PCARD-HARRIS TEETER
,DEMOCRATIC CAUCUS,2016Q4,GENERAL EXPENDITURES,SUPPLIES AND MATERIALS,12/20/16,AP,896455,CITI PCARD-LA TIMES SUBSCRIPTION,10/29/16,11/28/16,PUBLICATIONS/REFERENCE MAT'L,11.96,2016,CITI PCARD-LA TIMES SUBSCRIPTION
,DEMOCRATIC CAUCUS,2016Q4,GENERAL EXPENDITURES,SUPPLIES AND MATERIALS,12/20/16,AP,896455,CITI PCARD-MAILCHIMP,10/29/16,11/28/16,PUBLICATIONS/REFERENCE MAT'L,50,2016,CITI PCARD-MAILCHIMP
,DEMOCRATIC CAUCUS,2016Q4,GENERAL EXPENDITURES,SUPPLIES AND MATERIALS,12/20/16,AP,896455,CITI PCARD-THEECONOMIST NEWSPAPER,10/29/16,11/28/16,PUBLICATIONS/REFERENCE MAT'L,47.59,2016,CITI PCARD-THEECONOMIST NEWSPAPER
,REPUBLICAN CONFERENCE,2016Q4,GENERAL EXPENDITURES,PERSONNEL COMPENSATION,"","","",BUCHELI DANIEL C,10/1/16,12/16/16,SPECIALTY MEDIA PRESS SECRETAR,11611.1,2016,BUCHELI DANIEL C
,REPUBLICAN CONFERENCE,2016Q4,GENERAL EXPENDITURES,PERSONNEL COMPENSATION,"","","",CROCKER NICHOLAS L,10/1/16,12/31/16,MEMBER SERVICES COORDINATOR,17500.01,2016,CROCKER NICHOLAS L
,REPUBLICAN CONFERENCE,2016Q4,GENERAL EXPENDITURES,PERSONNEL COMPENSATION,"","","",DAINES ANNE C,10/1/16,11/23/16,COMMUNICATIONS ASSISTANT,5668.05,2016,DAINES ANNE C
,REPUBLICAN CONFERENCE,2016Q4,GENERAL EXPENDITURES,PERSONNEL COMPENSATION,"","","",DEUTSCH JEREMY,10/1/16,12/31/16,CHIEF OF STAFF,30125.01,2016,DEUTSCH JEREMY
,REPUBLICAN CONFERENCE,2016Q4,GENERAL EXPENDITURES,PERSONNEL COMPENSATION,"","","",DUPPLER MARTHA C,10/1/16,10/31/16,COALITIONS DIRECTOR,7916.67,2016,DUPPLER MARTHA C
,REPUBLICAN CONFERENCE,2016Q4,GENERAL EXPENDITURES,PERSONNEL COMPENSATION,"","","",FUHS MOLLY B,10/1/16,12/31/16,PRESS SECRETARY,7750,2016,FUHS MOLLY B
,REPUBLICAN CONFERENCE,2016Q4,GENERAL EXPENDITURES,PERSONNEL COMPENSATION,"","","",HALL MIKAYLA M,10/1/16,12/31/16,SPEECH WRITER,13999.99,2016,HALL MIKAYLA M
,REPUBLICAN CONFERENCE,2016Q4,GENERAL EXPENDITURES,PERSONNEL COMPENSATION,"","","",HAUCK KARA,10/1/16,12/31/16,COMMUNICATIONS DIRECTOR,28750.01,2016,HAUCK KARA
,REPUBLICAN CONFERENCE,2016Q4,GENERAL EXPENDITURES,PERSONNEL COMPENSATION,"","","",HODSON NATHAN M,10/1/16,12/31/16,DEPUTY CHIEF OF STAFF,42102.75,2016,HODSON NATHAN M
,REPUBLICAN CONFERENCE,2016Q4,GENERAL EXPENDITURES,PERSONNEL COMPENSATION,"","","",KING EMILY P,10/1/16,12/31/16,DEPUTY SCHEDULER,12250.01,2016,KING EMILY P
,REPUBLICAN CONFERENCE,2016Q4,GENERAL EXPENDITURES,PERSONNEL COMPENSATION,"","","",MARK REBECCA,10/1/16,12/31/16,SR. ADVISOR TECH POLICY/WOMEN,23284.59,2016,MARK REBECCA
,REPUBLICAN CONFERENCE,2016Q4,GENERAL EXPENDITURES,PERSONNEL COMPENSATION,"","","",PEREZ MEGAN C,9/1/16,12/31/16,POLICY ADVISOR,19416.66,2016,PEREZ MEGAN C
,REPUBLICAN CONFERENCE,2016Q4,GENERAL EXPENDITURES,PERSONNEL COMPENSATION,"","","",POWELL JARED K,10/1/16,12/31/16,STAFF ASSISTANT,13445.83,2016,POWELL JARED K
,REPUBLICAN CONFERENCE,2016Q4,GENERAL EXPENDITURES,PERSONNEL COMPENSATION,"","","",ROGERS SARAH E,10/1/16,12/31/16,DIRECTOR OF MEMBER SERVICES,34867.59,2016,ROGERS SARAH E
,REPUBLICAN CONFERENCE,2016Q4,GENERAL EXPENDITURES,PERSONNEL COMPENSATION,"","","",ROOS AMBER E,10/1/16,12/31/16,FINANCE ASSISTANT,3825,2016,ROOS AMBER E
,REPUBLICAN CONFERENCE,2016Q4,GENERAL EXPENDITURES,PERSONNEL COMPENSATION,"","","",ROSS JOHN E.,10/1/16,12/31/16,FINANCE DIRECTOR,2649.99,2016,ROSS JOHN E.
,REPUBLICAN CONFERENCE,2016Q4,GENERAL EXPENDITURES,PERSONNEL COMPENSATION,"","","",SMENTEK DAVID,10/1/16,12/31/16,POLICY COORDINATOR,13750,2016,SMENTEK DAVID
,REPUBLICAN CONFERENCE,2016Q4,GENERAL EXPENDITURES,PERSONNEL COMPENSATION,"","","",STEVENS PAMELA R,9/1/16,10/1/16,DIRECTOR OF MEDIA AFFAIRS,5131.95,2016,STEVENS PAMELA R
,REPUBLICAN CONFERENCE,2016Q4,GENERAL EXPENDITURES,PERSONNEL COMPENSATION,"","","",STEVENS PAMELA R,10/1/16,10/1/16,DIRECTOR OF MEDIA AFFAIRS (OTHER COMPENSATION),10593.06,2016,STEVENS PAMELA R
,REPUBLICAN CONFERENCE,2016Q4,GENERAL EXPENDITURES,PERSONNEL COMPENSATION,"","","",SUNDAY JESSICA M,10/1/16,12/31/16,DIR OF OPERATIONS & CULTURE,16840.01,2016,SUNDAY JESSICA M
,REPUBLICAN CONFERENCE,2016Q4,GENERAL EXPENDITURES,PERSONNEL COMPENSATION,"","","",THORNE DRAY A,10/1/16,12/31/16,SYSTEMS ADMINISTRATOR,12000,2016,THORNE DRAY A
,REPUBLICAN CONFERENCE,2016Q4,GENERAL EXPENDITURES,PERSONNEL COMPENSATION,"","","",WHITE JERRY L,12/1/16,12/31/16,POLICY DIRECTOR,13044.67,2016,WHITE JERRY L
,REPUBLICAN CONFERENCE,2016Q4,GENERAL EXPENDITURES,TRAVEL,11/7/16,AP,E0456830,ROSS JOHN E.,6/22/16,10/20/16,TAXI/PARKING/TOLLS,305.91,2016,ROSS JOHN E.
,REPUBLICAN CONFERENCE,2016Q4,GENERAL EXPENDITURES,TRAVEL,11/17/16,AP,E0459391,CITIBANK GOV CARD SERVICE,10/3/16,10/3/16,COMMERCIAL TRANSPORTATION,865.2,2016,CITIBANK GOV CARD SERVICE
,REPUBLICAN CONFERENCE,2016Q4,GENERAL EXPENDITURES,TRAVEL,11/17/16,AP,E0459391,CITIBANK GOV CARD SERVICE,10/4/16,10/4/16,COMMERCIAL TRANSPORTATION,353.6,2016,CITIBANK GOV CARD SERVICE
,REPUBLICAN CONFERENCE,2016Q4,GENERAL EXPENDITURES,TRAVEL,11/17/16,AP,E0459391,CITIBANK GOV CARD SERVICE,10/12/16,10/12/16,COMMERCIAL TRANSPORTATION,381.6,2016,CITIBANK GOV CARD SERVICE
,REPUBLICAN CONFERENCE,2016Q4,GENERAL EXPENDITURES,TRAVEL,11/17/16,AP,E0459391,CITIBANK GOV CARD SERVICE,10/7/16,10/7/16,LODGING,625.03,2016,CITIBANK GOV CARD SERVICE
,REPUBLICAN CONFERENCE,2016Q4,GENERAL EXPENDITURES,TRAVEL,11/17/16,AP,E0459391,CITIBANK GOV CARD SERVICE,10/21/16,10/21/16,LODGING,564.4,2016,CITIBANK GOV CARD SERVICE
,REPUBLICAN CONFERENCE,2016Q4,GENERAL EXPENDITURES,TRAVEL,11/17/16,AP,E0459391,CITIBANK GOV CARD SERVICE,10/7/16,10/7/16,MEALS,4.34,2016,CITIBANK GOV CARD SERVICE
,REPUBLICAN CONFERENCE,2016Q4,GENERAL EXPENDITURES,TRAVEL,11/17/16,AP,E0459391,CITIBANK GOV CARD SERVICE,10/21/16,10/21/16,MEALS,2.17,2016,CITIBANK GOV CARD SERVICE
,REPUBLICAN CONFERENCE,2016Q4,GENERAL EXPENDITURES,TRAVEL,12/8/16,AR,AC-12464,HAUCK KARA,8/8/16,8/12/16,COMMERCIAL TRANSPORTATION,-549.2,2016,HAUCK KARA
,REPUBLICAN CONFERENCE,2016Q4,GENERAL EXPENDITURES,TRAVEL,12/14/16,AP,E0468063,CITIBANK GOV CARD SERVICE,11/6/16,11/9/16,COMMERCIAL TRANSPORTATION,996.2,2016,CITIBANK GOV CARD SERVICE
,REPUBLICAN CONFERENCE,2016Q4,GENERAL EXPENDITURES,TRAVEL,12/14/16,AP,E0468063,CITIBANK GOV CARD SERVICE,11/6/16,11/9/16,LODGING,338.64,2016,CITIBANK GOV CARD SERVICE
,REPUBLICAN CONFERENCE,2016Q4,GENERAL EXPENDITURES,TRAVEL,12/14/16,AP,E0468063,CITIBANK GOV CARD SERVICE,11/15/16,11/15/16,TAXI/PARKING/TOLLS,9.31,2016,CITIBANK GOV CARD SERVICE
,REPUBLICAN CONFERENCE,2016Q4,GENERAL EXPENDITURES,RENT COMMUNICATION UTILITIES,11/7/16,AP,E0456828,FEDEX FREIGHT INC,8/31/16,8/31/16,POSTAGE / COURIER / BOX RENTAL,85,2016,FEDEX FREIGHT INC
,REPUBLICAN CONFERENCE,2016Q4,GENERAL EXPENDITURES,RENT COMMUNICATION UTILITIES,11/7/16,AP,E0456829,FEDEX FREIGHT INC,8/25/16,8/25/16,POSTAGE / COURIER / BOX RENTAL,362.5,2016,FEDEX FREIGHT INC
,REPUBLICAN CONFERENCE,2016Q4,GENERAL EXPENDITURES,RENT COMMUNICATION UTILITIES,11/15/16,AP,E0459392,ZERO GRAVITY PROJECT LLC,11/10/16,11/10/16,RECORDING (OUTSIDE),800,2016,ZERO GRAVITY PROJECT LLC
,REPUBLICAN CONFERENCE,2016Q4,GENERAL EXPENDITURES,RENT COMMUNICATION UTILITIES,11/23/16,AP,E0461890,PAUL GORE INC,10/27/16,10/27/16,RECORDING (OUTSIDE),750,2016,PAUL GORE INC
,REPUBLICAN CONFERENCE,2016Q4,GENERAL EXPENDITURES,PRINTING AND REPRODUCTION,10/21/16,AP,886235,CITI PCARD-FACEBK,8/29/16,9/28/16,ADVERTISEMENTS,318.75,2016,CITI PCARD-FACEBK
,REPUBLICAN CONFERENCE,2016Q4,GENERAL EXPENDITURES,PRINTING AND REPRODUCTION,10/21/16,AP,886235,CITI PCARD-GETTY IMAGES,8/29/16,9/28/16,PRINTING & REPRODUCTION,99,2016,CITI PCARD-GETTY IMAGES
,REPUBLICAN CONFERENCE,2016Q4,GENERAL EXPENDITURES,PRINTING AND REPRODUCTION,11/1/16,AP,E0455504,SHARP ELECTRONICS CORPORATION,7/1/16,10/1/16,PRINTING & REPRODUCTION,194.04,2016,SHARP ELECTRONICS CORPORATION
,REPUBLICAN CONFERENCE,2016Q4,GENERAL EXPENDITURES,PRINTING AND REPRODUCTION,11/18/16,AP,891293,CITI PCARD-FACEBK,9/29/16,9/30/16,ADVERTISEMENTS,471.83,2016,CITI PCARD-FACEBK
,REPUBLICAN CONFERENCE,2016Q4,GENERAL EXPENDITURES,PRINTING AND REPRODUCTION,11/18/16,AP,891293,CITI PCARD-GETTY IMAGES,9/29/16,9/30/16,PRINTING & REPRODUCTION,99,2016,CITI PCARD-GETTY IMAGES
,REPUBLICAN CONFERENCE,2016Q4,GENERAL EXPENDITURES,PRINTING AND REPRODUCTION,11/18/16,AP,891293,CITI PCARD-MBH JOBS,10/1/16,10/28/16,ADVERTISEMENTS,297,2016,CITI PCARD-MBH JOBS
,REPUBLICAN CONFERENCE,2016Q4,GENERAL EXPENDITURES,PRINTING AND REPRODUCTION,11/18/16,AP,891293,CITI PCARD-MINUTEMAN PRESS WASHIN,10/1/16,10/28/16,PRINTING & REPRODUCTION,375,2016,CITI PCARD-MINUTEMAN PRESS WASHIN
,REPUBLICAN CONFERENCE,2016Q4,GENERAL EXPENDITURES,PRINTING AND REPRODUCTION,11/21/16,AP,E0461889,ACCURATE WORD LLC,11/10/16,11/10/16,PRINTING & REPRODUCTION,513,2016,ACCURATE WORD LLC
,REPUBLICAN CONFERENCE,2016Q4,GENERAL EXPENDITURES,PRINTING AND REPRODUCTION,12/20/16,AP,896455,CITI PCARD-COLORGRAPHIC PRINTING,10/29/16,11/28/16,PRINTING & REPRODUCTION,3097.28,2016,CITI PCARD-COLORGRAPHIC PRINTING
,REPUBLICAN CONFERENCE,2016Q4,GENERAL EXPENDITURES,PRINTING AND REPRODUCTION,12/20/16,AP,896455,CITI PCARD-FACEBK,10/29/16,11/28/16,ADVERTISEMENTS,469.52,2016,CITI PCARD-FACEBK
,REPUBLICAN CONFERENCE,2016Q4,GENERAL EXPENDITURES,PRINTING AND REPRODUCTION,12/20/16,AP,896455,CITI PCARD-GETTY IMAGES,10/29/16,11/28/16,PRINTING & REPRODUCTION,99,2016,CITI PCARD-GETTY IMAGES
,REPUBLICAN CONFERENCE,2016Q4,GENERAL EXPENDITURES,PRINTING AND REPRODUCTION,12/20/16,AP,896455,CITI PCARD-WWW.ISTOCK.COM,10/29/16,11/28/16,PRINTING & REPRODUCTION,84,2016,CITI PCARD-WWW.ISTOCK.COM
,REPUBLICAN CONFERENCE,2016Q4,GENERAL EXPENDITURES,SUPPLIES AND MATERIALS,10/21/16,AP,886235,CITI PCARD-ADOBE CREATIVE CLOUD,8/29/16,9/28/16,SOFTWARE LESS THAN $500,370.07,2016,CITI PCARD-ADOBE CREATIVE CLOUD
,REPUBLICAN CONFERENCE,2016Q4,GENERAL EXPENDITURES,SUPPLIES AND MATERIALS,10/21/16,AP,886235,CITI PCARD-CARMINE'S,8/29/16,9/28/16,FOOD & BEVERAGE,304.42,2016,CITI PCARD-CARMINE'S
,REPUBLICAN CONFERENCE,2016Q4,GENERAL EXPENDITURES,SUPPLIES AND MATERIALS,10/21/16,AP,886235,CITI PCARD-CHICK-FIL-A,8/29/16,9/28/16,FOOD & BEVERAGE,1913.75,2016,CITI PCARD-CHICK-FIL-A
,REPUBLICAN CONFERENCE,2016Q4,GENERAL EXPENDITURES,SUPPLIES AND MATERIALS,10/21/16,AP,886235,CITI PCARD-CORNER BAKERY,8/29/16,9/28/16,FOOD & BEVERAGE,3657.1,2016,CITI PCARD-CORNER BAKERY
,REPUBLICAN CONFERENCE,2016Q4,GENERAL EXPENDITURES,SUPPLIES AND MATERIALS,10/21/16,AP,886235,CITI PCARD-MANGIALARDO & SONS,8/29/16,9/28/16,FOOD & BEVERAGE,227.85,2016,CITI PCARD-MANGIALARDO & SONS
,REPUBLICAN CONFERENCE,2016Q4,GENERAL EXPENDITURES,SUPPLIES AND MATERIALS,10/21/16,AP,886235,CITI PCARD-NEW YORK TIMES DIGITAL,8/29/16,9/28/16,PUBLICATIONS/REFERENCE MAT'L,30,2016,CITI PCARD-NEW YORK TIMES DIGITAL
,REPUBLICAN CONFERENCE,2016Q4,GENERAL EXPENDITURES,SUPPLIES AND MATERIALS,10/21/16,AP,886235,CITI PCARD-QDOBA MEXICAN GRIL,8/29/16,9/28/16,FOOD & BEVERAGE,449.57,2016,CITI PCARD-QDOBA MEXICAN GRIL
,REPUBLICAN CONFERENCE,2016Q4,GENERAL EXPENDITURES,SUPPLIES AND MATERIALS,10/21/16,AP,886235,CITI PCARD-SQ FAR EAST TACO GRIL,8/29/16,9/28/16,FOOD & BEVERAGE,220,2016,CITI PCARD-SQ FAR EAST TACO GRIL
,REPUBLICAN CONFERENCE,2016Q4,GENERAL EXPENDITURES,SUPPLIES AND MATERIALS,10/25/16,AP,883688,DEER PARK,9/30/16,9/30/16,WATER,310.61,2016,DEER PARK
,REPUBLICAN CONFERENCE,2016Q4,GENERAL EXPENDITURES,SUPPLIES AND MATERIALS,10/28/16,AP,E0455501,ARAMARK REFRESHMENT SERVICES,10/1/16,10/31/16,FOOD & BEVERAGE,108,2016,ARAMARK REFRESHMENT SERVICES
,REPUBLICAN CONFERENCE,2016Q4,GENERAL EXPENDITURES,SUPPLIES AND MATERIALS,10/28/16,AP,E0455502,ARAMARK REFRESHMENT SERVICES,11/1/16,11/30/16,FOOD & BEVERAGE,108,2016,ARAMARK REFRESHMENT SERVICES
,REPUBLICAN CONFERENCE,2016Q4,GENERAL EXPENDITURES,SUPPLIES AND MATERIALS,11/1/16,AP,E0455503,ARAMARK REFRESHMENT SERVICES,9/16/16,9/16/16,FOOD & BEVERAGE,1708.11,2016,ARAMARK REFRESHMENT SERVICES
,REPUBLICAN CONFERENCE,2016Q4,GENERAL EXPENDITURES,SUPPLIES AND MATERIALS,11/2/16,AP,E0455512,ARAMARK REFRESHMENT SERVICES,10/14/16,10/14/16,FOOD & BEVERAGE,1631.71,2016,ARAMARK REFRESHMENT SERVICES
,REPUBLICAN CONFERENCE,2016Q4,GENERAL EXPENDITURES,SUPPLIES AND MATERIALS,11/9/16,AP,E0458041,ARAMARK REFRESHMENT SERVICES,11/4/16,11/4/16,FOOD & BEVERAGE,1632.95,2016,ARAMARK REFRESHMENT SERVICES
,REPUBLICAN CONFERENCE,2016Q4,GENERAL EXPENDITURES,SUPPLIES AND MATERIALS,11/18/16,AP,891293,CITI PCARD-ADOBE CREATIVE CLOUD,10/1/16,10/28/16,SOFTWARE LESS THAN $500,370.07,2016,CITI PCARD-ADOBE CREATIVE CLOUD
,REPUBLICAN CONFERENCE,2016Q4,GENERAL EXPENDITURES,SUPPLIES AND MATERIALS,11/18/16,AP,891293,CITI PCARD-CAPITOL HOST,9/29/16,9/30/16,FOOD & BEVERAGE,329.63,2016,CITI PCARD-CAPITOL HOST
,REPUBLICAN CONFERENCE,2016Q4,GENERAL EXPENDITURES,SUPPLIES AND MATERIALS,11/18/16,AP,891293,CITI PCARD-LADY CAMELLIA,9/29/16,9/30/16,FOOD & BEVERAGE,465.3,2016,CITI PCARD-LADY CAMELLIA
,REPUBLICAN CONFERENCE,2016Q4,GENERAL EXPENDITURES,SUPPLIES AND MATERIALS,11/18/16,AP,891293,CITI PCARD-NEW YORK TIMES DIGITAL,10/1/16,10/28/16,PUBLICATIONS/REFERENCE MAT'L,15,2016,CITI PCARD-NEW YORK TIMES DIGITAL
,REPUBLICAN CONFERENCE,2016Q4,GENERAL EXPENDITURES,SUPPLIES AND MATERIALS,11/18/16,AP,891293,CITI PCARD-QDOBA MEXICAN GRIL,10/1/16,10/28/16,FOOD & BEVERAGE,387.87,2016,CITI PCARD-QDOBA MEXICAN GRIL
,REPUBLICAN CONFERENCE,2016Q4,GENERAL EXPENDITURES,SUPPLIES AND MATERIALS,11/18/16,AP,891293,CITI PCARD-TME TIME MAGAZINE,10/1/16,10/28/16,PUBLICATIONS/REFERENCE MAT'L,47.53,2016,CITI PCARD-TME TIME MAGAZINE
,REPUBLICAN CONFERENCE,2016Q4,GENERAL EXPENDITURES,SUPPLIES AND MATERIALS,11/21/16,AP,891234,DEER PARK,10/31/16,10/31/16,WATER,274.65,2016,DEER PARK
,REPUBLICAN CONFERENCE,2016Q4,GENERAL EXPENDITURES,SUPPLIES AND MATERIALS,11/23/16,AP,E0461888,ARAMARK REFRESHMENT SERVICES,10/27/16,10/27/16,WATER,60,2016,ARAMARK REFRESHMENT SERVICES
,REPUBLICAN CONFERENCE,2016Q4,GENERAL EXPENDITURES,SUPPLIES AND MATERIALS,12/14/16,AP,E0468064,ARAMARK REFRESHMENT SERVICES,12/1/16,12/31/16,FOOD & BEVERAGE,108,2016,ARAMARK REFRESHMENT SERVICES
,REPUBLICAN CONFERENCE,2016Q4,GENERAL EXPENDITURES,SUPPLIES AND MATERIALS,12/19/16,AP,E0469024,TVEYES INC,3/1/17,2/28/19,PUBLICATIONS/REFERENCE MAT'L,5400,2016,TVEYES INC
,REPUBLICAN CONFERENCE,2016Q4,GENERAL EXPENDITURES,SUPPLIES AND MATERIALS,12/20/16,AP,896430,DEER PARK,11/30/16,11/30/16,WATER,409.5,2016,DEER PARK
,REPUBLICAN CONFERENCE,2016Q4,GENERAL EXPENDITURES,SUPPLIES AND MATERIALS,12/20/16,AP,896455,CITI PCARD-ADOBE CREATIVE CLOUD,10/29/16,11/28/16,SOFTWARE LESS THAN $500,370.07,2016,CITI PCARD-ADOBE CREATIVE CLOUD
,REPUBLICAN CONFERENCE,2016Q4,GENERAL EXPENDITURES,SUPPLIES AND MATERIALS,12/20/16,AP,896455,CITI PCARD-CORNER BAKERY,10/29/16,11/28/16,FOOD & BEVERAGE,3390.15,2016,CITI PCARD-CORNER BAKERY
,REPUBLICAN CONFERENCE,2016Q4,GENERAL EXPENDITURES,SUPPLIES AND MATERIALS,12/20/16,AP,896455,CITI PCARD-NEW YORK TIMES DIGITAL,10/29/16,11/28/16,PUBLICATIONS/REFERENCE MAT'L,15,2016,CITI PCARD-NEW YORK TIMES DIGITAL
,REPUBLICAN CONFERENCE,2016Q4,GENERAL EXPENDITURES,SUPPLIES AND MATERIALS,12/20/16,AP,896455,CITI PCARD-QDOBA MEXICAN GRIL,10/29/16,11/28/16,FOOD & BEVERAGE,3003.6,2016,CITI PCARD-QDOBA MEXICAN GRIL
,REPUBLICAN CONFERENCE,2016Q4,GENERAL EXPENDITURES,SUPPLIES AND MATERIALS,12/20/16,AP,896455,CITI PCARD-SHOPPERS FOOD / PHAR,10/29/16,11/28/16,FOOD & BEVERAGE,32.77,2016,CITI PCARD-SHOPPERS FOOD / PHAR
,REPUBLICAN CONFERENCE,2016Q4,GENERAL EXPENDITURES,SUPPLIES AND MATERIALS,12/20/16,AP,896455,CITI PCARD-SQ SQ BBQ BUS CATERI,10/29/16,11/28/16,FOOD & BEVERAGE,4951.5,2016,CITI PCARD-SQ SQ BBQ BUS CATERI
,CHIEF ADMIN OFCR OF THE HOUSE,2016Q4,SALARIES OFFICERS & EMPLOYEES,PERSONNEL COMPENSATION,"","","",ABBOTT JESSICA A.,10/1/16,12/31/16,FINANCIAL ANALYST,33189.51,2016,ABBOTT JESSICA A.
,CHIEF ADMIN OFCR OF THE HOUSE,2016Q4,SALARIES OFFICERS & EMPLOYEES,PERSONNEL COMPENSATION,"","","",ABEL TIMOTHY,10/1/16,12/31/16,SR TECHNICAL SUPPORT REP (A),24724.26,2016,ABEL TIMOTHY
,CHIEF ADMIN OFCR OF THE HOUSE,2016Q4,SALARIES OFFICERS & EMPLOYEES,PERSONNEL COMPENSATION,"","","",ABRAHAM JERMEL M,11/21/16,12/31/16,FINANCIAL ANALYST,8070.44,2016,ABRAHAM JERMEL M
,CHIEF ADMIN OFCR OF THE HOUSE,2016Q4,SALARIES OFFICERS & EMPLOYEES,PERSONNEL COMPENSATION,"","","",ACUESTA JULY J,10/1/16,12/31/16,SENIOR SYSTEMS ENGINEER,28397.01,2016,ACUESTA JULY J
,CHIEF ADMIN OFCR OF THE HOUSE,2016Q4,SALARIES OFFICERS & EMPLOYEES,PERSONNEL COMPENSATION,"","","",ADDISON TRACY,10/1/16,12/31/16,LOGISTICS & DIST SPEC (A),11972.25,2016,ADDISON TRACY
,CHIEF ADMIN OFCR OF THE HOUSE,2016Q4,SALARIES OFFICERS & EMPLOYEES,PERSONNEL COMPENSATION,"","","",ADDISON TRACY,11/1/16,11/30/16,LOGISTICS & DIST SPEC (A) (OVERTIME),276.28,2016,ADDISON TRACY
,CHIEF ADMIN OFCR OF THE HOUSE,2016Q4,SALARIES OFFICERS & EMPLOYEES,PERSONNEL COMPENSATION,"","","",ADELAKUN DEEN A.,10/1/16,12/31/16,SR TECH SOLUTIONS ENGINEER,23340,2016,ADELAKUN DEEN A.
,CHIEF ADMIN OFCR OF THE HOUSE,2016Q4,SALARIES OFFICERS & EMPLOYEES,PERSONNEL COMPENSATION,"","","",ADENIJI ADERONKE F,10/1/16,12/31/16,TEAM LEAD ASSURANCE &RISK MGMT,33762.75,2016,ADENIJI ADERONKE F
,CHIEF ADMIN OFCR OF THE HOUSE,2016Q4,SALARIES OFFICERS & EMPLOYEES,PERSONNEL COMPENSATION,"","","",AGEE MATTHEW P.,10/1/16,12/31/16,RESOURCE MANAGER,32234.09,2016,AGEE MATTHEW P.
,CHIEF ADMIN OFCR OF THE HOUSE,2016Q4,SALARIES OFFICERS & EMPLOYEES,PERSONNEL COMPENSATION,"","","",AGNEW ROSE M.,10/1/16,12/31/16,SR PAYROLL & BENS GENERALIST,21498.24,2016,AGNEW ROSE M.
,CHIEF ADMIN OFCR OF THE HOUSE,2016Q4,SALARIES OFFICERS & EMPLOYEES,PERSONNEL COMPENSATION,"","","",AGNEW ROSE M.,10/1/16,11/30/16,SR PAYROLL & BENS GENERALIST (OVERTIME),2855.52,2016,AGNEW ROSE M.
,CHIEF ADMIN OFCR OF THE HOUSE,2016Q4,SALARIES OFFICERS & EMPLOYEES,PERSONNEL COMPENSATION,"","","",AHMED MUNEER,10/1/16,12/31/16,APPLICATION SYSTEMS ADMINISTRA,31469.01,2016,AHMED MUNEER
,CHIEF ADMIN OFCR OF THE HOUSE,2016Q4,SALARIES OFFICERS & EMPLOYEES,PERSONNEL COMPENSATION,"","","",AHUJA KALPANA A.,10/1/16,12/31/16,DIRECTOR WEB SYSTEMS,34489.26,2016,AHUJA KALPANA A.
,CHIEF ADMIN OFCR OF THE HOUSE,2016Q4,SALARIES OFFICERS & EMPLOYEES,PERSONNEL COMPENSATION,"","","",AKULA MALLIKARJUNA R,11/1/16,12/31/16,SENIOR SOFTWARE SPECIALIST,22146.16,2016,AKULA MALLIKARJUNA R
,CHIEF ADMIN OFCR OF THE HOUSE,2016Q4,SALARIES OFFICERS & EMPLOYEES,PERSONNEL COMPENSATION,"","","",ALEXANDER GORDON,10/1/16,12/31/16,TECH SOLUTIONS ENGINEER,18757.74,2016,ALEXANDER GORDON
,CHIEF ADMIN OFCR OF THE HOUSE,2016Q4,SALARIES OFFICERS & EMPLOYEES,PERSONNEL COMPENSATION,"","","",ALLEN PATRICK R,10/1/16,12/31/16,DIRECTOR BUSINESS CONTINUITY,36390.99,2016,ALLEN PATRICK R
,CHIEF ADMIN OFCR OF THE HOUSE,2016Q4,SALARIES OFFICERS & EMPLOYEES,PERSONNEL COMPENSATION,"","","",ALLISON KEVIN M.,10/1/16,12/31/16,LOGISTICS & DIST SPEC (A),14381.33,2016,ALLISON KEVIN M.
,CHIEF ADMIN OFCR OF THE HOUSE,2016Q4,SALARIES OFFICERS & EMPLOYEES,PERSONNEL COMPENSATION,"","","",ALSTON MARK A,10/1/16,12/31/16,TECH SOLUTIONS ENGINEER,18356.49,2016,ALSTON MARK A
,CHIEF ADMIN OFCR OF THE HOUSE,2016Q4,SALARIES OFFICERS & EMPLOYEES,PERSONNEL COMPENSATION,"","","",ALVEY LISA M.,10/1/16,12/31/16,FINANCIAL COUNSELOR,21400.5,2016,ALVEY LISA M.
,CHIEF ADMIN OFCR OF THE HOUSE,2016Q4,SALARIES OFFICERS & EMPLOYEES,PERSONNEL COMPENSATION,"","","",ANDERSEN FREDERIC E.,10/1/16,12/31/16,ASSISTANT DIRECTOR,23803.26,2016,ANDERSEN FREDERIC E.
,CHIEF ADMIN OFCR OF THE HOUSE,2016Q4,SALARIES OFFICERS & EMPLOYEES,PERSONNEL COMPENSATION,"","","",ANDERSON DONTRELL,10/1/16,12/31/16,FINANCIAL COUNSELOR,17148.99,2016,ANDERSON DONTRELL
,CHIEF ADMIN OFCR OF THE HOUSE,2016Q4,SALARIES OFFICERS & EMPLOYEES,PERSONNEL COMPENSATION,"","","",ANDREWS THOMAS,10/1/16,12/31/16,VOICE & VIDEO BRANCH MGR (A),35756.25,2016,ANDREWS THOMAS
,CHIEF ADMIN OFCR OF THE HOUSE,2016Q4,SALARIES OFFICERS & EMPLOYEES,PERSONNEL COMPENSATION,"","","",ANDREWS-MOBLEY RACHELLE G.,10/1/16,12/31/16,PRINCIPAL TECHNICAL TRAINER,27870.75,2016,ANDREWS-MOBLEY RACHELLE G.
,CHIEF ADMIN OFCR OF THE HOUSE,2016Q4,SALARIES OFFICERS & EMPLOYEES,PERSONNEL COMPENSATION,"","","",ANTHONY TONY,11/1/16,12/31/16,PROD/ENGINEER SPEC TEMP,11259.2,2016,ANTHONY TONY
,CHIEF ADMIN OFCR OF THE HOUSE,2016Q4,SALARIES OFFICERS & EMPLOYEES,PERSONNEL COMPENSATION,"","","",APPIAH JOYCE S,10/1/16,12/31/16,SENIOR BENEFITS SPECIALIST,26847.51,2016,APPIAH JOYCE S
,CHIEF ADMIN OFCR OF THE HOUSE,2016Q4,SALARIES OFFICERS & EMPLOYEES,PERSONNEL COMPENSATION,"","","",ARMSTRONG JANCIERA C,10/1/16,12/31/16,BUDGET ANALYST,28235.01,2016,ARMSTRONG JANCIERA C
,CHIEF ADMIN OFCR OF THE HOUSE,2016Q4,SALARIES OFFICERS & EMPLOYEES,PERSONNEL COMPENSATION,"","","",ARTHUR CAMILLA S.,10/1/16,12/31/16,ASSISTANT CAO,42102.75,2016,ARTHUR CAMILLA S.
,CHIEF ADMIN OFCR OF THE HOUSE,2016Q4,SALARIES OFFICERS & EMPLOYEES,PERSONNEL COMPENSATION,"","","",ASATA HEATHER O,10/1/16,10/14/16,ADMINISTRATIVE SPECIALIST,2277.84,2016,ASATA HEATHER O
,CHIEF ADMIN OFCR OF THE HOUSE,2016Q4,SALARIES OFFICERS & EMPLOYEES,PERSONNEL COMPENSATION,"","","",ASATA HEATHER O,10/15/16,12/31/16,EXECUTIVE ASSISTANT,15333.84,2016,ASATA HEATHER O
,CHIEF ADMIN OFCR OF THE HOUSE,2016Q4,SALARIES OFFICERS & EMPLOYEES,PERSONNEL COMPENSATION,"","","",ATCHISON DARRYL A.,10/1/16,12/31/16,DEPUTY CHIEF ENGINEER,32615.25,2016,ATCHISON DARRYL A.
,CHIEF ADMIN OFCR OF THE HOUSE,2016Q4,SALARIES OFFICERS & EMPLOYEES,PERSONNEL COMPENSATION,"","","",AWAN OMAR,10/1/16,12/31/16,PERF & CUST SVC STRAT ANALYST,37027.26,2016,AWAN OMAR
,CHIEF ADMIN OFCR OF THE HOUSE,2016Q4,SALARIES OFFICERS & EMPLOYEES,PERSONNEL COMPENSATION,"","","",BAHAM TODD,10/1/16,12/31/16,BROADCAST PRODUCTION TECHNICIA,20184.99,2016,BAHAM TODD
,CHIEF ADMIN OFCR OF THE HOUSE,2016Q4,SALARIES OFFICERS & EMPLOYEES,PERSONNEL COMPENSATION,"","","",BAHAM TODD,11/1/16,11/30/16,BROADCAST PRODUCTION TECHNICIA (OVERTIME),145.56,2016,BAHAM TODD
,CHIEF ADMIN OFCR OF THE HOUSE,2016Q4,SALARIES OFFICERS & EMPLOYEES,PERSONNEL COMPENSATION,"","","",BAILEY DAVID E.,10/1/16,12/31/16,SR TECHNICAL SUPPORT REP (A),25644.24,2016,BAILEY DAVID E.
,CHIEF ADMIN OFCR OF THE HOUSE,2016Q4,SALARIES OFFICERS & EMPLOYEES,PERSONNEL COMPENSATION,"","","",BAKER DARRELL F.,10/1/16,12/31/16,SR NETWORK COMM SPEC,27347.25,2016,BAKER DARRELL F.
,CHIEF ADMIN OFCR OF THE HOUSE,2016Q4,SALARIES OFFICERS & EMPLOYEES,PERSONNEL COMPENSATION,"","","",BANFIELD KELLI C,10/1/16,12/31/16,BROADCAST ENGINEER/PROD SPEC.,22421.25,2016,BANFIELD KELLI C
,CHIEF ADMIN OFCR OF THE HOUSE,2016Q4,SALARIES OFFICERS & EMPLOYEES,PERSONNEL COMPENSATION,"","","",BANKS BIANCA N,10/1/16,12/31/16,MANAGER,20572.74,2016,BANKS BIANCA N
,CHIEF ADMIN OFCR OF THE HOUSE,2016Q4,SALARIES OFFICERS & EMPLOYEES,PERSONNEL COMPENSATION,"","","",BARBEE GLENN,10/1/16,12/31/16,NETWORK TECHNICIAN,23340,2016,BARBEE GLENN
,CHIEF ADMIN OFCR OF THE HOUSE,2016Q4,SALARIES OFFICERS & EMPLOYEES,PERSONNEL COMPENSATION,"","","",BARBEE DONELL G,10/1/16,12/31/16,RETAIL INVENTORY SPECIALIST,10754.76,2016,BARBEE DONELL G
,CHIEF ADMIN OFCR OF THE HOUSE,2016Q4,SALARIES OFFICERS & EMPLOYEES,PERSONNEL COMPENSATION,"","","",BARBOUR JUNE M.,10/1/16,12/31/16,BROADCAST PRODUCTION TECHNICIA,20184.99,2016,BARBOUR JUNE M.
,CHIEF ADMIN OFCR OF THE HOUSE,2016Q4,SALARIES OFFICERS & EMPLOYEES,PERSONNEL COMPENSATION,"","","",BARBOUR JUNE M.,11/1/16,11/30/16,BROADCAST PRODUCTION TECHNICIA (OVERTIME),174.68,2016,BARBOUR JUNE M.
,CHIEF ADMIN OFCR OF THE HOUSE,2016Q4,SALARIES OFFICERS & EMPLOYEES,PERSONNEL COMPENSATION,"","","",BARCINIAK DANA L.,10/1/16,10/31/16,SENIOR PHOTOGRAPHER,7539.58,2016,BARCINIAK DANA L.
,CHIEF ADMIN OFCR OF THE HOUSE,2016Q4,SALARIES OFFICERS & EMPLOYEES,PERSONNEL COMPENSATION,"","","",BARCINIAK DANA L.,10/1/16,12/31/16,OFFICE MANAGER,15469.26,2016,BARCINIAK DANA L.
,CHIEF ADMIN OFCR OF THE HOUSE,2016Q4,SALARIES OFFICERS & EMPLOYEES,PERSONNEL COMPENSATION,"","","",BAREFOOT JEFFREY,10/1/16,12/31/16,BROADCAST ENGINEER/PROD SPEC.,21035.01,2016,BAREFOOT JEFFREY
,CHIEF ADMIN OFCR OF THE HOUSE,2016Q4,SALARIES OFFICERS & EMPLOYEES,PERSONNEL COMPENSATION,"","","",BARNABAE MONICA M.,10/1/16,12/31/16,DIRECTOR-HOUSE CHILD CARE CNTR,28397.01,2016,BARNABAE MONICA M.
,CHIEF ADMIN OFCR OF THE HOUSE,2016Q4,SALARIES OFFICERS & EMPLOYEES,PERSONNEL COMPENSATION,"","","",BARR PAUL,10/1/16,12/31/16,SUPERVISOR LOGISTICS & DIST (A,15940.74,2016,BARR PAUL
,CHIEF ADMIN OFCR OF THE HOUSE,2016Q4,SALARIES OFFICERS & EMPLOYEES,PERSONNEL COMPENSATION,"","","",BARRETT ROBERT R.,10/1/16,12/31/16,DIRECTOR ENTERPRISE APPLICATI,39108.26,2016,BARRETT ROBERT R.
,CHIEF ADMIN OFCR OF THE HOUSE,2016Q4,SALARIES OFFICERS & EMPLOYEES,PERSONNEL COMPENSATION,"","","",BARTON TISHA R,10/1/16,12/31/16,SPECIAL ASSISTANT,21035.01,2016,BARTON TISHA R
,CHIEF ADMIN OFCR OF THE HOUSE,2016Q4,SALARIES OFFICERS & EMPLOYEES,PERSONNEL COMPENSATION,"","","",BASILIO TYRONE A.,10/1/16,12/31/16,TECHNICAL SUPPORT REP,20591.01,2016,BASILIO TYRONE A.
,CHIEF ADMIN OFCR OF THE HOUSE,2016Q4,SALARIES OFFICERS & EMPLOYEES,PERSONNEL COMPENSATION,"","","",BATES DEBORAH A.,10/1/16,12/31/16,PRODUCTION/ENGINEER SPEC (TEMP,7904.84,2016,BATES DEBORAH A.
,CHIEF ADMIN OFCR OF THE HOUSE,2016Q4,SALARIES OFFICERS & EMPLOYEES,PERSONNEL COMPENSATION,"","","",BATH GEORGE J,10/1/16,12/31/16,SENIOR ADVISOR,42102.75,2016,BATH GEORGE J
,CHIEF ADMIN OFCR OF THE HOUSE,2016Q4,SALARIES OFFICERS & EMPLOYEES,PERSONNEL COMPENSATION,"","","",BEARDSLEE LEAH,10/1/16,12/31/16,DIGITAL MEDIA COORDINATOR,13943.49,2016,BEARDSLEE LEAH
,CHIEF ADMIN OFCR OF THE HOUSE,2016Q4,SALARIES OFFICERS & EMPLOYEES,PERSONNEL COMPENSATION,"","","",BEAUBIAN TRACI R.,10/1/16,12/31/16,CHIEF FINANCIAL OFFICER,42102.75,2016,BEAUBIAN TRACI R.
,CHIEF ADMIN OFCR OF THE HOUSE,2016Q4,SALARIES OFFICERS & EMPLOYEES,PERSONNEL COMPENSATION,"","","",BEIDEL BERNARD E.,10/1/16,12/31/16,DIR OFFICE OF EMPLOYEE ASSIST,42102.75,2016,BEIDEL BERNARD E.
,CHIEF ADMIN OFCR OF THE HOUSE,2016Q4,SALARIES OFFICERS & EMPLOYEES,PERSONNEL COMPENSATION,"","","",BELL FRANK E,10/1/16,12/31/16,SENIOR TECHNICAL ADVISOR,35126.01,2016,BELL FRANK E
,CHIEF ADMIN OFCR OF THE HOUSE,2016Q4,SALARIES OFFICERS & EMPLOYEES,PERSONNEL COMPENSATION,"","","",BELL TOCA R,10/1/16,12/31/16,ADMINISTRATIVE SPECIALIST,10625.01,2016,BELL TOCA R
,CHIEF ADMIN OFCR OF THE HOUSE,2016Q4,SALARIES OFFICERS & EMPLOYEES,PERSONNEL COMPENSATION,"","","",BENN PHILLIP F.,10/1/16,12/31/16,ELECTRONICS TECHNICIAN (A),23803.26,2016,BENN PHILLIP F.
,CHIEF ADMIN OFCR OF THE HOUSE,2016Q4,SALARIES OFFICERS & EMPLOYEES,PERSONNEL COMPENSATION,"","","",BENN PHILLIP F.,11/1/16,11/30/16,ELECTRONICS TECHNICIAN (A) (OVERTIME),961.27,2016,BENN PHILLIP F.
,CHIEF ADMIN OFCR OF THE HOUSE,2016Q4,SALARIES OFFICERS & EMPLOYEES,PERSONNEL COMPENSATION,"","","",BENT BENETO,10/1/16,12/31/16,JOURNEYMAN TEXTILE SPEC,12888.99,2016,BENT BENETO
,CHIEF ADMIN OFCR OF THE HOUSE,2016Q4,SALARIES OFFICERS & EMPLOYEES,PERSONNEL COMPENSATION,"","","",BERGER DONALD W.,10/1/16,12/31/16,TECHNICAL DIRECTOR (A),24069.75,2016,BERGER DONALD W.
,CHIEF ADMIN OFCR OF THE HOUSE,2016Q4,SALARIES OFFICERS & EMPLOYEES,PERSONNEL COMPENSATION,"","","",BERGER DONALD W.,11/1/16,11/30/16,TECHNICAL DIRECTOR (A) (OVERTIME),34.72,2016,BERGER DONALD W.
,CHIEF ADMIN OFCR OF THE HOUSE,2016Q4,SALARIES OFFICERS & EMPLOYEES,PERSONNEL COMPENSATION,"","","",BERRY JOSEPH B,10/1/16,11/30/16,SYSTEMS ENGINEER,14709.29,2016,BERRY JOSEPH B
,CHIEF ADMIN OFCR OF THE HOUSE,2016Q4,SALARIES OFFICERS & EMPLOYEES,PERSONNEL COMPENSATION,"","","",BERRY JOSEPH B,11/1/16,11/25/16,SYSTEMS ENGINEER (OTHER COMPENSATION),2172.96,2016,BERRY JOSEPH B
,CHIEF ADMIN OFCR OF THE HOUSE,2016Q4,SALARIES OFFICERS & EMPLOYEES,PERSONNEL COMPENSATION,"","","",BEST CHARLENE,10/1/16,12/31/16,MANAGER (HOUSE ASSET SERVICES),24995.76,2016,BEST CHARLENE
,CHIEF ADMIN OFCR OF THE HOUSE,2016Q4,SALARIES OFFICERS & EMPLOYEES,PERSONNEL COMPENSATION,"","","",BETHEA LASHON L,10/1/16,12/31/16,TECHNICAL TRAINER,26383.74,2016,BETHEA LASHON L
,CHIEF ADMIN OFCR OF THE HOUSE,2016Q4,SALARIES OFFICERS & EMPLOYEES,PERSONNEL COMPENSATION,"","","",BILLARD MICHAEL A.,10/1/16,12/31/16,COMMUNICATIONS SPEC,26383.74,2016,BILLARD MICHAEL A.
,CHIEF ADMIN OFCR OF THE HOUSE,2016Q4,SALARIES OFFICERS & EMPLOYEES,PERSONNEL COMPENSATION,"","","",BILLUPS BRIAN E.,10/1/16,12/31/16,NETWORK TECHNICIAN (A),20591.01,2016,BILLUPS BRIAN E.
,CHIEF ADMIN OFCR OF THE HOUSE,2016Q4,SALARIES OFFICERS & EMPLOYEES,PERSONNEL COMPENSATION,"","","",BINSTED ANNE M,10/1/16,12/31/16,CHIEF OF STAFF,42102.75,2016,BINSTED ANNE M
,CHIEF ADMIN OFCR OF THE HOUSE,2016Q4,SALARIES OFFICERS & EMPLOYEES,PERSONNEL COMPENSATION,"","","",BLAKLEY JEFFREY S,10/1/16,12/31/16,DIRECTOR PHOTOGRAPHY,26292.51,2016,BLAKLEY JEFFREY S
,CHIEF ADMIN OFCR OF THE HOUSE,2016Q4,SALARIES OFFICERS & EMPLOYEES,PERSONNEL COMPENSATION,"","","",BLAKNEY HAROLD,10/1/16,12/31/16,SENIOR SYSTEMS ENGINEER,38929.74,2016,BLAKNEY HAROLD
,CHIEF ADMIN OFCR OF THE HOUSE,2016Q4,SALARIES OFFICERS & EMPLOYEES,PERSONNEL COMPENSATION,"","","",BOB DARREL,12/27/16,12/31/16,PAYROLL & BENEFITS GENERALIST,780.02,2016,BOB DARREL
,CHIEF ADMIN OFCR OF THE HOUSE,2016Q4,SALARIES OFFICERS & EMPLOYEES,PERSONNEL COMPENSATION,"","","",BOGAN DAVID S.,10/1/16,12/31/16,SUPERVISOR RETAIL INVENTORY,20591.01,2016,BOGAN DAVID S.
,CHIEF ADMIN OFCR OF THE HOUSE,2016Q4,SALARIES OFFICERS & EMPLOYEES,PERSONNEL COMPENSATION,"","","",BOGER KELLY M.,10/1/16,12/31/16,SUPERVISOR ASSET/INVENTORY,22880.49,2016,BOGER KELLY M.
,CHIEF ADMIN OFCR OF THE HOUSE,2016Q4,SALARIES OFFICERS & EMPLOYEES,PERSONNEL COMPENSATION,"","","",BOLDIG CHRISTOPHER R.,10/1/16,12/31/16,ASSOCIATE ADMIN. COUNSEL,31278.92,2016,BOLDIG CHRISTOPHER R.
,CHIEF ADMIN OFCR OF THE HOUSE,2016Q4,SALARIES OFFICERS & EMPLOYEES,PERSONNEL COMPENSATION,"","","",BOOKER CARLOS,10/1/16,12/31/16,SALES SPECIALIST,11058.51,2016,BOOKER CARLOS
,CHIEF ADMIN OFCR OF THE HOUSE,2016Q4,SALARIES OFFICERS & EMPLOYEES,PERSONNEL COMPENSATION,"","","",BOONE RUSSELL,10/1/16,12/31/16,TECHNICAL SUPPORT REP,22618.74,2016,BOONE RUSSELL
,CHIEF ADMIN OFCR OF THE HOUSE,2016Q4,SALARIES OFFICERS & EMPLOYEES,PERSONNEL COMPENSATION,"","","",BOWERS KAREN L,10/1/16,12/31/16,MANAGER,23142.75,2016,BOWERS KAREN L
,CHIEF ADMIN OFCR OF THE HOUSE,2016Q4,SALARIES OFFICERS & EMPLOYEES,PERSONNEL COMPENSATION,"","","",BOWLDING SONIA R.,10/1/16,12/31/16,REC/WAREHOUSE SPEC (A),11668.5,2016,BOWLDING SONIA R.
,CHIEF ADMIN OFCR OF THE HOUSE,2016Q4,SALARIES OFFICERS & EMPLOYEES,PERSONNEL COMPENSATION,"","","",BOWLING-STOKES CHAUNETTE L,10/1/16,12/31/16,MANAGEMENT ANALYST,24995.76,2016,BOWLING-STOKES CHAUNETTE L
,CHIEF ADMIN OFCR OF THE HOUSE,2016Q4,SALARIES OFFICERS & EMPLOYEES,PERSONNEL COMPENSATION,"","","",BOWMAN SHELIA,10/1/16,12/31/16,FINANCIAL COUNSELOR,17550.51,2016,BOWMAN SHELIA
,CHIEF ADMIN OFCR OF THE HOUSE,2016Q4,SALARIES OFFICERS & EMPLOYEES,PERSONNEL COMPENSATION,"","","",BOYD KRISTIE N.,10/1/16,11/30/16,PHOTOGRAPHER/LAB TECH (TEMP),6656.71,2016,BOYD KRISTIE N.
,CHIEF ADMIN OFCR OF THE HOUSE,2016Q4,SALARIES OFFICERS & EMPLOYEES,PERSONNEL COMPENSATION,"","","",BOYD PETRINA,10/1/16,12/31/16,SALES SPECIALIST,12145.74,2016,BOYD PETRINA
,CHIEF ADMIN OFCR OF THE HOUSE,2016Q4,SALARIES OFFICERS & EMPLOYEES,PERSONNEL COMPENSATION,"","","",BOYLE KEVIN J.,10/1/16,12/31/16,SR BUSINESS PROCESS APPL SPEC,40200,2016,BOYLE KEVIN J.
,CHIEF ADMIN OFCR OF THE HOUSE,2016Q4,SALARIES OFFICERS & EMPLOYEES,PERSONNEL COMPENSATION,"","","",BRACKENS ROBERT,10/1/16,12/31/16,BROADCAST PRODUCTION TECHNICIA,22421.25,2016,BRACKENS ROBERT
,CHIEF ADMIN OFCR OF THE HOUSE,2016Q4,SALARIES OFFICERS & EMPLOYEES,PERSONNEL COMPENSATION,"","","",BRADLEY NATHANIEL R,10/1/16,12/31/16,DIRECTOR TECHNOLOGY SUPPORT,33646.08,2016,BRADLEY NATHANIEL R
,CHIEF ADMIN OFCR OF THE HOUSE,2016Q4,SALARIES OFFICERS & EMPLOYEES,PERSONNEL COMPENSATION,"","","",BRADY JOHN R,10/1/16,12/31/16,JOURNEYMAN TEXTILE SPEC,12539.49,2016,BRADY JOHN R
,CHIEF ADMIN OFCR OF THE HOUSE,2016Q4,SALARIES OFFICERS & EMPLOYEES,PERSONNEL COMPENSATION,"","","",BRADY JOHN R,10/1/16,11/30/16,JOURNEYMAN TEXTILE SPEC (OVERTIME),355.68,2016,BRADY JOHN R
,CHIEF ADMIN OFCR OF THE HOUSE,2016Q4,SALARIES OFFICERS & EMPLOYEES,PERSONNEL COMPENSATION,"","","",BRAXTON BRANDON A.,10/1/16,12/31/16,LOGISTICS & DIST SPEC (A),11668.5,2016,BRAXTON BRANDON A.
,CHIEF ADMIN OFCR OF THE HOUSE,2016Q4,SALARIES OFFICERS & EMPLOYEES,PERSONNEL COMPENSATION,"","","",BREWSTER III JAMES E,10/1/16,12/31/16,LOGISTICS & DIST SPEC (A),9841.26,2016,BREWSTER III JAMES E
,CHIEF ADMIN OFCR OF THE HOUSE,2016Q4,SALARIES OFFICERS & EMPLOYEES,PERSONNEL COMPENSATION,"","","",BREWSTER CHRISTOPHER A,10/1/16,12/31/16,ADMINISTRATIVE COUNSEL,42102.75,2016,BREWSTER CHRISTOPHER A
,CHIEF ADMIN OFCR OF THE HOUSE,2016Q4,SALARIES OFFICERS & EMPLOYEES,PERSONNEL COMPENSATION,"","","",BRIDGEFORTH TOINETTA A.,10/1/16,12/31/16,SENIOR CONTRACTS SPECIALIST,26292.51,2016,BRIDGEFORTH TOINETTA A.
,CHIEF ADMIN OFCR OF THE HOUSE,2016Q4,SALARIES OFFICERS & EMPLOYEES,PERSONNEL COMPENSATION,"","","",BRISCOE KEVIN,10/1/16,12/31/16,LOGISTICS & DIST SPEC (A),11668.5,2016,BRISCOE KEVIN
,CHIEF ADMIN OFCR OF THE HOUSE,2016Q4,SALARIES OFFICERS & EMPLOYEES,PERSONNEL COMPENSATION,"","","",BROBBEY-MENSAH KWAME,10/1/16,12/31/16,SR INFO SYST. SECURITY ANALYST,29976.24,2016,BROBBEY-MENSAH KWAME
,CHIEF ADMIN OFCR OF THE HOUSE,2016Q4,SALARIES OFFICERS & EMPLOYEES,PERSONNEL COMPENSATION,"","","",BROWN SR DEMETRICE T.,10/1/16,12/31/16,SUPERVISOR,28046.17,2016,BROWN SR DEMETRICE T.
,CHIEF ADMIN OFCR OF THE HOUSE,2016Q4,SALARIES OFFICERS & EMPLOYEES,PERSONNEL COMPENSATION,"","","",BROWN KEITH S.,10/1/16,12/31/16,JOURNEYMAN FURNITURE SPEC.,14629.26,2016,BROWN KEITH S.
,CHIEF ADMIN OFCR OF THE HOUSE,2016Q4,SALARIES OFFICERS & EMPLOYEES,PERSONNEL COMPENSATION,"","","",BROWN PAMELA L.,10/1/16,12/31/16,CUSTOMER SOLUTIONS REP.,19161.24,2016,BROWN PAMELA L.
,CHIEF ADMIN OFCR OF THE HOUSE,2016Q4,SALARIES OFFICERS & EMPLOYEES,PERSONNEL COMPENSATION,"","","",BROWN DAVID D,10/1/16,12/31/16,FINANCIAL COUNSELOR,17148.99,2016,BROWN DAVID D
,CHIEF ADMIN OFCR OF THE HOUSE,2016Q4,SALARIES OFFICERS & EMPLOYEES,PERSONNEL COMPENSATION,"","","",BROWN JASON,10/1/16,12/31/16,BROADCAST PRODUCTION TECHNICIA,19914.49,2016,BROWN JASON
,CHIEF ADMIN OFCR OF THE HOUSE,2016Q4,SALARIES OFFICERS & EMPLOYEES,PERSONNEL COMPENSATION,"","","",BROWN KIMBERLY K,10/1/16,12/31/16,BUSINESS PROC APPLIC SPEC,15893.1,2016,BROWN KIMBERLY K
,CHIEF ADMIN OFCR OF THE HOUSE,2016Q4,SALARIES OFFICERS & EMPLOYEES,PERSONNEL COMPENSATION,"","","",BROWN LAWRENCE,10/1/16,12/31/16,BROADCAST ENGINEER/PROD SPEC.,22880.49,2016,BROWN LAWRENCE
,CHIEF ADMIN OFCR OF THE HOUSE,2016Q4,SALARIES OFFICERS & EMPLOYEES,PERSONNEL COMPENSATION,"","","",BRUMMELL JENELLE L,10/1/16,12/31/16,PARALEGAL,19374.24,2016,BRUMMELL JENELLE L
,CHIEF ADMIN OFCR OF THE HOUSE,2016Q4,SALARIES OFFICERS & EMPLOYEES,PERSONNEL COMPENSATION,"","","",BUCKLER RICKY L.,10/1/16,10/10/16,PURCHASING AGENT,2197.69,2016,BUCKLER RICKY L.
,CHIEF ADMIN OFCR OF THE HOUSE,2016Q4,SALARIES OFFICERS & EMPLOYEES,PERSONNEL COMPENSATION,"","","",BUCKLER RICKY L.,10/11/16,12/31/16,CONTRACTS SPECIALIST,19930,2016,BUCKLER RICKY L.
,CHIEF ADMIN OFCR OF THE HOUSE,2016Q4,SALARIES OFFICERS & EMPLOYEES,PERSONNEL COMPENSATION,"","","",BUCKLER TROY D.,10/1/16,12/31/16,PURCHASING AGENT,17082.75,2016,BUCKLER TROY D.
,CHIEF ADMIN OFCR OF THE HOUSE,2016Q4,SALARIES OFFICERS & EMPLOYEES,PERSONNEL COMPENSATION,"","","",BUFORD MARCIA L.,10/1/16,12/31/16,COMPUTER FAC OP SUPERVISOR,27307.74,2016,BUFORD MARCIA L.
,CHIEF ADMIN OFCR OF THE HOUSE,2016Q4,SALARIES OFFICERS & EMPLOYEES,PERSONNEL COMPENSATION,"","","",BURCH KENNETH J.,10/1/16,12/31/16,BUSINESS PROC APPLIC SPEC,31027.74,2016,BURCH KENNETH J.
,CHIEF ADMIN OFCR OF THE HOUSE,2016Q4,SALARIES OFFICERS & EMPLOYEES,PERSONNEL COMPENSATION,"","","",BURNHAM ELIZABETH,10/1/16,12/31/16,MEMBERS' SERVICES COUNSELOR,24534,2016,BURNHAM ELIZABETH
,CHIEF ADMIN OFCR OF THE HOUSE,2016Q4,SALARIES OFFICERS & EMPLOYEES,PERSONNEL COMPENSATION,"","","",BUTLER CLARENCE G.,10/1/16,12/31/16,JOURNEYMAN FURNITURE SPEC.,16383.99,2016,BUTLER CLARENCE G.
,CHIEF ADMIN OFCR OF THE HOUSE,2016Q4,SALARIES OFFICERS & EMPLOYEES,PERSONNEL COMPENSATION,"","","",BUTLER JAMES F.,10/1/16,12/31/16,MANAGER PAYROLL & BENEFITS,28924.26,2016,BUTLER JAMES F.
,CHIEF ADMIN OFCR OF THE HOUSE,2016Q4,SALARIES OFFICERS & EMPLOYEES,PERSONNEL COMPENSATION,"","","",CALLAWAY ROBERT M.,10/1/16,12/31/16,SR BROADCAST ENG./PROD SPEC.,25149.26,2016,CALLAWAY ROBERT M.
,CHIEF ADMIN OFCR OF THE HOUSE,2016Q4,SALARIES OFFICERS & EMPLOYEES,PERSONNEL COMPENSATION,"","","",CARCAMO ALICIA L.,10/1/16,12/31/16,ACCOUNTING TECHNICIAN,19564.74,2016,CARCAMO ALICIA L.
,CHIEF ADMIN OFCR OF THE HOUSE,2016Q4,SALARIES OFFICERS & EMPLOYEES,PERSONNEL COMPENSATION,"","","",CARNEY MICHAEL T.,10/1/16,12/31/16,MANAGER (CAO COMPLIANCE),28924.26,2016,CARNEY MICHAEL T.
,CHIEF ADMIN OFCR OF THE HOUSE,2016Q4,SALARIES OFFICERS & EMPLOYEES,PERSONNEL COMPENSATION,"","","",CARNNIA CASEY,10/1/16,12/31/16,INTERNET SYSTEMS SPECIALIST,23142.75,2016,CARNNIA CASEY
,CHIEF ADMIN OFCR OF THE HOUSE,2016Q4,SALARIES OFFICERS & EMPLOYEES,PERSONNEL COMPENSATION,"","","",CARR JOSH D.,10/1/16,12/31/16,SENIOR SYSTEMS ENGINEER,26075.24,2016,CARR JOSH D.
,CHIEF ADMIN OFCR OF THE HOUSE,2016Q4,SALARIES OFFICERS & EMPLOYEES,PERSONNEL COMPENSATION,"","","",CARRICO RONALD,10/1/16,12/31/16,SR BUSINESS PROCESS APPL SPEC,38295.99,2016,CARRICO RONALD
,CHIEF ADMIN OFCR OF THE HOUSE,2016Q4,SALARIES OFFICERS & EMPLOYEES,PERSONNEL COMPENSATION,"","","",CARSON LAWRENCE T,10/1/16,12/31/16,SALES SPECIALIST,10754.76,2016,CARSON LAWRENCE T
,CHIEF ADMIN OFCR OF THE HOUSE,2016Q4,SALARIES OFFICERS & EMPLOYEES,PERSONNEL COMPENSATION,"","","",CARTER JR JOHN L.,10/1/16,12/31/16,MANAGER FINISHING,26567.76,2016,CARTER JR JOHN L.
,CHIEF ADMIN OFCR OF THE HOUSE,2016Q4,SALARIES OFFICERS & EMPLOYEES,PERSONNEL COMPENSATION,"","","",CARTER DELISA D,10/1/16,12/31/16,SR. SOFTWARE SPECIALIST,37027.26,2016,CARTER DELISA D
,CHIEF ADMIN OFCR OF THE HOUSE,2016Q4,SALARIES OFFICERS & EMPLOYEES,PERSONNEL COMPENSATION,"","","",CAULK ANDREW T.,10/1/16,11/4/16,MANAGER,9616.81,2016,CAULK ANDREW T.
,CHIEF ADMIN OFCR OF THE HOUSE,2016Q4,SALARIES OFFICERS & EMPLOYEES,PERSONNEL COMPENSATION,"","","",CAULK ANDREW T.,11/1/16,11/4/16,MANAGER (OTHER COMPENSATION),8485.42,2016,CAULK ANDREW T.
,CHIEF ADMIN OFCR OF THE HOUSE,2016Q4,SALARIES OFFICERS & EMPLOYEES,PERSONNEL COMPENSATION,"","","",CHALETZKY ANA Y,12/12/16,12/31/16,MANAGER ACCOUNTING,5773.31,2016,CHALETZKY ANA Y
,CHIEF ADMIN OFCR OF THE HOUSE,2016Q4,SALARIES OFFICERS & EMPLOYEES,PERSONNEL COMPENSATION,"","","",CHAMBERS KEVIN N.,10/1/16,12/31/16,MANAGER,25456.26,2016,CHAMBERS KEVIN N.
,CHIEF ADMIN OFCR OF THE HOUSE,2016Q4,SALARIES OFFICERS & EMPLOYEES,PERSONNEL COMPENSATION,"","","",CHARGUALAF JESSE,10/1/16,12/31/16,BROADCAST ENGINEER/PROD SPEC.,21035.01,2016,CHARGUALAF JESSE
,CHIEF ADMIN OFCR OF THE HOUSE,2016Q4,SALARIES OFFICERS & EMPLOYEES,PERSONNEL COMPENSATION,"","","",CHEN SUSAN,10/1/16,12/31/16,RESOURCE ANALYST,18158.49,2016,CHEN SUSAN
,CHIEF ADMIN OFCR OF THE HOUSE,2016Q4,SALARIES OFFICERS & EMPLOYEES,PERSONNEL COMPENSATION,"","","",CHIU JIMMY,10/1/16,12/31/16,HRIS APPLICATIONS SYST ANALYST,26819.76,2016,CHIU JIMMY
,CHIEF ADMIN OFCR OF THE HOUSE,2016Q4,SALARIES OFFICERS & EMPLOYEES,PERSONNEL COMPENSATION,"","","",CIANGO JACOB,10/1/16,12/31/16,APPLICATION SYSTEMS ADMINISTRA,32615.25,2016,CIANGO JACOB
,CHIEF ADMIN OFCR OF THE HOUSE,2016Q4,SALARIES OFFICERS & EMPLOYEES,PERSONNEL COMPENSATION,"","","",CICALE MICHAEL P.,10/1/16,12/31/16,SR CUSTOMER SOLUTIONS REP.,20369.01,2016,CICALE MICHAEL P.
,CHIEF ADMIN OFCR OF THE HOUSE,2016Q4,SALARIES OFFICERS & EMPLOYEES,PERSONNEL COMPENSATION,"","","",CLAGGETT TIMOTHY A.,10/1/16,12/31/16,JOURNEYMAN TEXTILE SPEC,19564.74,2016,CLAGGETT TIMOTHY A.
,CHIEF ADMIN OFCR OF THE HOUSE,2016Q4,SALARIES OFFICERS & EMPLOYEES,PERSONNEL COMPENSATION,"","","",CLARK MARION,10/1/16,12/31/16,SR TELECOMMUNICATIONS ADMIN,18757.74,2016,CLARK MARION
,CHIEF ADMIN OFCR OF THE HOUSE,2016Q4,SALARIES OFFICERS & EMPLOYEES,PERSONNEL COMPENSATION,"","","",CLARK YVETTE I.,10/1/16,12/31/16,TRAINING COORDINATOR,15686.01,2016,CLARK YVETTE I.
,CHIEF ADMIN OFCR OF THE HOUSE,2016Q4,SALARIES OFFICERS & EMPLOYEES,PERSONNEL COMPENSATION,"","","",CLARKE JOHN P.,10/1/16,12/31/16,SUPERVISOR (RECEIVING),22880.49,2016,CLARKE JOHN P.
,CHIEF ADMIN OFCR OF THE HOUSE,2016Q4,SALARIES OFFICERS & EMPLOYEES,PERSONNEL COMPENSATION,"","","",CLOCKER JOHN C.,10/1/16,12/31/16,DEPUTY CAO,42674.01,2016,CLOCKER JOHN C.
,CHIEF ADMIN OFCR OF THE HOUSE,2016Q4,SALARIES OFFICERS & EMPLOYEES,PERSONNEL COMPENSATION,"","","",COAKLEY KRISTEN J,10/1/16,12/31/16,TELEPHONE SYSTEMS CONSULTANT,20572.74,2016,COAKLEY KRISTEN J
,CHIEF ADMIN OFCR OF THE HOUSE,2016Q4,SALARIES OFFICERS & EMPLOYEES,PERSONNEL COMPENSATION,"","","",COBB FAYE C.,10/1/16,12/31/16,DIR BUDGET POLICY & PLANNING,41187,2016,COBB FAYE C.
,CHIEF ADMIN OFCR OF THE HOUSE,2016Q4,SALARIES OFFICERS & EMPLOYEES,PERSONNEL COMPENSATION,"","","",COLBERT RAY C.,10/1/16,12/31/16,SR BROADCAST ENG/PROD SPECLST,24841.84,2016,COLBERT RAY C.
,CHIEF ADMIN OFCR OF THE HOUSE,2016Q4,SALARIES OFFICERS & EMPLOYEES,PERSONNEL COMPENSATION,"","","",COLBERT RAY C.,11/1/16,11/30/16,SR BROADCAST ENG/PROD SPECLST (OVERTIME),408.58,2016,COLBERT RAY C.
,CHIEF ADMIN OFCR OF THE HOUSE,2016Q4,SALARIES OFFICERS & EMPLOYEES,PERSONNEL COMPENSATION,"","","",COLLINS JOHN B.,10/1/16,12/31/16,BROADCAST PRODUCTION TECHNICIA,24265.26,2016,COLLINS JOHN B.
,CHIEF ADMIN OFCR OF THE HOUSE,2016Q4,SALARIES OFFICERS & EMPLOYEES,PERSONNEL COMPENSATION,"","","",COLOM BELANE S,10/1/16,12/31/16,ACCOUNTING TECHNICIAN,12189.75,2016,COLOM BELANE S
,CHIEF ADMIN OFCR OF THE HOUSE,2016Q4,SALARIES OFFICERS & EMPLOYEES,PERSONNEL COMPENSATION,"","","",CONNOLLY ERIC,10/1/16,12/31/16,PHOTOGRAPHER,15686.01,2016,CONNOLLY ERIC
,CHIEF ADMIN OFCR OF THE HOUSE,2016Q4,SALARIES OFFICERS & EMPLOYEES,PERSONNEL COMPENSATION,"","","",COOK ERIC H.,10/1/16,12/31/16,NETWORK TECHNICIAN,20996.25,2016,COOK ERIC H.
,CHIEF ADMIN OFCR OF THE HOUSE,2016Q4,SALARIES OFFICERS & EMPLOYEES,PERSONNEL COMPENSATION,"","","",COOPER RICHARD S.,10/1/16,12/31/16,STAFF ACCOUNTANT (A),26383.74,2016,COOPER RICHARD S.
,CHIEF ADMIN OFCR OF THE HOUSE,2016Q4,SALARIES OFFICERS & EMPLOYEES,PERSONNEL COMPENSATION,"","","",CORNEJO LUIS E.,10/1/16,12/31/16,SENIOR SYSTEMS ENGINEER,26847.51,2016,CORNEJO LUIS E.
,CHIEF ADMIN OFCR OF THE HOUSE,2016Q4,SALARIES OFFICERS & EMPLOYEES,PERSONNEL COMPENSATION,"","","",COX BRIDGET A.,10/1/16,12/31/16,SENIOR SYSTEMS ANALYST,31027.74,2016,COX BRIDGET A.
,CHIEF ADMIN OFCR OF THE HOUSE,2016Q4,SALARIES OFFICERS & EMPLOYEES,PERSONNEL COMPENSATION,"","","",COYNE III THOMAS E.,10/1/16,12/31/16,CHIEF LOGISTICS OFFICER,42102.75,2016,COYNE III THOMAS E.
,CHIEF ADMIN OFCR OF THE HOUSE,2016Q4,SALARIES OFFICERS & EMPLOYEES,PERSONNEL COMPENSATION,"","","",CROTTS JAMIE R,10/17/16,12/31/16,SEC COMM & TRAIN MANAGER,30444.63,2016,CROTTS JAMIE R
,CHIEF ADMIN OFCR OF THE HOUSE,2016Q4,SALARIES OFFICERS & EMPLOYEES,PERSONNEL COMPENSATION,"","","",CRUDUP III WILLIAM D.,10/1/16,12/31/16,RECEIVING/WAREHOUSE SPEC (A),13060.74,2016,CRUDUP III WILLIAM D.
,CHIEF ADMIN OFCR OF THE HOUSE,2016Q4,SALARIES OFFICERS & EMPLOYEES,PERSONNEL COMPENSATION,"","","",CUFF LOREN D,10/1/16,12/31/16,INTERNET SYSTEMS SPECIALIST,20591.01,2016,CUFF LOREN D
,CHIEF ADMIN OFCR OF THE HOUSE,2016Q4,SALARIES OFFICERS & EMPLOYEES,PERSONNEL COMPENSATION,"","","",CUFFEE DANIELLE M,10/1/16,12/31/16,ASSET/INVENTORY COUNSELOR,12189.75,2016,CUFFEE DANIELLE M
,CHIEF ADMIN OFCR OF THE HOUSE,2016Q4,SALARIES OFFICERS & EMPLOYEES,PERSONNEL COMPENSATION,"","","",CUFFEE DANIELLE M,11/1/16,11/30/16,ASSET/INVENTORY COUNSELOR (OVERTIME),187.53,2016,CUFFEE DANIELLE M
,CHIEF ADMIN OFCR OF THE HOUSE,2016Q4,SALARIES OFFICERS & EMPLOYEES,PERSONNEL COMPENSATION,"","","",CUFFEY LAWRENCE,10/1/16,12/31/16,SR SCHEDULING SPEC/SAFETY LIAS,18757.74,2016,CUFFEY LAWRENCE
,CHIEF ADMIN OFCR OF THE HOUSE,2016Q4,SALARIES OFFICERS & EMPLOYEES,PERSONNEL COMPENSATION,"","","",CUPRILL CARLOS,10/1/16,12/31/16,SR TECHNICAL SUPPORT REP,23803.26,2016,CUPRILL CARLOS
,CHIEF ADMIN OFCR OF THE HOUSE,2016Q4,SALARIES OFFICERS & EMPLOYEES,PERSONNEL COMPENSATION,"","","",CUTLER JR BENJAMIN S.,10/1/16,12/31/16,PAYROLL & BENEFITS ASSISTANT,16383.99,2016,CUTLER JR BENJAMIN S.
,CHIEF ADMIN OFCR OF THE HOUSE,2016Q4,SALARIES OFFICERS & EMPLOYEES,PERSONNEL COMPENSATION,"","","",CUTLER JR BENJAMIN S.,10/1/16,11/30/16,PAYROLL & BENEFITS ASSISTANT (OVERTIME),614.39,2016,CUTLER JR BENJAMIN S.
,CHIEF ADMIN OFCR OF THE HOUSE,2016Q4,SALARIES OFFICERS & EMPLOYEES,PERSONNEL COMPENSATION,"","","",DAHL RYAN S,10/1/16,12/31/16,MEDIA LOGISTICS COORDINATOR,17148.99,2016,DAHL RYAN S
,CHIEF ADMIN OFCR OF THE HOUSE,2016Q4,SALARIES OFFICERS & EMPLOYEES,PERSONNEL COMPENSATION,"","","",DAHLSTROM DARREN,10/1/16,12/31/16,MANAGER CABINET,22421.25,2016,DAHLSTROM DARREN
,CHIEF ADMIN OFCR OF THE HOUSE,2016Q4,SALARIES OFFICERS & EMPLOYEES,PERSONNEL COMPENSATION,"","","",DANIEL JR GEORGE,10/17/16,12/31/16,ASST CHIEF LOGISTICS OFFICER,29399.58,2016,DANIEL JR GEORGE
,CHIEF ADMIN OFCR OF THE HOUSE,2016Q4,SALARIES OFFICERS & EMPLOYEES,PERSONNEL COMPENSATION,"","","",DANIEL JADA A,10/24/16,12/31/16,SENIOR PROJECTS SPECIALIST,13517.99,2016,DANIEL JADA A
,CHIEF ADMIN OFCR OF THE HOUSE,2016Q4,SALARIES OFFICERS & EMPLOYEES,PERSONNEL COMPENSATION,"","","",DAVENPORT KAREN V,10/1/16,12/31/16,FINANCIAL ANALYST,23340,2016,DAVENPORT KAREN V
,CHIEF ADMIN OFCR OF THE HOUSE,2016Q4,SALARIES OFFICERS & EMPLOYEES,PERSONNEL COMPENSATION,"","","",DAVIS JOHN J.,10/1/16,12/31/16,BROADCAST PRODUCTION TECHNICIA,23803.26,2016,DAVIS JOHN J.
,CHIEF ADMIN OFCR OF THE HOUSE,2016Q4,SALARIES OFFICERS & EMPLOYEES,PERSONNEL COMPENSATION,"","","",DAVIS JOHN J.,11/1/16,11/30/16,BROADCAST PRODUCTION TECHNICIA (OVERTIME),34.33,2016,DAVIS JOHN J.
,CHIEF ADMIN OFCR OF THE HOUSE,2016Q4,SALARIES OFFICERS & EMPLOYEES,PERSONNEL COMPENSATION,"","","",DAVIS STACHIA G.,10/1/16,12/31/16,DIR MOD FURN & TRANSITION,28924.26,2016,DAVIS STACHIA G.
,CHIEF ADMIN OFCR OF THE HOUSE,2016Q4,SALARIES OFFICERS & EMPLOYEES,PERSONNEL COMPENSATION,"","","",DAVIS SCOTT K,10/1/16,12/31/16,PAYROLL & BENEFITS GENERALIST,17550.51,2016,DAVIS SCOTT K
,CHIEF ADMIN OFCR OF THE HOUSE,2016Q4,SALARIES OFFICERS & EMPLOYEES,PERSONNEL COMPENSATION,"","","",DAVIS SCOTT K,11/1/16,11/30/16,PAYROLL & BENEFITS GENERALIST (OVERTIME),519.08,2016,DAVIS SCOTT K
,CHIEF ADMIN OFCR OF THE HOUSE,2016Q4,SALARIES OFFICERS & EMPLOYEES,PERSONNEL COMPENSATION,"","","",DAWKINS JOANN,10/1/16,12/31/16,SR TELECOMM ADMIN,17082.75,2016,DAWKINS JOANN
,CHIEF ADMIN OFCR OF THE HOUSE,2016Q4,SALARIES OFFICERS & EMPLOYEES,PERSONNEL COMPENSATION,"","","",DEAN JOSEPH M.,10/1/16,12/31/16,JOURNEYMAN TEXTILE SPEC,21400.5,2016,DEAN JOSEPH M.
,CHIEF ADMIN OFCR OF THE HOUSE,2016Q4,SALARIES OFFICERS & EMPLOYEES,PERSONNEL COMPENSATION,"","","",DEAN JOSEPH M.,10/1/16,11/30/16,JOURNEYMAN TEXTILE SPEC (OVERTIME),1903.39,2016,DEAN JOSEPH M.
,CHIEF ADMIN OFCR OF THE HOUSE,2016Q4,SALARIES OFFICERS & EMPLOYEES,PERSONNEL COMPENSATION,"","","",DEAVER JAMES,10/1/16,12/31/16,ENTERPRISE ADMINISTRATOR,33189.51,2016,DEAVER JAMES
,CHIEF ADMIN OFCR OF THE HOUSE,2016Q4,SALARIES OFFICERS & EMPLOYEES,PERSONNEL COMPENSATION,"","","",DELISLE KALDON A,10/1/16,12/31/16,JOURNEYMAN FURNITURE SPEC.,14988.51,2016,DELISLE KALDON A
,CHIEF ADMIN OFCR OF THE HOUSE,2016Q4,SALARIES OFFICERS & EMPLOYEES,PERSONNEL COMPENSATION,"","","",DELUCA ALAN,10/1/16,12/31/16,COMPUTER FACILITIES OP MGR (A),37027.26,2016,DELUCA ALAN
,CHIEF ADMIN OFCR OF THE HOUSE,2016Q4,SALARIES OFFICERS & EMPLOYEES,PERSONNEL COMPENSATION,"","","",DENT RICHARD H,10/1/16,12/31/16,JOURNEYMAN TEXTILE SPEC,13582.74,2016,DENT RICHARD H
,CHIEF ADMIN OFCR OF THE HOUSE,2016Q4,SALARIES OFFICERS & EMPLOYEES,PERSONNEL COMPENSATION,"","","",DENT RICHARD H,10/1/16,10/31/16,JOURNEYMAN TEXTILE SPEC (OVERTIME),313.44,2016,DENT RICHARD H
,CHIEF ADMIN OFCR OF THE HOUSE,2016Q4,SALARIES OFFICERS & EMPLOYEES,PERSONNEL COMPENSATION,"","","",DERRICK SCOTT,10/1/16,12/31/16,GRAPHIC DESIGNER,23803.26,2016,DERRICK SCOTT
,CHIEF ADMIN OFCR OF THE HOUSE,2016Q4,SALARIES OFFICERS & EMPLOYEES,PERSONNEL COMPENSATION,"","","",DETWEILER BETHANY,10/1/16,12/31/16,ADMINISTRATIVE SPECIALIST,10926.51,2016,DETWEILER BETHANY
,CHIEF ADMIN OFCR OF THE HOUSE,2016Q4,SALARIES OFFICERS & EMPLOYEES,PERSONNEL COMPENSATION,"","","",DICKIE JAMES,10/1/16,12/31/16,ENGINEERING OPS MANAGER,32043.51,2016,DICKIE JAMES
,CHIEF ADMIN OFCR OF THE HOUSE,2016Q4,SALARIES OFFICERS & EMPLOYEES,PERSONNEL COMPENSATION,"","","",DIEFFENDERFER GARY L.,10/1/16,12/31/16,SR. APPLICATION DBA SPECIALIST,33189.51,2016,DIEFFENDERFER GARY L.
,CHIEF ADMIN OFCR OF THE HOUSE,2016Q4,SALARIES OFFICERS & EMPLOYEES,PERSONNEL COMPENSATION,"","","",DOBBINS MARK,10/1/16,12/31/16,MANAGER PURCHASING,24265.26,2016,DOBBINS MARK
,CHIEF ADMIN OFCR OF THE HOUSE,2016Q4,SALARIES OFFICERS & EMPLOYEES,PERSONNEL COMPENSATION,"","","",DOOLEY GENEVA,10/1/16,12/31/16,SENIOR SOFTWARE SPECIALIST,33762.75,2016,DOOLEY GENEVA
,CHIEF ADMIN OFCR OF THE HOUSE,2016Q4,SALARIES OFFICERS & EMPLOYEES,PERSONNEL COMPENSATION,"","","",DOZIER BRIAN A.,10/1/16,12/31/16,SR RECEIVING & WAREHOUSIN SPEC,16745.49,2016,DOZIER BRIAN A.
,CHIEF ADMIN OFCR OF THE HOUSE,2016Q4,SALARIES OFFICERS & EMPLOYEES,PERSONNEL COMPENSATION,"","","",DOZIER BRIAN A.,11/1/16,11/30/16,SR RECEIVING & WAREHOUSIN SPEC (OVERTIME),450.84,2016,DOZIER BRIAN A.
,CHIEF ADMIN OFCR OF THE HOUSE,2016Q4,SALARIES OFFICERS & EMPLOYEES,PERSONNEL COMPENSATION,"","","",DUENAS JOSEPH E.,10/1/16,12/31/16,TECHNICAL SUPPORT REP,19779.24,2016,DUENAS JOSEPH E.
,CHIEF ADMIN OFCR OF THE HOUSE,2016Q4,SALARIES OFFICERS & EMPLOYEES,PERSONNEL COMPENSATION,"","","",DUNKLIN KELDA Y.,10/1/16,12/31/16,SR TECHNICAL SUPPORT REP,27307.74,2016,DUNKLIN KELDA Y.
,CHIEF ADMIN OFCR OF THE HOUSE,2016Q4,SALARIES OFFICERS & EMPLOYEES,PERSONNEL COMPENSATION,"","","",DURAN ROLANDO,10/1/16,12/31/16,ELECTRONICS TECHNICIAN (A),23340,2016,DURAN ROLANDO
,CHIEF ADMIN OFCR OF THE HOUSE,2016Q4,SALARIES OFFICERS & EMPLOYEES,PERSONNEL COMPENSATION,"","","",DYSON LAURA,10/1/16,12/31/16,SR ENTERPRISE ARCHITECT,32043.51,2016,DYSON LAURA
,CHIEF ADMIN OFCR OF THE HOUSE,2016Q4,SALARIES OFFICERS & EMPLOYEES,PERSONNEL COMPENSATION,"","","",EAGLIN HOPE J,10/1/16,12/31/16,SENIOR SECURITY ANALYST,27870.75,2016,EAGLIN HOPE J
,CHIEF ADMIN OFCR OF THE HOUSE,2016Q4,SALARIES OFFICERS & EMPLOYEES,PERSONNEL COMPENSATION,"","","",EDWARD RYLEY J,10/24/16,12/31/16,RECEIVING/WAREHOUSE SPEC,7909.73,2016,EDWARD RYLEY J
,CHIEF ADMIN OFCR OF THE HOUSE,2016Q4,SALARIES OFFICERS & EMPLOYEES,PERSONNEL COMPENSATION,"","","",EGERSON TROY H.,10/1/16,12/31/16,JOURNEYMAN TEXTILE SPEC,19161.24,2016,EGERSON TROY H.
,CHIEF ADMIN OFCR OF THE HOUSE,2016Q4,SALARIES OFFICERS & EMPLOYEES,PERSONNEL COMPENSATION,"","","",ELIAS ANDREW C.,10/1/16,12/31/16,DEPUTY DIRECTOR,32076.24,2016,ELIAS ANDREW C.
,CHIEF ADMIN OFCR OF THE HOUSE,2016Q4,SALARIES OFFICERS & EMPLOYEES,PERSONNEL COMPENSATION,"","","",ELLIN JAMES B.,10/1/16,12/31/16,SR NETWORK SYSTEMS ENGINEER,31469.01,2016,ELLIN JAMES B.
,CHIEF ADMIN OFCR OF THE HOUSE,2016Q4,SALARIES OFFICERS & EMPLOYEES,PERSONNEL COMPENSATION,"","","",ELLIOTT RONALD,10/1/16,12/31/16,SR INFO SYST. SECURITY ANALYST,26383.74,2016,ELLIOTT RONALD
,CHIEF ADMIN OFCR OF THE HOUSE,2016Q4,SALARIES OFFICERS & EMPLOYEES,PERSONNEL COMPENSATION,"","","",ELLIS FRANKLIN M,10/1/16,12/31/16,SR SYSTEMS SUPPORT ENGINEER,24069.75,2016,ELLIS FRANKLIN M
,CHIEF ADMIN OFCR OF THE HOUSE,2016Q4,SALARIES OFFICERS & EMPLOYEES,PERSONNEL COMPENSATION,"","","",ELLIS-GREGG SHARON,10/1/16,12/31/16,PAYROLL & BENEFITS ASSISTANT,14976.99,2016,ELLIS-GREGG SHARON
,CHIEF ADMIN OFCR OF THE HOUSE,2016Q4,SALARIES OFFICERS & EMPLOYEES,PERSONNEL COMPENSATION,"","","",ELLIS-GREGG SHARON,10/1/16,10/31/16,PAYROLL & BENEFITS ASSISTANT (OVERTIME),583.23,2016,ELLIS-GREGG SHARON
,CHIEF ADMIN OFCR OF THE HOUSE,2016Q4,SALARIES OFFICERS & EMPLOYEES,PERSONNEL COMPENSATION,"","","",ELLIS-JONES DEBORAH,10/1/16,12/31/16,ADMIN-FINANCE & PAYROLL,24534,2016,ELLIS-JONES DEBORAH
,CHIEF ADMIN OFCR OF THE HOUSE,2016Q4,SALARIES OFFICERS & EMPLOYEES,PERSONNEL COMPENSATION,"","","",EMAMALI NICOLE S.,10/1/16,12/31/16,SR TECHNICAL SUPPORT REP,28924.26,2016,EMAMALI NICOLE S.
,CHIEF ADMIN OFCR OF THE HOUSE,2016Q4,SALARIES OFFICERS & EMPLOYEES,PERSONNEL COMPENSATION,"","","",ENGLISH IV JAMES H.,10/1/16,12/31/16,JOURNEYMAN FURNITURE SPEC.,14643.24,2016,ENGLISH IV JAMES H.
,CHIEF ADMIN OFCR OF THE HOUSE,2016Q4,SALARIES OFFICERS & EMPLOYEES,PERSONNEL COMPENSATION,"","","",ENGLISH JOSEPH H.,10/1/16,12/31/16,MOBILE COMM SPECIALIST (DATA),26383.74,2016,ENGLISH JOSEPH H.
,CHIEF ADMIN OFCR OF THE HOUSE,2016Q4,SALARIES OFFICERS & EMPLOYEES,PERSONNEL COMPENSATION,"","","",ERVING JAMES H.,10/1/16,12/31/16,COMMUNICATIONS SPECIALIST,27307.74,2016,ERVING JAMES H.
,CHIEF ADMIN OFCR OF THE HOUSE,2016Q4,SALARIES OFFICERS & EMPLOYEES,PERSONNEL COMPENSATION,"","","",ETCHISON CHERYL A,10/1/16,12/31/16,MANAGER PAYROLL & BENEFITS,30898.74,2016,ETCHISON CHERYL A
,CHIEF ADMIN OFCR OF THE HOUSE,2016Q4,SALARIES OFFICERS & EMPLOYEES,PERSONNEL COMPENSATION,"","","",EVANS JR WILLIAM R.,10/1/16,12/31/16,ELECTRONICS TECHNICIAN (A),23803.26,2016,EVANS JR WILLIAM R.
,CHIEF ADMIN OFCR OF THE HOUSE,2016Q4,SALARIES OFFICERS & EMPLOYEES,PERSONNEL COMPENSATION,"","","",EVANS JR WILLIAM R.,11/1/16,11/30/16,ELECTRONICS TECHNICIAN (A) (OVERTIME),137.32,2016,EVANS JR WILLIAM R.
,CHIEF ADMIN OFCR OF THE HOUSE,2016Q4,SALARIES OFFICERS & EMPLOYEES,PERSONNEL COMPENSATION,"","","",EVANS THOMAS F,10/1/16,12/31/16,INFO SYSTEMS SECURITY ANALYST,24534,2016,EVANS THOMAS F
,CHIEF ADMIN OFCR OF THE HOUSE,2016Q4,SALARIES OFFICERS & EMPLOYEES,PERSONNEL COMPENSATION,"","","",EWERS GRETCHEN,10/1/16,11/30/16,MANAGER,18205.16,2016,EWERS GRETCHEN
,CHIEF ADMIN OFCR OF THE HOUSE,2016Q4,SALARIES OFFICERS & EMPLOYEES,PERSONNEL COMPENSATION,"","","",EWERS GRETCHEN,11/1/16,11/30/16,MANAGER,0,2016,EWERS GRETCHEN
,CHIEF ADMIN OFCR OF THE HOUSE,2016Q4,SALARIES OFFICERS & EMPLOYEES,PERSONNEL COMPENSATION,"","","",EWERS GRETCHEN,11/1/16,12/31/16,ACTING DIR FIN COUNSELING,11582.58,2016,EWERS GRETCHEN
,CHIEF ADMIN OFCR OF THE HOUSE,2016Q4,SALARIES OFFICERS & EMPLOYEES,PERSONNEL COMPENSATION,"","","",EWING JR JOHN C.,10/1/16,12/31/16,ASSET/INVENTORY COUNSELOR,12189.75,2016,EWING JR JOHN C.
,CHIEF ADMIN OFCR OF THE HOUSE,2016Q4,SALARIES OFFICERS & EMPLOYEES,PERSONNEL COMPENSATION,"","","",FAISON SHAWNA,10/1/16,12/31/16,SR GRAPHIC DESIGNER,20572.74,2016,FAISON SHAWNA
,CHIEF ADMIN OFCR OF THE HOUSE,2016Q4,SALARIES OFFICERS & EMPLOYEES,PERSONNEL COMPENSATION,"","","",FARLEY JOANN I.,10/1/16,12/31/16,FINANCIAL COUNSELOR,18757.74,2016,FARLEY JOANN I.
,CHIEF ADMIN OFCR OF THE HOUSE,2016Q4,SALARIES OFFICERS & EMPLOYEES,PERSONNEL COMPENSATION,"","","",FINUCANE CHRISTOPHER B,10/1/16,12/31/16,DIRECTOR ENTERPRISE OPERATIONS,41187,2016,FINUCANE CHRISTOPHER B
,CHIEF ADMIN OFCR OF THE HOUSE,2016Q4,SALARIES OFFICERS & EMPLOYEES,PERSONNEL COMPENSATION,"","","",FISHER JEROME,10/1/16,12/31/16,SR TECH SOLUTIONS ENGINEER,25920.99,2016,FISHER JEROME
,CHIEF ADMIN OFCR OF THE HOUSE,2016Q4,SALARIES OFFICERS & EMPLOYEES,PERSONNEL COMPENSATION,"","","",FITZGERALD KATHLEEN M,10/1/16,12/31/16,BUSINESS CONTINUITY MANAGER,32043.51,2016,FITZGERALD KATHLEEN M
,CHIEF ADMIN OFCR OF THE HOUSE,2016Q4,SALARIES OFFICERS & EMPLOYEES,PERSONNEL COMPENSATION,"","","",FONTNEAU BRUCE,10/1/16,12/31/16,SR SYSTEMS ENGINEER,26292.51,2016,FONTNEAU BRUCE
,CHIEF ADMIN OFCR OF THE HOUSE,2016Q4,SALARIES OFFICERS & EMPLOYEES,PERSONNEL COMPENSATION,"","","",FORD DARIN J.,10/1/16,12/31/16,SR TECHNICAL SUPPORT REP (A),23803.26,2016,FORD DARIN J.
,CHIEF ADMIN OFCR OF THE HOUSE,2016Q4,SALARIES OFFICERS & EMPLOYEES,PERSONNEL COMPENSATION,"","","",FORGIONE JOHN A.,10/1/16,12/31/16,SR CUSTOMER SOLUTIONS REP.,19564.74,2016,FORGIONE JOHN A.
,CHIEF ADMIN OFCR OF THE HOUSE,2016Q4,SALARIES OFFICERS & EMPLOYEES,PERSONNEL COMPENSATION,"","","",FOSTER CHARLES J.,10/1/16,12/31/16,PAYROLL & BENEFITS ASSISTANT,14976.99,2016,FOSTER CHARLES J.
,CHIEF ADMIN OFCR OF THE HOUSE,2016Q4,SALARIES OFFICERS & EMPLOYEES,PERSONNEL COMPENSATION,"","","",FOSTER CHARLES J.,10/1/16,11/30/16,PAYROLL & BENEFITS ASSISTANT (OVERTIME),1796.5,2016,FOSTER CHARLES J.
,CHIEF ADMIN OFCR OF THE HOUSE,2016Q4,SALARIES OFFICERS & EMPLOYEES,PERSONNEL COMPENSATION,"","","",FOSTER KRISTIN N,10/1/16,12/31/16,PAYROLL & BENEFITS GENERALIST,16208.08,2016,FOSTER KRISTIN N
,CHIEF ADMIN OFCR OF THE HOUSE,2016Q4,SALARIES OFFICERS & EMPLOYEES,PERSONNEL COMPENSATION,"","","",FOSTER KRISTIN N,11/1/16,11/30/16,PAYROLL & BENEFITS GENERALIST (OVERTIME),1005.63,2016,FOSTER KRISTIN N
,CHIEF ADMIN OFCR OF THE HOUSE,2016Q4,SALARIES OFFICERS & EMPLOYEES,PERSONNEL COMPENSATION,"","","",FOUNTAIN ANIKA,10/1/16,12/31/16,TECH SOLUTIONS TECHNICIAN,18757.74,2016,FOUNTAIN ANIKA
,CHIEF ADMIN OFCR OF THE HOUSE,2016Q4,SALARIES OFFICERS & EMPLOYEES,PERSONNEL COMPENSATION,"","","",FRAVEL DON J,10/1/16,12/31/16,TECH SOLUTIONS TECHNICIAN,18356.49,2016,FRAVEL DON J
,CHIEF ADMIN OFCR OF THE HOUSE,2016Q4,SALARIES OFFICERS & EMPLOYEES,PERSONNEL COMPENSATION,"","","",FRECH JASON L.,10/1/16,12/31/16,ENTERPRISE ADMINISTRATOR,29752.74,2016,FRECH JASON L.
,CHIEF ADMIN OFCR OF THE HOUSE,2016Q4,SALARIES OFFICERS & EMPLOYEES,PERSONNEL COMPENSATION,"","","",FREEMAN ANTOINETTE P.,10/1/16,12/31/16,ADMINISTRATIVE SPECIALIST,15325.26,2016,FREEMAN ANTOINETTE P.
,CHIEF ADMIN OFCR OF THE HOUSE,2016Q4,SALARIES OFFICERS & EMPLOYEES,PERSONNEL COMPENSATION,"","","",FREENEY MALCOLM,10/1/16,12/31/16,PROJECT MANAGER,26847.51,2016,FREENEY MALCOLM
,CHIEF ADMIN OFCR OF THE HOUSE,2016Q4,SALARIES OFFICERS & EMPLOYEES,PERSONNEL COMPENSATION,"","","",FRENCH CHARLES,10/1/16,12/31/16,SENIOR NETWORK TECHNICIAN,26383.74,2016,FRENCH CHARLES
,CHIEF ADMIN OFCR OF THE HOUSE,2016Q4,SALARIES OFFICERS & EMPLOYEES,PERSONNEL COMPENSATION,"","","",FRITZ ERIC D,10/1/16,12/31/16,ENT OPER BRANCH MGR TEAM LEAD,29752.74,2016,FRITZ ERIC D
,CHIEF ADMIN OFCR OF THE HOUSE,2016Q4,SALARIES OFFICERS & EMPLOYEES,PERSONNEL COMPENSATION,"","","",GAINES JULIA W.,10/1/16,12/31/16,SPECIAL ASSISTANT (A),26567.76,2016,GAINES JULIA W.
,CHIEF ADMIN OFCR OF THE HOUSE,2016Q4,SALARIES OFFICERS & EMPLOYEES,PERSONNEL COMPENSATION,"","","",GALLAGHER RENEE,10/1/16,12/31/16,SR INFO SYST. SECURITY ANALYST,26383.74,2016,GALLAGHER RENEE
,CHIEF ADMIN OFCR OF THE HOUSE,2016Q4,SALARIES OFFICERS & EMPLOYEES,PERSONNEL COMPENSATION,"","","",GALLAGHER RYAN S,10/1/16,12/31/16,HUMAN RESOURCES GENERALIST,17550.51,2016,GALLAGHER RYAN S
,CHIEF ADMIN OFCR OF THE HOUSE,2016Q4,SALARIES OFFICERS & EMPLOYEES,PERSONNEL COMPENSATION,"","","",GALLAGHER SARAH C,10/1/16,12/31/16,FINANCIAL RPT ACCOUNTANT,23607,2016,GALLAGHER SARAH C
,CHIEF ADMIN OFCR OF THE HOUSE,2016Q4,SALARIES OFFICERS & EMPLOYEES,PERSONNEL COMPENSATION,"","","",GARAY GERMAN,10/1/16,12/31/16,BROADCAST PRODUCTION TECHNICIA,23803.26,2016,GARAY GERMAN
,CHIEF ADMIN OFCR OF THE HOUSE,2016Q4,SALARIES OFFICERS & EMPLOYEES,PERSONNEL COMPENSATION,"","","",GARAY GERMAN,11/1/16,11/30/16,BROADCAST PRODUCTION TECHNICIA (OVERTIME),68.66,2016,GARAY GERMAN
,CHIEF ADMIN OFCR OF THE HOUSE,2016Q4,SALARIES OFFICERS & EMPLOYEES,PERSONNEL COMPENSATION,"","","",GARCIA JOHN,10/1/16,12/31/16,JOURNEYMAN FURNITURE SPEC.,14643.24,2016,GARCIA JOHN
,CHIEF ADMIN OFCR OF THE HOUSE,2016Q4,SALARIES OFFICERS & EMPLOYEES,PERSONNEL COMPENSATION,"","","",GARCIA JOHN,10/1/16,11/30/16,JOURNEYMAN FURNITURE SPEC. (OVERTIME),675.84,2016,GARCIA JOHN
,CHIEF ADMIN OFCR OF THE HOUSE,2016Q4,SALARIES OFFICERS & EMPLOYEES,PERSONNEL COMPENSATION,"","","",GASKINS JAMES R.,10/1/16,12/31/16,ENTERPRISE OPER BRANCH MGR,33859.5,2016,GASKINS JAMES R.
,CHIEF ADMIN OFCR OF THE HOUSE,2016Q4,SALARIES OFFICERS & EMPLOYEES,PERSONNEL COMPENSATION,"","","",GATES TRENA F.,10/1/16,12/31/16,FINANCIAL ANALYST,21807.24,2016,GATES TRENA F.
,CHIEF ADMIN OFCR OF THE HOUSE,2016Q4,SALARIES OFFICERS & EMPLOYEES,PERSONNEL COMPENSATION,"","","",GATES COREY M,10/1/16,12/31/16,JOURNEYMAN TEXTILE SPEC,16341.75,2016,GATES COREY M
,CHIEF ADMIN OFCR OF THE HOUSE,2016Q4,SALARIES OFFICERS & EMPLOYEES,PERSONNEL COMPENSATION,"","","",GATES COREY M,10/1/16,11/30/16,JOURNEYMAN TEXTILE SPEC (OVERTIME),1901.28,2016,GATES COREY M
,CHIEF ADMIN OFCR OF THE HOUSE,2016Q4,SALARIES OFFICERS & EMPLOYEES,PERSONNEL COMPENSATION,"","","",GATES THOMAS D,10/1/16,12/31/16,SENIOR SYSTEMS ENGINEER,24995.76,2016,GATES THOMAS D
,CHIEF ADMIN OFCR OF THE HOUSE,2016Q4,SALARIES OFFICERS & EMPLOYEES,PERSONNEL COMPENSATION,"","","",GEPERT DARLA M,10/1/16,12/31/16,ADMINISTRATIVE SPECIALIST,15338.01,2016,GEPERT DARLA M
,CHIEF ADMIN OFCR OF THE HOUSE,2016Q4,SALARIES OFFICERS & EMPLOYEES,PERSONNEL COMPENSATION,"","","",GERARDEN PAUL J,10/1/16,12/31/16,SR CUSTOMER SOLUTIONS REP.,15940.74,2016,GERARDEN PAUL J
,CHIEF ADMIN OFCR OF THE HOUSE,2016Q4,SALARIES OFFICERS & EMPLOYEES,PERSONNEL COMPENSATION,"","","",GILLIS DANIEL,10/1/16,12/31/16,ADA AIDE,7135.5,2016,GILLIS DANIEL
,CHIEF ADMIN OFCR OF THE HOUSE,2016Q4,SALARIES OFFICERS & EMPLOYEES,PERSONNEL COMPENSATION,"","","",GILLIS DANIEL,10/1/16,10/31/16,ADA AIDE (OVERTIME),1764.66,2016,GILLIS DANIEL
,CHIEF ADMIN OFCR OF THE HOUSE,2016Q4,SALARIES OFFICERS & EMPLOYEES,PERSONNEL COMPENSATION,"","","",GIZARA MICHAEL P.,10/1/16,12/31/16,TEAM LEAD OPERATNS/ADV CONTENT,33762.75,2016,GIZARA MICHAEL P.
,CHIEF ADMIN OFCR OF THE HOUSE,2016Q4,SALARIES OFFICERS & EMPLOYEES,PERSONNEL COMPENSATION,"","","",GOGGINS II JAMES D.,10/1/16,12/31/16,NETWORK COMM SPECIALIST (A),23803.26,2016,GOGGINS II JAMES D.
,CHIEF ADMIN OFCR OF THE HOUSE,2016Q4,SALARIES OFFICERS & EMPLOYEES,PERSONNEL COMPENSATION,"","","",GOLDSBOROUGH-LEE ANGEL M.,10/1/16,11/30/16,DIR TECH MGT & INTERNAL CTRLS,24260.66,2016,GOLDSBOROUGH-LEE ANGEL M.
,CHIEF ADMIN OFCR OF THE HOUSE,2016Q4,SALARIES OFFICERS & EMPLOYEES,PERSONNEL COMPENSATION,"","","",GOLDSBOROUGH-LEE ANGEL M.,11/1/16,12/31/16,DIR TECH GOVERN & COMPLIANCE,12832.33,2016,GOLDSBOROUGH-LEE ANGEL M.
,CHIEF ADMIN OFCR OF THE HOUSE,2016Q4,SALARIES OFFICERS & EMPLOYEES,PERSONNEL COMPENSATION,"","","",GONZALEZ ROSARIO D.,10/1/16,12/31/16,SR CUSTOMER SOLUTIONS REP.,20996.25,2016,GONZALEZ ROSARIO D.
,CHIEF ADMIN OFCR OF THE HOUSE,2016Q4,SALARIES OFFICERS & EMPLOYEES,PERSONNEL COMPENSATION,"","","",GOODLOW LISA L.,10/1/16,12/31/16,SR COMM SECURITY ANALYST,26819.76,2016,GOODLOW LISA L.
,CHIEF ADMIN OFCR OF THE HOUSE,2016Q4,SALARIES OFFICERS & EMPLOYEES,PERSONNEL COMPENSATION,"","","",GOULD MICHAEL,10/1/16,12/31/16,MANAGER REMEDY MANAGEMENT,31660.51,2016,GOULD MICHAEL
,CHIEF ADMIN OFCR OF THE HOUSE,2016Q4,SALARIES OFFICERS & EMPLOYEES,PERSONNEL COMPENSATION,"","","",GOULD MELISSA C,10/1/16,12/31/16,MANAGEMENT & PRODUCT ANALYST,26819.76,2016,GOULD MELISSA C
,CHIEF ADMIN OFCR OF THE HOUSE,2016Q4,SALARIES OFFICERS & EMPLOYEES,PERSONNEL COMPENSATION,"","","",GRAEUB ANDREW C.,10/1/16,12/31/16,MANAGER NETWORK SYST ENGINEER,35756.25,2016,GRAEUB ANDREW C.
,CHIEF ADMIN OFCR OF THE HOUSE,2016Q4,SALARIES OFFICERS & EMPLOYEES,PERSONNEL COMPENSATION,"","","",GRANT LISA,10/1/16,12/31/16,CHIEF PROCUREMENT OFFICER,42102.75,2016,GRANT LISA
,CHIEF ADMIN OFCR OF THE HOUSE,2016Q4,SALARIES OFFICERS & EMPLOYEES,PERSONNEL COMPENSATION,"","","",GRECO JACQUELINE M,10/1/16,12/31/16,CUSTOMER SOLUTIONS REP.,13233.99,2016,GRECO JACQUELINE M
,CHIEF ADMIN OFCR OF THE HOUSE,2016Q4,SALARIES OFFICERS & EMPLOYEES,PERSONNEL COMPENSATION,"","","",GREEN CAROLINE,10/1/16,12/31/16,TECHNICAL SUPPORT REP (A),18757.74,2016,GREEN CAROLINE
,CHIEF ADMIN OFCR OF THE HOUSE,2016Q4,SALARIES OFFICERS & EMPLOYEES,PERSONNEL COMPENSATION,"","","",GREEN MITCHELL,10/1/16,12/31/16,CONTRACT ADMINISTRATOR,33762.75,2016,GREEN MITCHELL
,CHIEF ADMIN OFCR OF THE HOUSE,2016Q4,SALARIES OFFICERS & EMPLOYEES,PERSONNEL COMPENSATION,"","","",GREENE CHANTEL T.,10/1/16,12/31/16,MGR BUS SYS AND INTEGRATION,37027.26,2016,GREENE CHANTEL T.
,CHIEF ADMIN OFCR OF THE HOUSE,2016Q4,SALARIES OFFICERS & EMPLOYEES,PERSONNEL COMPENSATION,"","","",GRIGGS KYLE R,10/1/16,11/7/16,CONTRACTS SPECIALIST,8838.17,2016,GRIGGS KYLE R
,CHIEF ADMIN OFCR OF THE HOUSE,2016Q4,SALARIES OFFICERS & EMPLOYEES,PERSONNEL COMPENSATION,"","","",GRIGGS KYLE R,11/8/16,12/31/16,SENIOR CONTRACTS SPECIALIST,15483.36,2016,GRIGGS KYLE R
,CHIEF ADMIN OFCR OF THE HOUSE,2016Q4,SALARIES OFFICERS & EMPLOYEES,PERSONNEL COMPENSATION,"","","",GRONSKI ROBERT S,10/1/16,12/31/16,SR BUSINESS PROCESS APPL SPEC,32043.51,2016,GRONSKI ROBERT S
,CHIEF ADMIN OFCR OF THE HOUSE,2016Q4,SALARIES OFFICERS & EMPLOYEES,PERSONNEL COMPENSATION,"","","",GUDURU PRATAP K,10/1/16,12/31/16,SENIOR SYSTEMS ENGINEER,33189.51,2016,GUDURU PRATAP K
,CHIEF ADMIN OFCR OF THE HOUSE,2016Q4,SALARIES OFFICERS & EMPLOYEES,PERSONNEL COMPENSATION,"","","",GUGLIOTTA NORMAN,10/1/16,12/31/16,FINANCIAL COUNSELOR (A),17550.51,2016,GUGLIOTTA NORMAN
,CHIEF ADMIN OFCR OF THE HOUSE,2016Q4,SALARIES OFFICERS & EMPLOYEES,PERSONNEL COMPENSATION,"","","",HALL MORGAN,10/1/16,12/31/16,FACILITIES MANAGEMENT SPECIALI,17951.25,2016,HALL MORGAN
,CHIEF ADMIN OFCR OF THE HOUSE,2016Q4,SALARIES OFFICERS & EMPLOYEES,PERSONNEL COMPENSATION,"","","",HAMBRIC STEEN H.,10/1/16,12/31/16,CHIEF TECHNOLOGY OFFICER,42102.75,2016,HAMBRIC STEEN H.
,CHIEF ADMIN OFCR OF THE HOUSE,2016Q4,SALARIES OFFICERS & EMPLOYEES,PERSONNEL COMPENSATION,"","","",HAMEL RYAN T,10/1/16,12/31/16,THIRD ASSISTANT,17550.51,2016,HAMEL RYAN T
,CHIEF ADMIN OFCR OF THE HOUSE,2016Q4,SALARIES OFFICERS & EMPLOYEES,PERSONNEL COMPENSATION,"","","",HAMNER PHILIP D.,10/1/16,12/31/16,DIRECTOR ACCOUNTING,37662.51,2016,HAMNER PHILIP D.
,CHIEF ADMIN OFCR OF THE HOUSE,2016Q4,SALARIES OFFICERS & EMPLOYEES,PERSONNEL COMPENSATION,"","","",HANEY WINSTON,10/1/16,12/31/16,ASSET/INVENTORY COUNSELOR,14629.26,2016,HANEY WINSTON
,CHIEF ADMIN OFCR OF THE HOUSE,2016Q4,SALARIES OFFICERS & EMPLOYEES,PERSONNEL COMPENSATION,"","","",HAQ RABIA,10/1/16,12/31/16,BUSINESS PROC APPLIC SPEC,24995.76,2016,HAQ RABIA
,CHIEF ADMIN OFCR OF THE HOUSE,2016Q4,SALARIES OFFICERS & EMPLOYEES,PERSONNEL COMPENSATION,"","","",HARGROVE BRIAN,10/1/16,10/4/16,LOGISTICS & DIST SPEC (A),491.49,2016,HARGROVE BRIAN
,CHIEF ADMIN OFCR OF THE HOUSE,2016Q4,SALARIES OFFICERS & EMPLOYEES,PERSONNEL COMPENSATION,"","","",HARGROVE BRIAN,10/5/16,12/31/16,BUILDING SUPERVISOR,11647.98,2016,HARGROVE BRIAN
,CHIEF ADMIN OFCR OF THE HOUSE,2016Q4,SALARIES OFFICERS & EMPLOYEES,PERSONNEL COMPENSATION,"","","",HARRELL VICKIE,10/1/16,12/31/16,SR NETWORK COMM SPECIALIST (A),24534,2016,HARRELL VICKIE
,CHIEF ADMIN OFCR OF THE HOUSE,2016Q4,SALARIES OFFICERS & EMPLOYEES,PERSONNEL COMPENSATION,"","","",HARRINGTON KEITH,10/1/16,12/31/16,FINANCIAL COUNSELOR,23431.74,2016,HARRINGTON KEITH
,CHIEF ADMIN OFCR OF THE HOUSE,2016Q4,SALARIES OFFICERS & EMPLOYEES,PERSONNEL COMPENSATION,"","","",HARRIS DONALD,10/1/16,12/31/16,NETWORK COMM SUPERVISOR,31469.01,2016,HARRIS DONALD
,CHIEF ADMIN OFCR OF THE HOUSE,2016Q4,SALARIES OFFICERS & EMPLOYEES,PERSONNEL COMPENSATION,"","","",HARRIS KEVIN,10/1/16,12/31/16,JOURNEYMAN FURNITURE SPEC.,20369.01,2016,HARRIS KEVIN
,CHIEF ADMIN OFCR OF THE HOUSE,2016Q4,SALARIES OFFICERS & EMPLOYEES,PERSONNEL COMPENSATION,"","","",HARVEY JAMIE,10/1/16,12/31/16,SR TELECOMMUNICATIONS ADMIN (A,17082.75,2016,HARVEY JAMIE
,CHIEF ADMIN OFCR OF THE HOUSE,2016Q4,SALARIES OFFICERS & EMPLOYEES,PERSONNEL COMPENSATION,"","","",HARVEY KINSEY B,10/1/16,12/31/16,MEDIA LOGISTICS COORDINATOR,18158.49,2016,HARVEY KINSEY B
,CHIEF ADMIN OFCR OF THE HOUSE,2016Q4,SALARIES OFFICERS & EMPLOYEES,PERSONNEL COMPENSATION,"","","",HAYES KATHLEEN M,10/1/16,12/31/16,CUSTOMER SOLUTIONS REP.,15338.01,2016,HAYES KATHLEEN M
,CHIEF ADMIN OFCR OF THE HOUSE,2016Q4,SALARIES OFFICERS & EMPLOYEES,PERSONNEL COMPENSATION,"","","",HAYES MICHELLE P,10/1/16,12/31/16,SENIOR SYSTEMS ENGINEER,33189.51,2016,HAYES MICHELLE P
,CHIEF ADMIN OFCR OF THE HOUSE,2016Q4,SALARIES OFFICERS & EMPLOYEES,PERSONNEL COMPENSATION,"","","",HEEB III JOHN J.,10/1/16,12/31/16,SR BUSINESS PROCESS APPL SPEC,34909.74,2016,HEEB III JOHN J.
,CHIEF ADMIN OFCR OF THE HOUSE,2016Q4,SALARIES OFFICERS & EMPLOYEES,PERSONNEL COMPENSATION,"","","",HERBERT GREGORY L.,10/1/16,12/31/16,REC/WAREHOUSE SPEC (A),12756.51,2016,HERBERT GREGORY L.
,CHIEF ADMIN OFCR OF THE HOUSE,2016Q4,SALARIES OFFICERS & EMPLOYEES,PERSONNEL COMPENSATION,"","","",HIBBS CYNTHIA,10/1/16,12/31/16,NETWORK COORDINATOR (A),20369.01,2016,HIBBS CYNTHIA
,CHIEF ADMIN OFCR OF THE HOUSE,2016Q4,SALARIES OFFICERS & EMPLOYEES,PERSONNEL COMPENSATION,"","","",HIDALGO BOUCHOT ENRIQUE D,10/26/16,12/31/16,SENIOR SOFTWARE SPECIALIST,23991.67,2016,HIDALGO BOUCHOT ENRIQUE D
,CHIEF ADMIN OFCR OF THE HOUSE,2016Q4,SALARIES OFFICERS & EMPLOYEES,PERSONNEL COMPENSATION,"","","",HIRSCH PATRICK A.,10/1/16,12/31/16,DIR-HOUSE RECORDING STUDIO,42102.75,2016,HIRSCH PATRICK A.
,CHIEF ADMIN OFCR OF THE HOUSE,2016Q4,SALARIES OFFICERS & EMPLOYEES,PERSONNEL COMPENSATION,"","","",HOBBS DENINE,10/1/16,12/31/16,SPECIAL ASSISTANT,25920.99,2016,HOBBS DENINE
,CHIEF ADMIN OFCR OF THE HOUSE,2016Q4,SALARIES OFFICERS & EMPLOYEES,PERSONNEL COMPENSATION,"","","",HODGES JOHN E.,10/1/16,12/31/16,DIR. OFFICE SUPPLY & GIFT SHOP,27870.75,2016,HODGES JOHN E.
,CHIEF ADMIN OFCR OF THE HOUSE,2016Q4,SALARIES OFFICERS & EMPLOYEES,PERSONNEL COMPENSATION,"","","",HOKHOLD MARK D.,10/1/16,12/31/16,SYSTEMS ENGINEER,26075.24,2016,HOKHOLD MARK D.
,CHIEF ADMIN OFCR OF THE HOUSE,2016Q4,SALARIES OFFICERS & EMPLOYEES,PERSONNEL COMPENSATION,"","","",HOLAU GEORGE,10/1/16,12/31/16,FINANCIAL COUNSELOR,21400.5,2016,HOLAU GEORGE
,CHIEF ADMIN OFCR OF THE HOUSE,2016Q4,SALARIES OFFICERS & EMPLOYEES,PERSONNEL COMPENSATION,"","","",HOLAU GEORGE,10/1/16,10/31/16,FINANCIAL COUNSELOR (OVERTIME),288.08,2016,HOLAU GEORGE
,CHIEF ADMIN OFCR OF THE HOUSE,2016Q4,SALARIES OFFICERS & EMPLOYEES,PERSONNEL COMPENSATION,"","","",HOLLAND GREGORY,10/1/16,12/31/16,LOGISTICS & DIST SPEC (A),11972.25,2016,HOLLAND GREGORY
,CHIEF ADMIN OFCR OF THE HOUSE,2016Q4,SALARIES OFFICERS & EMPLOYEES,PERSONNEL COMPENSATION,"","","",HOLLEY STEVEN M.,10/1/16,12/31/16,RECEIVING/WAREHOUSE SPEC (A),11668.5,2016,HOLLEY STEVEN M.
,CHIEF ADMIN OFCR OF THE HOUSE,2016Q4,SALARIES OFFICERS & EMPLOYEES,PERSONNEL COMPENSATION,"","","",HOLT CLINTON F,10/1/16,12/31/16,BROADCAST ENGINEER/PROD SPEC.,21035.01,2016,HOLT CLINTON F
,CHIEF ADMIN OFCR OF THE HOUSE,2016Q4,SALARIES OFFICERS & EMPLOYEES,PERSONNEL COMPENSATION,"","","",HORNBURG RICHARD A.,10/1/16,12/31/16,BUSINESS PROC APPLIC SPEC,29449.74,2016,HORNBURG RICHARD A.
,CHIEF ADMIN OFCR OF THE HOUSE,2016Q4,SALARIES OFFICERS & EMPLOYEES,PERSONNEL COMPENSATION,"","","",HOWARD ANTHONY T.,10/1/16,12/31/16,JOURNEYMAN TEXTILE SPEC,17545.59,2016,HOWARD ANTHONY T.
,CHIEF ADMIN OFCR OF THE HOUSE,2016Q4,SALARIES OFFICERS & EMPLOYEES,PERSONNEL COMPENSATION,"","","",HOWARD ANTHONY T.,10/1/16,10/31/16,JOURNEYMAN TEXTILE SPEC (OVERTIME),969.11,2016,HOWARD ANTHONY T.
,CHIEF ADMIN OFCR OF THE HOUSE,2016Q4,SALARIES OFFICERS & EMPLOYEES,PERSONNEL COMPENSATION,"","","",HUGHES MICHAEL A.,10/1/16,12/31/16,FINANCIAL COUNSELOR,16732.74,2016,HUGHES MICHAEL A.
,CHIEF ADMIN OFCR OF THE HOUSE,2016Q4,SALARIES OFFICERS & EMPLOYEES,PERSONNEL COMPENSATION,"","","",HUGHES JAMAL C,10/1/16,12/31/16,ASSET/INVENTORY COUNSELOR,14629.26,2016,HUGHES JAMAL C
,CHIEF ADMIN OFCR OF THE HOUSE,2016Q4,SALARIES OFFICERS & EMPLOYEES,PERSONNEL COMPENSATION,"","","",HUNT DANIEL,10/1/16,12/31/16,SR NETWORK COMM SPECIALIST,32615.25,2016,HUNT DANIEL
,CHIEF ADMIN OFCR OF THE HOUSE,2016Q4,SALARIES OFFICERS & EMPLOYEES,PERSONNEL COMPENSATION,"","","",HUNTER STEVE,10/1/16,12/31/16,ASSET/INVENTORY COUNSELOR,14281.26,2016,HUNTER STEVE
,CHIEF ADMIN OFCR OF THE HOUSE,2016Q4,SALARIES OFFICERS & EMPLOYEES,PERSONNEL COMPENSATION,"","","",HUNTER STEVE,10/1/16,11/30/16,ASSET/INVENTORY COUNSELOR (OVERTIME),1551.7,2016,HUNTER STEVE
,CHIEF ADMIN OFCR OF THE HOUSE,2016Q4,SALARIES OFFICERS & EMPLOYEES,PERSONNEL COMPENSATION,"","","",HURDA JACQUELINE L.,10/1/16,12/31/16,FINANCIAL COUNSELOR (A),20996.25,2016,HURDA JACQUELINE L.
,CHIEF ADMIN OFCR OF THE HOUSE,2016Q4,SALARIES OFFICERS & EMPLOYEES,PERSONNEL COMPENSATION,"","","",HURDA JACQUELINE L.,10/1/16,10/31/16,FINANCIAL COUNSELOR (A) (OVERTIME),272.54,2016,HURDA JACQUELINE L.
,CHIEF ADMIN OFCR OF THE HOUSE,2016Q4,SALARIES OFFICERS & EMPLOYEES,PERSONNEL COMPENSATION,"","","",ILOG ANGELA M,10/1/16,12/31/16,CONTRACTS SUPPORT ADMIN,15338.01,2016,ILOG ANGELA M
,CHIEF ADMIN OFCR OF THE HOUSE,2016Q4,SALARIES OFFICERS & EMPLOYEES,PERSONNEL COMPENSATION,"","","",INGRAM DEXTER J,10/1/16,12/31/16,FINANCIAL COUNSELOR,15940.74,2016,INGRAM DEXTER J
,CHIEF ADMIN OFCR OF THE HOUSE,2016Q4,SALARIES OFFICERS & EMPLOYEES,PERSONNEL COMPENSATION,"","","",ISAAC CORWIN L,11/28/16,12/31/16,DIRECTOR ASSET MANAGEMENT,13576.66,2016,ISAAC CORWIN L
,CHIEF ADMIN OFCR OF THE HOUSE,2016Q4,SALARIES OFFICERS & EMPLOYEES,PERSONNEL COMPENSATION,"","","",JACKSON REGGIE,10/1/16,12/31/16,SR TECHNICAL SUPPORT REP (A),24995.76,2016,JACKSON REGGIE
,CHIEF ADMIN OFCR OF THE HOUSE,2016Q4,SALARIES OFFICERS & EMPLOYEES,PERSONNEL COMPENSATION,"","","",JACKSON WANDA J.,10/1/16,12/31/16,TELECOMMUNICATIONS BRANCH MNGR,28397.01,2016,JACKSON WANDA J.
,CHIEF ADMIN OFCR OF THE HOUSE,2016Q4,SALARIES OFFICERS & EMPLOYEES,PERSONNEL COMPENSATION,"","","",JACOBSON BRADLEY J.,10/1/16,12/31/16,ENTERPRISE OPER BRANCH MGR,36390.99,2016,JACOBSON BRADLEY J.
,CHIEF ADMIN OFCR OF THE HOUSE,2016Q4,SALARIES OFFICERS & EMPLOYEES,PERSONNEL COMPENSATION,"","","",JANIFER ROLAND S.,10/1/16,12/31/16,SUPERVISOR LOGIS & DIST (A),19161.24,2016,JANIFER ROLAND S.
,CHIEF ADMIN OFCR OF THE HOUSE,2016Q4,SALARIES OFFICERS & EMPLOYEES,PERSONNEL COMPENSATION,"","","",JECKO BRITTANY E,10/1/16,12/31/16,SR BUSINESS PROC APPL SPEC,26819.76,2016,JECKO BRITTANY E
,CHIEF ADMIN OFCR OF THE HOUSE,2016Q4,SALARIES OFFICERS & EMPLOYEES,PERSONNEL COMPENSATION,"","","",JEFFERSON KENYATTA,10/1/16,12/31/16,TECHNICAL SUPPORT REP (A),19374.24,2016,JEFFERSON KENYATTA
,CHIEF ADMIN OFCR OF THE HOUSE,2016Q4,SALARIES OFFICERS & EMPLOYEES,PERSONNEL COMPENSATION,"","","",JENKINS JAMES,10/1/16,12/31/16,WORKFLOW COORDINATOR,20369.01,2016,JENKINS JAMES
,CHIEF ADMIN OFCR OF THE HOUSE,2016Q4,SALARIES OFFICERS & EMPLOYEES,PERSONNEL COMPENSATION,"","","",JENNINGS ARACELI,10/1/16,12/31/16,FINANCE ASSISTANT,17314.17,2016,JENNINGS ARACELI
,CHIEF ADMIN OFCR OF THE HOUSE,2016Q4,SALARIES OFFICERS & EMPLOYEES,PERSONNEL COMPENSATION,"","","",JOHANN DEREK,10/1/16,12/31/16,SUPERVISOR (DISPOSALS),20572.74,2016,JOHANN DEREK
,CHIEF ADMIN OFCR OF THE HOUSE,2016Q4,SALARIES OFFICERS & EMPLOYEES,PERSONNEL COMPENSATION,"","","",JOHNSON DWAYNE,10/1/16,12/31/16,RETAIL INVENTORY SPECIALIST,15325.26,2016,JOHNSON DWAYNE
,CHIEF ADMIN OFCR OF THE HOUSE,2016Q4,SALARIES OFFICERS & EMPLOYEES,PERSONNEL COMPENSATION,"","","",JOHNSON ERIC C.,10/1/16,12/31/16,WORKFLOW COORDINATOR,14292.51,2016,JOHNSON ERIC C.
,CHIEF ADMIN OFCR OF THE HOUSE,2016Q4,SALARIES OFFICERS & EMPLOYEES,PERSONNEL COMPENSATION,"","","",JOHNSON MARGARET K.,10/1/16,12/31/16,SENIOR PROJECTS SPECIALIST,19374.24,2016,JOHNSON MARGARET K.
,CHIEF ADMIN OFCR OF THE HOUSE,2016Q4,SALARIES OFFICERS & EMPLOYEES,PERSONNEL COMPENSATION,"","","",JOHNSON REGINALD,10/1/16,12/31/16,FINANCIAL COUNSELOR (A),18356.49,2016,JOHNSON REGINALD
,CHIEF ADMIN OFCR OF THE HOUSE,2016Q4,SALARIES OFFICERS & EMPLOYEES,PERSONNEL COMPENSATION,"","","",JOHNSON ROBERT C.,10/1/16,12/31/16,SENIOR SYSTEMS ENGINEER,31027.74,2016,JOHNSON ROBERT C.
,CHIEF ADMIN OFCR OF THE HOUSE,2016Q4,SALARIES OFFICERS & EMPLOYEES,PERSONNEL COMPENSATION,"","","",JOHNSON ANDRE D,10/1/16,12/31/16,SENIOR NETWORK TECHNICIAN,18565.74,2016,JOHNSON ANDRE D
,CHIEF ADMIN OFCR OF THE HOUSE,2016Q4,SALARIES OFFICERS & EMPLOYEES,PERSONNEL COMPENSATION,"","","",JOHNSON KWASI Z,10/1/16,12/31/16,LOGISTICS & DIST SPEC (A),9579,2016,JOHNSON KWASI Z
,CHIEF ADMIN OFCR OF THE HOUSE,2016Q4,SALARIES OFFICERS & EMPLOYEES,PERSONNEL COMPENSATION,"","","",JONES III CLARENCE,10/1/16,12/31/16,SENIOR NETWORK TECHNICIAN,20455.67,2016,JONES III CLARENCE
,CHIEF ADMIN OFCR OF THE HOUSE,2016Q4,SALARIES OFFICERS & EMPLOYEES,PERSONNEL COMPENSATION,"","","",JONES JR CHARLES J.,10/1/16,12/31/16,SR NETWORK COMM SPEC (A),26292.51,2016,JONES JR CHARLES J.
,CHIEF ADMIN OFCR OF THE HOUSE,2016Q4,SALARIES OFFICERS & EMPLOYEES,PERSONNEL COMPENSATION,"","","",JONES DEBORAH D.,10/1/16,12/31/16,FINANCIAL COUNSELOR,22618.74,2016,JONES DEBORAH D.
,CHIEF ADMIN OFCR OF THE HOUSE,2016Q4,SALARIES OFFICERS & EMPLOYEES,PERSONNEL COMPENSATION,"","","",JONES MITCHAEL,10/1/16,12/31/16,TECHNICAL TRAINER,20996.25,2016,JONES MITCHAEL
,CHIEF ADMIN OFCR OF THE HOUSE,2016Q4,SALARIES OFFICERS & EMPLOYEES,PERSONNEL COMPENSATION,"","","",JONES STEPHEN E,10/1/16,12/31/16,ENT OPS ENGINEERING TEAM LEAD,32043.51,2016,JONES STEPHEN E
,CHIEF ADMIN OFCR OF THE HOUSE,2016Q4,SALARIES OFFICERS & EMPLOYEES,PERSONNEL COMPENSATION,"","","",JONES WESLEY D.,10/1/16,10/31/16,LOGISTICS & DIST SPEC (A),3990.75,2016,JONES WESLEY D.
,CHIEF ADMIN OFCR OF THE HOUSE,2016Q4,SALARIES OFFICERS & EMPLOYEES,PERSONNEL COMPENSATION,"","","",JONES RODNEY B,10/1/16,12/31/16,SR TECHNICAL SUPPORT REP,22574.33,2016,JONES RODNEY B
,CHIEF ADMIN OFCR OF THE HOUSE,2016Q4,SALARIES OFFICERS & EMPLOYEES,PERSONNEL COMPENSATION,"","","",JONES YOLANDA S,10/1/16,12/31/16,PAYROLL & BENEFITS GENERALIST,17148.99,2016,JONES YOLANDA S
,CHIEF ADMIN OFCR OF THE HOUSE,2016Q4,SALARIES OFFICERS & EMPLOYEES,PERSONNEL COMPENSATION,"","","",JONES YOLANDA S,11/1/16,11/30/16,PAYROLL & BENEFITS GENERALIST (OVERTIME),515.45,2016,JONES YOLANDA S
,CHIEF ADMIN OFCR OF THE HOUSE,2016Q4,SALARIES OFFICERS & EMPLOYEES,PERSONNEL COMPENSATION,"","","",JORDAN YONG O.,10/1/16,12/31/16,SR TECH SOLUTIONS ENGINEER,25920.99,2016,JORDAN YONG O.
,CHIEF ADMIN OFCR OF THE HOUSE,2016Q4,SALARIES OFFICERS & EMPLOYEES,PERSONNEL COMPENSATION,"","","",JORDAN CHELSA N,10/24/16,12/31/16,SYSTEMS ENGINEER,15315.26,2016,JORDAN CHELSA N
,CHIEF ADMIN OFCR OF THE HOUSE,2016Q4,SALARIES OFFICERS & EMPLOYEES,PERSONNEL COMPENSATION,"","","",JORDAN CHRISTOPHER,10/1/16,12/31/16,CHIEF OPERATIONS OFFICER,42102.75,2016,JORDAN CHRISTOPHER
,CHIEF ADMIN OFCR OF THE HOUSE,2016Q4,SALARIES OFFICERS & EMPLOYEES,PERSONNEL COMPENSATION,"","","",JOY ADAM M,12/1/16,12/31/16,ASSET/INVENTORY COUNSELOR,4643.67,2016,JOY ADAM M
,CHIEF ADMIN OFCR OF THE HOUSE,2016Q4,SALARIES OFFICERS & EMPLOYEES,PERSONNEL COMPENSATION,"","","",JOYCE ERIC,10/1/16,12/31/16,SUPERVISOR,29449.74,2016,JOYCE ERIC
,CHIEF ADMIN OFCR OF THE HOUSE,2016Q4,SALARIES OFFICERS & EMPLOYEES,PERSONNEL COMPENSATION,"","","",JUDGE NANCY,10/1/16,12/31/16,CUSTOMER SOLUTIONS REP.,16383.99,2016,JUDGE NANCY
,CHIEF ADMIN OFCR OF THE HOUSE,2016Q4,SALARIES OFFICERS & EMPLOYEES,PERSONNEL COMPENSATION,"","","",KACHINSKE EDWARD N,11/14/16,12/31/16,ASSISTANT DIRECTOR,10984.95,2016,KACHINSKE EDWARD N
,CHIEF ADMIN OFCR OF THE HOUSE,2016Q4,SALARIES OFFICERS & EMPLOYEES,PERSONNEL COMPENSATION,"","","",KAHLER KENT,10/1/16,12/31/16,SYSTEMS ENGINEER,26383.74,2016,KAHLER KENT
,CHIEF ADMIN OFCR OF THE HOUSE,2016Q4,SALARIES OFFICERS & EMPLOYEES,PERSONNEL COMPENSATION,"","","",KEANE MICHAEL T.,10/1/16,12/31/16,MANAGER WORKFLOW MANAGEMENT,24534,2016,KEANE MICHAEL T.
,CHIEF ADMIN OFCR OF THE HOUSE,2016Q4,SALARIES OFFICERS & EMPLOYEES,PERSONNEL COMPENSATION,"","","",KELLAHER ANTHONY,10/1/16,12/31/16,MEDIA COORDINATOR & VISUAL DES,20320.33,2016,KELLAHER ANTHONY
,CHIEF ADMIN OFCR OF THE HOUSE,2016Q4,SALARIES OFFICERS & EMPLOYEES,PERSONNEL COMPENSATION,"","","",KELLEY KEVIN S.,10/1/16,12/31/16,CUSTOMER SOLUTIONS REP.,17082.75,2016,KELLEY KEVIN S.
,CHIEF ADMIN OFCR OF THE HOUSE,2016Q4,SALARIES OFFICERS & EMPLOYEES,PERSONNEL COMPENSATION,"","","",KELLEY MARY M.,10/1/16,12/31/16,RESOURCE MANAGER,30502.26,2016,KELLEY MARY M.
,CHIEF ADMIN OFCR OF THE HOUSE,2016Q4,SALARIES OFFICERS & EMPLOYEES,PERSONNEL COMPENSATION,"","","",KELLEY TARA A.,10/1/16,12/31/16,COMMUNICATIONS SPEC (A),21807.24,2016,KELLEY TARA A.
,CHIEF ADMIN OFCR OF THE HOUSE,2016Q4,SALARIES OFFICERS & EMPLOYEES,PERSONNEL COMPENSATION,"","","",KENEALY PATRICK T.,10/1/16,12/31/16,FINANCIAL ANALYST,36055.5,2016,KENEALY PATRICK T.
,CHIEF ADMIN OFCR OF THE HOUSE,2016Q4,SALARIES OFFICERS & EMPLOYEES,PERSONNEL COMPENSATION,"","","",KIKO PHILIP G,10/1/16,12/31/16,CHIEF ADMINISTRATIVE OFFICER,43125,2016,KIKO PHILIP G
,CHIEF ADMIN OFCR OF THE HOUSE,2016Q4,SALARIES OFFICERS & EMPLOYEES,PERSONNEL COMPENSATION,"","","",KILSON FRANKLIN P,10/1/16,12/31/16,NETWORK TECHNICIAN,22880.49,2016,KILSON FRANKLIN P
,CHIEF ADMIN OFCR OF THE HOUSE,2016Q4,SALARIES OFFICERS & EMPLOYEES,PERSONNEL COMPENSATION,"","","",KIMBALL MARK E.,10/1/16,12/31/16,SR TECHNICAL SUPPORT REP (A),23340,2016,KIMBALL MARK E.
,CHIEF ADMIN OFCR OF THE HOUSE,2016Q4,SALARIES OFFICERS & EMPLOYEES,PERSONNEL COMPENSATION,"","","",KLEMP CAROLINE,10/1/16,10/1/16,DIRECTOR MEMBERS' SERVICES,413.33,2016,KLEMP CAROLINE
,CHIEF ADMIN OFCR OF THE HOUSE,2016Q4,SALARIES OFFICERS & EMPLOYEES,PERSONNEL COMPENSATION,"","","",KLEMP CAROLINE,10/1/16,10/1/16,DIRECTOR MEMBERS' SERVICES (OTHER COMPENSATION),11573.26,2016,KLEMP CAROLINE
,CHIEF ADMIN OFCR OF THE HOUSE,2016Q4,SALARIES OFFICERS & EMPLOYEES,PERSONNEL COMPENSATION,"","","",KNELL KATHERINE A.,10/1/16,12/31/16,HRIS APPLICATIONS MANAGER,42102.75,2016,KNELL KATHERINE A.
,CHIEF ADMIN OFCR OF THE HOUSE,2016Q4,SALARIES OFFICERS & EMPLOYEES,PERSONNEL COMPENSATION,"","","",KNOERL THOMAS K.,10/1/16,12/31/16,COMPUTER FACILITIES OPER MGR,27347.25,2016,KNOERL THOMAS K.
,CHIEF ADMIN OFCR OF THE HOUSE,2016Q4,SALARIES OFFICERS & EMPLOYEES,PERSONNEL COMPENSATION,"","","",KORNACKI OLGA R.,10/1/16,12/31/16,DIRECTOR,36055.5,2016,KORNACKI OLGA R.
,CHIEF ADMIN OFCR OF THE HOUSE,2016Q4,SALARIES OFFICERS & EMPLOYEES,PERSONNEL COMPENSATION,"","","",KOZTOSKI DOUGLAS W.,10/1/16,12/31/16,BROADCAST PRODUCTION TECHNICIA,20591.01,2016,KOZTOSKI DOUGLAS W.
,CHIEF ADMIN OFCR OF THE HOUSE,2016Q4,SALARIES OFFICERS & EMPLOYEES,PERSONNEL COMPENSATION,"","","",KOZTOSKI DOUGLAS W.,11/1/16,11/30/16,BROADCAST PRODUCTION TECHNICIA (OVERTIME),148.49,2016,KOZTOSKI DOUGLAS W.
,CHIEF ADMIN OFCR OF THE HOUSE,2016Q4,SALARIES OFFICERS & EMPLOYEES,PERSONNEL COMPENSATION,"","","",KRALY ELIZABETH A,10/1/16,12/31/16,DIRECTOR CAO HUMAN RESOURCES,29752.74,2016,KRALY ELIZABETH A
,CHIEF ADMIN OFCR OF THE HOUSE,2016Q4,SALARIES OFFICERS & EMPLOYEES,PERSONNEL COMPENSATION,"","","",KREMKAU REBECCA K,10/1/16,12/31/16,FINANCIAL ANALYST,22421.25,2016,KREMKAU REBECCA K
,CHIEF ADMIN OFCR OF THE HOUSE,2016Q4,SALARIES OFFICERS & EMPLOYEES,PERSONNEL COMPENSATION,"","","",KUPER KAREN,10/1/16,12/31/16,SPECIAL ASSISTANT/OPER SUPERVI,26383.74,2016,KUPER KAREN
,CHIEF ADMIN OFCR OF THE HOUSE,2016Q4,SALARIES OFFICERS & EMPLOYEES,PERSONNEL COMPENSATION,"","","",LAGASSE DANIEL,10/1/16,12/31/16,BCDR OPERATIONS MANAGER,34489.26,2016,LAGASSE DANIEL
,CHIEF ADMIN OFCR OF THE HOUSE,2016Q4,SALARIES OFFICERS & EMPLOYEES,PERSONNEL COMPENSATION,"","","",LANGLEY WILLIAM T,12/5/16,12/31/16,BUSINESS PROC APPLIC SPEC,7595.61,2016,LANGLEY WILLIAM T
,CHIEF ADMIN OFCR OF THE HOUSE,2016Q4,SALARIES OFFICERS & EMPLOYEES,PERSONNEL COMPENSATION,"","","",LAU DAVID E,10/1/16,12/31/16,INFORMATION SECURITY MANAGER,35126.01,2016,LAU DAVID E
,CHIEF ADMIN OFCR OF THE HOUSE,2016Q4,SALARIES OFFICERS & EMPLOYEES,PERSONNEL COMPENSATION,"","","",LAVAN JENNIFER H,10/1/16,12/31/16,SR EA COUNSELOR,26292.51,2016,LAVAN JENNIFER H
,CHIEF ADMIN OFCR OF THE HOUSE,2016Q4,SALARIES OFFICERS & EMPLOYEES,PERSONNEL COMPENSATION,"","","",LEA SAMUEL E,10/1/16,12/31/16,SR. SECURITY ENGINEER,31469.01,2016,LEA SAMUEL E
,CHIEF ADMIN OFCR OF THE HOUSE,2016Q4,SALARIES OFFICERS & EMPLOYEES,PERSONNEL COMPENSATION,"","","",LEATHERBURY MICHELLE Y,10/1/16,12/31/16,COMMUNICATIONS SPECIALIST,23607,2016,LEATHERBURY MICHELLE Y
,CHIEF ADMIN OFCR OF THE HOUSE,2016Q4,SALARIES OFFICERS & EMPLOYEES,PERSONNEL COMPENSATION,"","","",LEBER DENNIS,10/1/16,12/31/16,SR NETWORK SYSTEMS ENGINEER,29449.74,2016,LEBER DENNIS
,CHIEF ADMIN OFCR OF THE HOUSE,2016Q4,SALARIES OFFICERS & EMPLOYEES,PERSONNEL COMPENSATION,"","","",LEE DARNELL A.,10/1/16,12/31/16,ASSISTANT CAO,41187,2016,LEE DARNELL A.
,CHIEF ADMIN OFCR OF THE HOUSE,2016Q4,SALARIES OFFICERS & EMPLOYEES,PERSONNEL COMPENSATION,"","","",LEIBY FREDERICK,10/1/16,12/31/16,CONTRACT ADMINISTRATOR,20173.24,2016,LEIBY FREDERICK
,CHIEF ADMIN OFCR OF THE HOUSE,2016Q4,SALARIES OFFICERS & EMPLOYEES,PERSONNEL COMPENSATION,"","","",LESNEWSKY ERIK,10/1/16,12/31/16,ADA AIDE,6917.76,2016,LESNEWSKY ERIK
,CHIEF ADMIN OFCR OF THE HOUSE,2016Q4,SALARIES OFFICERS & EMPLOYEES,PERSONNEL COMPENSATION,"","","",LEV MARK S,10/1/16,12/31/16,SR BUS SOFTWARE SPECIALIST,32615.25,2016,LEV MARK S
,CHIEF ADMIN OFCR OF THE HOUSE,2016Q4,SALARIES OFFICERS & EMPLOYEES,PERSONNEL COMPENSATION,"","","",LEWIS JOHN T.,10/1/16,12/31/16,DIRECTOR FURNISHINGS,29449.74,2016,LEWIS JOHN T.
,CHIEF ADMIN OFCR OF THE HOUSE,2016Q4,SALARIES OFFICERS & EMPLOYEES,PERSONNEL COMPENSATION,"","","",LIM CHAU T,10/1/16,12/31/16,SENIOR ACCOUNTANT (A),26383.74,2016,LIM CHAU T
,CHIEF ADMIN OFCR OF THE HOUSE,2016Q4,SALARIES OFFICERS & EMPLOYEES,PERSONNEL COMPENSATION,"","","",LINVILLE RAY A.,10/1/16,12/31/16,SENIOR SYSTEMS ENGINEER,32076.24,2016,LINVILLE RAY A.
,CHIEF ADMIN OFCR OF THE HOUSE,2016Q4,SALARIES OFFICERS & EMPLOYEES,PERSONNEL COMPENSATION,"","","",LITTLE ANDREAL P.,10/1/16,11/6/16,ADMINISTRATIVE SPECIALIST,6833.1,2016,LITTLE ANDREAL P.
,CHIEF ADMIN OFCR OF THE HOUSE,2016Q4,SALARIES OFFICERS & EMPLOYEES,PERSONNEL COMPENSATION,"","","",LITTLE ANDREAL P.,11/7/16,12/31/16,JR PROJECT MANAGER,12343.65,2016,LITTLE ANDREAL P.
,CHIEF ADMIN OFCR OF THE HOUSE,2016Q4,SALARIES OFFICERS & EMPLOYEES,PERSONNEL COMPENSATION,"","","",LITTLE ANDREAL P.,10/1/16,10/31/16,ADMINISTRATIVE SPECIALIST (OVERTIME),689.87,2016,LITTLE ANDREAL P.
,CHIEF ADMIN OFCR OF THE HOUSE,2016Q4,SALARIES OFFICERS & EMPLOYEES,PERSONNEL COMPENSATION,"","","",LITTLE ANDREAL P.,11/1/16,11/30/16,JR PROJECT MANAGER (OVERTIME),385.73,2016,LITTLE ANDREAL P.
,CHIEF ADMIN OFCR OF THE HOUSE,2016Q4,SALARIES OFFICERS & EMPLOYEES,PERSONNEL COMPENSATION,"","","",LITTLE HAROLD M.,10/1/16,12/31/16,SR TECH SOLUTIONS ENGINEER,25920.99,2016,LITTLE HAROLD M.
,CHIEF ADMIN OFCR OF THE HOUSE,2016Q4,SALARIES OFFICERS & EMPLOYEES,PERSONNEL COMPENSATION,"","","",LOGAN KATHERINE J.,10/1/16,12/31/16,DIRECTOR PAYROLL AND BENEFITS,42102.75,2016,LOGAN KATHERINE J.
,CHIEF ADMIN OFCR OF THE HOUSE,2016Q4,SALARIES OFFICERS & EMPLOYEES,PERSONNEL COMPENSATION,"","","",LONG JOHN P.,10/1/16,12/31/16,CAPITOL BUILDING SUPERVISOR,26819.76,2016,LONG JOHN P.
,CHIEF ADMIN OFCR OF THE HOUSE,2016Q4,SALARIES OFFICERS & EMPLOYEES,PERSONNEL COMPENSATION,"","","",LOVING ANTHONY,10/1/16,12/31/16,APPLICATION DBA SPECIALIST,29449.74,2016,LOVING ANTHONY
,CHIEF ADMIN OFCR OF THE HOUSE,2016Q4,SALARIES OFFICERS & EMPLOYEES,PERSONNEL COMPENSATION,"","","",LUEKEN PAIGE J,10/1/16,12/31/16,EXECUTIVE ADMINISTRATOR,18158.49,2016,LUEKEN PAIGE J
,CHIEF ADMIN OFCR OF THE HOUSE,2016Q4,SALARIES OFFICERS & EMPLOYEES,PERSONNEL COMPENSATION,"","","",MAAS JENNIFER A.,10/1/16,11/30/16,MGR USER EXPERIENCE & DESIGN,18580.5,2016,MAAS JENNIFER A.
,CHIEF ADMIN OFCR OF THE HOUSE,2016Q4,SALARIES OFFICERS & EMPLOYEES,PERSONNEL COMPENSATION,"","","",MAAS JENNIFER A.,12/1/16,12/31/16,MANAGER WEB SERVICES,9917.58,2016,MAAS JENNIFER A.
,CHIEF ADMIN OFCR OF THE HOUSE,2016Q4,SALARIES OFFICERS & EMPLOYEES,PERSONNEL COMPENSATION,"","","",MAGNOTTI IV LOUIS,10/1/16,12/31/16,AUDIO SPECIALIST,18970.26,2016,MAGNOTTI IV LOUIS
,CHIEF ADMIN OFCR OF THE HOUSE,2016Q4,SALARIES OFFICERS & EMPLOYEES,PERSONNEL COMPENSATION,"","","",MAGNOTTI IV LOUIS,11/1/16,11/30/16,AUDIO SPECIALIST (OVERTIME),601.93,2016,MAGNOTTI IV LOUIS
,CHIEF ADMIN OFCR OF THE HOUSE,2016Q4,SALARIES OFFICERS & EMPLOYEES,PERSONNEL COMPENSATION,"","","",MAGRUDER TIMOTHY,10/1/16,12/31/16,JOURNEYMAN FURNITURE SPEC.,16383.99,2016,MAGRUDER TIMOTHY
,CHIEF ADMIN OFCR OF THE HOUSE,2016Q4,SALARIES OFFICERS & EMPLOYEES,PERSONNEL COMPENSATION,"","","",MAIDEN III LEWIS L.,10/1/16,12/31/16,SR LOGISTICS & DIST SPEC,16033.26,2016,MAIDEN III LEWIS L.
,CHIEF ADMIN OFCR OF THE HOUSE,2016Q4,SALARIES OFFICERS & EMPLOYEES,PERSONNEL COMPENSATION,"","","",MALASPINA KIMBERLY J,10/1/16,12/31/16,JOURNEYMAN TEXTILE SPEC,18221.41,2016,MALASPINA KIMBERLY J
,CHIEF ADMIN OFCR OF THE HOUSE,2016Q4,SALARIES OFFICERS & EMPLOYEES,PERSONNEL COMPENSATION,"","","",MALLON MICHAEL P.,10/1/16,12/31/16,MANAGER CENT REC & WAREHOUSE,25456.26,2016,MALLON MICHAEL P.
,CHIEF ADMIN OFCR OF THE HOUSE,2016Q4,SALARIES OFFICERS & EMPLOYEES,PERSONNEL COMPENSATION,"","","",MALLOY DEON,10/1/16,12/31/16,SR TECHNICAL SUPPORT REP (A),23340,2016,MALLOY DEON
,CHIEF ADMIN OFCR OF THE HOUSE,2016Q4,SALARIES OFFICERS & EMPLOYEES,PERSONNEL COMPENSATION,"","","",MARABLE EUGENE N,10/1/16,12/31/16,ASSET/INVENTORY COUNSELOR,12189.75,2016,MARABLE EUGENE N
,CHIEF ADMIN OFCR OF THE HOUSE,2016Q4,SALARIES OFFICERS & EMPLOYEES,PERSONNEL COMPENSATION,"","","",MARABLE EUGENE N,10/1/16,11/30/16,ASSET/INVENTORY COUNSELOR (OVERTIME),1254.13,2016,MARABLE EUGENE N
,CHIEF ADMIN OFCR OF THE HOUSE,2016Q4,SALARIES OFFICERS & EMPLOYEES,PERSONNEL COMPENSATION,"","","",MARCUS RALPH J.,10/1/16,12/31/16,TECHNICAL DIRECTOR (A),25611.17,2016,MARCUS RALPH J.
,CHIEF ADMIN OFCR OF THE HOUSE,2016Q4,SALARIES OFFICERS & EMPLOYEES,PERSONNEL COMPENSATION,"","","",MARCUS RALPH J.,11/1/16,11/30/16,TECHNICAL DIRECTOR (A) (OVERTIME),587.45,2016,MARCUS RALPH J.
,CHIEF ADMIN OFCR OF THE HOUSE,2016Q4,SALARIES OFFICERS & EMPLOYEES,PERSONNEL COMPENSATION,"","","",MARLOW JOEL T,10/1/16,12/31/16,SENIOR SYSTEMS ENGINEER,26292.51,2016,MARLOW JOEL T
,CHIEF ADMIN OFCR OF THE HOUSE,2016Q4,SALARIES OFFICERS & EMPLOYEES,PERSONNEL COMPENSATION,"","","",MARSH STEVE W.,10/1/16,12/31/16,MANAGER ACCOUNTING,30502.26,2016,MARSH STEVE W.
,CHIEF ADMIN OFCR OF THE HOUSE,2016Q4,SALARIES OFFICERS & EMPLOYEES,PERSONNEL COMPENSATION,"","","",MARTIN CHRISTOPHER W.,10/1/16,12/31/16,JOURNEYMAN FURNITURE SPEC.,20369.01,2016,MARTIN CHRISTOPHER W.
,CHIEF ADMIN OFCR OF THE HOUSE,2016Q4,SALARIES OFFICERS & EMPLOYEES,PERSONNEL COMPENSATION,"","","",MARTINEZ JAIME D.,10/1/16,12/31/16,SENIOR SYSTEMS ENGINEER,29449.74,2016,MARTINEZ JAIME D.
,CHIEF ADMIN OFCR OF THE HOUSE,2016Q4,SALARIES OFFICERS & EMPLOYEES,PERSONNEL COMPENSATION,"","","",MARTINS RICHARD,10/1/16,12/31/16,MANAGER NETWORK CONFIG. MNGMNT,37027.26,2016,MARTINS RICHARD
,CHIEF ADMIN OFCR OF THE HOUSE,2016Q4,SALARIES OFFICERS & EMPLOYEES,PERSONNEL COMPENSATION,"","","",MASHETER JR FREDERICK J.,10/1/16,12/31/16,PURCHASING AGENT,16022.49,2016,MASHETER JR FREDERICK J.
,CHIEF ADMIN OFCR OF THE HOUSE,2016Q4,SALARIES OFFICERS & EMPLOYEES,PERSONNEL COMPENSATION,"","","",MASON TRON,10/1/16,12/31/16,SR NETWORK COMM SPEC (A),29099.42,2016,MASON TRON
,CHIEF ADMIN OFCR OF THE HOUSE,2016Q4,SALARIES OFFICERS & EMPLOYEES,PERSONNEL COMPENSATION,"","","",MASSENGALE DOUG,10/1/16,12/31/16,CHIEF ENGINEER,32615.25,2016,MASSENGALE DOUG
,CHIEF ADMIN OFCR OF THE HOUSE,2016Q4,SALARIES OFFICERS & EMPLOYEES,PERSONNEL COMPENSATION,"","","",MATHIS MARC R,10/1/16,12/31/16,NETWORK TECHNICIAN,20591.01,2016,MATHIS MARC R
,CHIEF ADMIN OFCR OF THE HOUSE,2016Q4,SALARIES OFFICERS & EMPLOYEES,PERSONNEL COMPENSATION,"","","",MATTHEWS LEVI S,10/1/16,12/31/16,MANAGER,24534,2016,MATTHEWS LEVI S
,CHIEF ADMIN OFCR OF THE HOUSE,2016Q4,SALARIES OFFICERS & EMPLOYEES,PERSONNEL COMPENSATION,"","","",MAULDIN EVAN B,10/1/16,12/31/16,FINANCIAL ANALYST,20591.01,2016,MAULDIN EVAN B
,CHIEF ADMIN OFCR OF THE HOUSE,2016Q4,SALARIES OFFICERS & EMPLOYEES,PERSONNEL COMPENSATION,"","","",MAY SARITA M,10/1/16,12/31/16,SR TELECOMMUNICATIONS ADMIN,15940.74,2016,MAY SARITA M
,CHIEF ADMIN OFCR OF THE HOUSE,2016Q4,SALARIES OFFICERS & EMPLOYEES,PERSONNEL COMPENSATION,"","","",MAZZULLO MICHAEL A.,10/1/16,12/31/16,RECEIVING/WAREHOUSE SPEC,11972.25,2016,MAZZULLO MICHAEL A.
,CHIEF ADMIN OFCR OF THE HOUSE,2016Q4,SALARIES OFFICERS & EMPLOYEES,PERSONNEL COMPENSATION,"","","",MCBRIDE-CHAMBERS LISBETH,10/1/16,12/31/16,SR EA COUNSELOR,33131.01,2016,MCBRIDE-CHAMBERS LISBETH
,CHIEF ADMIN OFCR OF THE HOUSE,2016Q4,SALARIES OFFICERS & EMPLOYEES,PERSONNEL COMPENSATION,"","","",MCCAULEY ERICA C.,10/1/16,12/31/16,FINANCIAL ANALYST,18565.74,2016,MCCAULEY ERICA C.
,CHIEF ADMIN OFCR OF THE HOUSE,2016Q4,SALARIES OFFICERS & EMPLOYEES,PERSONNEL COMPENSATION,"","","",MCCUE BRIAN M.,10/1/16,11/30/16,FINANCIAL ANALYST,13186.16,2016,MCCUE BRIAN M.
,CHIEF ADMIN OFCR OF THE HOUSE,2016Q4,SALARIES OFFICERS & EMPLOYEES,PERSONNEL COMPENSATION,"","","",MCCUE BRIAN M.,11/1/16,11/30/16,FINANCIAL ANALYST (OTHER COMPENSATION),748.59,2016,MCCUE BRIAN M.
,CHIEF ADMIN OFCR OF THE HOUSE,2016Q4,SALARIES OFFICERS & EMPLOYEES,PERSONNEL COMPENSATION,"","","",MCDONALD BRADLEY A.,10/1/16,12/31/16,MANAGER ENTERPRISE APPL SUPP,37027.26,2016,MCDONALD BRADLEY A.
,CHIEF ADMIN OFCR OF THE HOUSE,2016Q4,SALARIES OFFICERS & EMPLOYEES,PERSONNEL COMPENSATION,"","","",MCFADDEN SAINT JUAN,10/1/16,12/31/16,SR PAYROLL & BENS GENERALIST,21957.24,2016,MCFADDEN SAINT JUAN
,CHIEF ADMIN OFCR OF THE HOUSE,2016Q4,SALARIES OFFICERS & EMPLOYEES,PERSONNEL COMPENSATION,"","","",MCFADDEN SAINT JUAN,11/1/16,11/30/16,SR PAYROLL & BENS GENERALIST (OVERTIME),1937.07,2016,MCFADDEN SAINT JUAN
,CHIEF ADMIN OFCR OF THE HOUSE,2016Q4,SALARIES OFFICERS & EMPLOYEES,PERSONNEL COMPENSATION,"","","",MCFADDEN MIRANDA J,10/1/16,12/31/16,BUDGET ANALYST,24534,2016,MCFADDEN MIRANDA J
,CHIEF ADMIN OFCR OF THE HOUSE,2016Q4,SALARIES OFFICERS & EMPLOYEES,PERSONNEL COMPENSATION,"","","",MCGARRY THOMAS K.,10/1/16,12/31/16,JOURNEYMAN FURNITURE SPEC.,21176.25,2016,MCGARRY THOMAS K.
,CHIEF ADMIN OFCR OF THE HOUSE,2016Q4,SALARIES OFFICERS & EMPLOYEES,PERSONNEL COMPENSATION,"","","",MCKITTRICK DAVID E.,10/1/16,12/31/16,SR BUSINESS PROCESS APPL SPEC,38929.74,2016,MCKITTRICK DAVID E.
,CHIEF ADMIN OFCR OF THE HOUSE,2016Q4,SALARIES OFFICERS & EMPLOYEES,PERSONNEL COMPENSATION,"","","",MEISTER DARLENE T.,10/1/16,12/31/16,DIR DIVERSITY & ORG CHGE MGT,35756.25,2016,MEISTER DARLENE T.
,CHIEF ADMIN OFCR OF THE HOUSE,2016Q4,SALARIES OFFICERS & EMPLOYEES,PERSONNEL COMPENSATION,"","","",MELVIN MICHAEL C.,10/1/16,12/31/16,CONTINUITY TECH SUPP REP,20996.25,2016,MELVIN MICHAEL C.
,CHIEF ADMIN OFCR OF THE HOUSE,2016Q4,SALARIES OFFICERS & EMPLOYEES,PERSONNEL COMPENSATION,"","","",MENDOZA LYDIA,10/1/16,12/31/16,PAYROLL & BENEFITS GENERALIST,17550.51,2016,MENDOZA LYDIA
,CHIEF ADMIN OFCR OF THE HOUSE,2016Q4,SALARIES OFFICERS & EMPLOYEES,PERSONNEL COMPENSATION,"","","",MENDOZA LYDIA,10/1/16,11/30/16,PAYROLL & BENEFITS GENERALIST (OVERTIME),2387.86,2016,MENDOZA LYDIA
,CHIEF ADMIN OFCR OF THE HOUSE,2016Q4,SALARIES OFFICERS & EMPLOYEES,PERSONNEL COMPENSATION,"","","",MEREDITH DWAINE,10/1/16,12/31/16,LOGISTICS & DIST SPEC (A),11058.51,2016,MEREDITH DWAINE
,CHIEF ADMIN OFCR OF THE HOUSE,2016Q4,SALARIES OFFICERS & EMPLOYEES,PERSONNEL COMPENSATION,"","","",METZLER FRANMARIE,10/1/16,11/30/16,PHOTOGRAPHER/LAB TECH (TEMP),7904.84,2016,METZLER FRANMARIE
,CHIEF ADMIN OFCR OF THE HOUSE,2016Q4,SALARIES OFFICERS & EMPLOYEES,PERSONNEL COMPENSATION,"","","",MICHALEK WILLIAM,10/1/16,12/31/16,BILLING ADMINISTRATOR,17777.01,2016,MICHALEK WILLIAM
,CHIEF ADMIN OFCR OF THE HOUSE,2016Q4,SALARIES OFFICERS & EMPLOYEES,PERSONNEL COMPENSATION,"","","",MILASI FRANCESCO,10/1/16,12/31/16,SENIOR NETWORK TECHNICIAN (A),25644.24,2016,MILASI FRANCESCO
,CHIEF ADMIN OFCR OF THE HOUSE,2016Q4,SALARIES OFFICERS & EMPLOYEES,PERSONNEL COMPENSATION,"","","",MILBUT ANTHONY P.,10/1/16,12/31/16,MOBILE COMMUNICATIONS SPECIAL,27521.75,2016,MILBUT ANTHONY P.
,CHIEF ADMIN OFCR OF THE HOUSE,2016Q4,SALARIES OFFICERS & EMPLOYEES,PERSONNEL COMPENSATION,"","","",MILLER JR LOUIS,10/1/16,12/31/16,PURCHASING AGENT,14629.26,2016,MILLER JR LOUIS
,CHIEF ADMIN OFCR OF THE HOUSE,2016Q4,SALARIES OFFICERS & EMPLOYEES,PERSONNEL COMPENSATION,"","","",MILLER KEITH E.,10/1/16,12/31/16,BROADCAST PRODUCTION TECHNICIA,23803.26,2016,MILLER KEITH E.
,CHIEF ADMIN OFCR OF THE HOUSE,2016Q4,SALARIES OFFICERS & EMPLOYEES,PERSONNEL COMPENSATION,"","","",MILLER MICHAEL A,10/1/16,12/31/16,MANAGER PROD AND SUPPORT,28046.17,2016,MILLER MICHAEL A
,CHIEF ADMIN OFCR OF THE HOUSE,2016Q4,SALARIES OFFICERS & EMPLOYEES,PERSONNEL COMPENSATION,"","","",MILLER SHAWN,10/1/16,12/31/16,SR CUSTOMER SOLUTIONS REP.,18565.74,2016,MILLER SHAWN
,CHIEF ADMIN OFCR OF THE HOUSE,2016Q4,SALARIES OFFICERS & EMPLOYEES,PERSONNEL COMPENSATION,"","","",MILLER-LAMILL ELOISE R.,10/1/16,12/31/16,BROADCAST PRODUCTION TECHNICIA,23803.26,2016,MILLER-LAMILL ELOISE R.
,CHIEF ADMIN OFCR OF THE HOUSE,2016Q4,SALARIES OFFICERS & EMPLOYEES,PERSONNEL COMPENSATION,"","","",MILLER-LAMILL ELOISE R.,11/1/16,11/30/16,BROADCAST PRODUCTION TECHNICIA (OVERTIME),549.3,2016,MILLER-LAMILL ELOISE R.
,CHIEF ADMIN OFCR OF THE HOUSE,2016Q4,SALARIES OFFICERS & EMPLOYEES,PERSONNEL COMPENSATION,"","","",MINOR LESLIE,10/1/16,12/31/16,FINANCIAL COUNSELOR,17550.51,2016,MINOR LESLIE
,CHIEF ADMIN OFCR OF THE HOUSE,2016Q4,SALARIES OFFICERS & EMPLOYEES,PERSONNEL COMPENSATION,"","","",MINOR LESLIE,10/1/16,10/31/16,FINANCIAL COUNSELOR (OVERTIME),270,2016,MINOR LESLIE
,CHIEF ADMIN OFCR OF THE HOUSE,2016Q4,SALARIES OFFICERS & EMPLOYEES,PERSONNEL COMPENSATION,"","","",MINTON DONNA,10/1/16,12/31/16,BUSINESS PROC APPLIC SPEC,29449.74,2016,MINTON DONNA
,CHIEF ADMIN OFCR OF THE HOUSE,2016Q4,SALARIES OFFICERS & EMPLOYEES,PERSONNEL COMPENSATION,"","","",MINTURN JOHN J.,10/1/16,12/31/16,INFO SYSTEMS SECURITY MNGR,35126.01,2016,MINTURN JOHN J.
,CHIEF ADMIN OFCR OF THE HOUSE,2016Q4,SALARIES OFFICERS & EMPLOYEES,PERSONNEL COMPENSATION,"","","",MODICA MICHAEL,10/1/16,12/31/16,CUSTOMER RELATIONS MANAGER,33189.51,2016,MODICA MICHAEL
,CHIEF ADMIN OFCR OF THE HOUSE,2016Q4,SALARIES OFFICERS & EMPLOYEES,PERSONNEL COMPENSATION,"","","",MOLL ANDREW C.,10/1/16,12/31/16,SR INTERNET SYSTEMS SPECIALIST,35673.58,2016,MOLL ANDREW C.
,CHIEF ADMIN OFCR OF THE HOUSE,2016Q4,SALARIES OFFICERS & EMPLOYEES,PERSONNEL COMPENSATION,"","","",MOORE II GARY L,10/1/16,12/31/16,SENIOR NETWORK TECHNICIAN,21035.01,2016,MOORE II GARY L
,CHIEF ADMIN OFCR OF THE HOUSE,2016Q4,SALARIES OFFICERS & EMPLOYEES,PERSONNEL COMPENSATION,"","","",MOORE EDWARDA P.,10/1/16,12/31/16,FINANCIAL COUNSELOR,20996.25,2016,MOORE EDWARDA P.
